Body Name,Body,Service Area Catergorisation,Service Division Catergorisation,Responsible Unit,Expenses Type,Detailed Expenses Type,Expenses Code,Date,Transaction Number, Amount ,Capital / Revenue,Supplier Name,Supplier ID
North East Lincolnshire Council,http://statistics.data.gov.uk/id/local-authority/00FC),Cap Dep Chief Exec,Ad Early Intervention,Capital Fund - For Two Yr Olds,Cap Land/Build-Build Enh Wrk,Cap Land/Build-Build Enh Wrk,YA102,3/22/2016,401165,476.07,CAPITAL,ENGIE SERVICES LTD,133267
North East Lincolnshire Council,http://statistics.data.gov.uk/id/local-authority/00FC),Chief Executive,Director Of Finance,Backlog Maintenance,Cap Land/Build-Build Enh Wrk,Cap Land/Build-Build Enh Wrk,YA102,3/29/2016,401193,10372.79,CAPITAL,ENGIE SERVICES LTD,133267
North East Lincolnshire Council,http://statistics.data.gov.uk/id/local-authority/00FC),Chief Executive,Director Of Finance,Backlog Maintenance,Cap Land/Build-Build Enh Wrk,Cap Land/Build-Build Enh Wrk,YA102,3/17/2016,399642,30000,CAPITAL,KES BUILDING MAINTENANCE LIMITED,100786
North East Lincolnshire Council,http://statistics.data.gov.uk/id/local-authority/00FC),Chief Executive,Director Of Finance,Backlog Maintenance,Cap Land/Build-Build Enh Wrk,Cap Land/Build-Build Enh Wrk,YA102,3/22/2016,401200,500,CAPITAL,ENGIE SERVICES LTD,133267
North East Lincolnshire Council,http://statistics.data.gov.uk/id/local-authority/00FC),Chief Executive,Director Of Finance,Backlog Maintenance,Cap Land/Build-Build Enh Wrk,Cap Land/Build-Build Enh Wrk,YA102,3/29/2016,401170,296.97,CAPITAL,ENGIE SERVICES LTD,133267
North East Lincolnshire Council,http://statistics.data.gov.uk/id/local-authority/00FC),Chief Executive,Director Of Finance,Backlog Maintenance,Cap Land/Build-Build Enh Wrk,Cap Land/Build-Build Enh Wrk,YA102,3/29/2016,401866,2284.41,CAPITAL,HAITHS HEATING LTD,101342
North East Lincolnshire Council,http://statistics.data.gov.uk/id/local-authority/00FC),Chief Executive,Director Of Finance,Backlog Maintenance,Cap Land/Build-Build Enh Wrk,Cap Land/Build-Build Enh Wrk,YA102,3/10/2016,399123,385,CAPITAL,LINCS ELECTRICAL SERVICES LTD,102044
North East Lincolnshire Council,http://statistics.data.gov.uk/id/local-authority/00FC),Chief Executive,Director Of Finance,Backlog Maintenance,Cap Land/Build-Build Enh Wrk,Cap Land/Build-Build Enh Wrk,YA102,3/10/2016,399124,803,CAPITAL,HAITHS HEATING LTD,101342
North East Lincolnshire Council,http://statistics.data.gov.uk/id/local-authority/00FC),Chief Executive,Director Of Finance,Backlog Maintenance,Cap Land/Build-Build Enh Wrk,Cap Land/Build-Build Enh Wrk,YA102,3/21/2016,400654,3090,CAPITAL,ETON-LINCS LIMITED,101510
North East Lincolnshire Council,http://statistics.data.gov.uk/id/local-authority/00FC),Chief Executive,Director Of Finance,Backlog Maintenance,Cap Land/Build-Build Enh Wrk,Cap Land/Build-Build Enh Wrk,YA102,3/21/2016,400605,665,CAPITAL,HEMSWELL SURFACING LTD,100615
North East Lincolnshire Council,http://statistics.data.gov.uk/id/local-authority/00FC),Chief Executive,Director Of Finance,Backlog Maintenance,Cap Land/Build-Build Enh Wrk,Cap Land/Build-Build Enh Wrk,YA102,3/21/2016,400602,1824,CAPITAL,LINCS ELECTRICAL SERVICES LTD,102044
North East Lincolnshire Council,http://statistics.data.gov.uk/id/local-authority/00FC),Chief Executive,Director Of Finance,Backlog Maintenance,Cap Land/Build-Build Enh Wrk,Cap Land/Build-Build Enh Wrk,YA102,3/29/2016,401860,11885,CAPITAL,ETON-LINCS LIMITED,101510
North East Lincolnshire Council,http://statistics.data.gov.uk/id/local-authority/00FC),Chief Executive,Director Of Finance,Backlog Maintenance,Cap Land/Build-Build Enh Wrk,Cap Land/Build-Build Enh Wrk,YA102,3/22/2016,401172,250,CAPITAL,ENGIE SERVICES LTD,133267
North East Lincolnshire Council,http://statistics.data.gov.uk/id/local-authority/00FC),Chief Executive,Director Of Finance,Backlog Maintenance,Cap Land/Build-Build Enh Wrk,Cap Land/Build-Build Enh Wrk,YA102,3/22/2016,401178,1429.25,CAPITAL,ENGIE SERVICES LTD,133267
North East Lincolnshire Council,http://statistics.data.gov.uk/id/local-authority/00FC),Chief Executive,Director Of Finance,Backlog Maintenance,Cap Land/Build-Build Enh Wrk,Cap Land/Build-Build Enh Wrk,YA102,3/22/2016,401195,893.28,CAPITAL,ENGIE SERVICES LTD,133267
North East Lincolnshire Council,http://statistics.data.gov.uk/id/local-authority/00FC),Chief Executive,Director Of Finance,Backlog Maintenance,Cap Land/Build-Build Enh Wrk,Cap Land/Build-Build Enh Wrk,YA102,3/22/2016,401199,2920.37,CAPITAL,ENGIE SERVICES LTD,133267
North East Lincolnshire Council,http://statistics.data.gov.uk/id/local-authority/00FC),Chief Executive,Director Of Finance,Backlog Maintenance,Cap Land/Build-Build Enh Wrk,Cap Land/Build-Build Enh Wrk,YA102,3/22/2016,401203,1383.85,CAPITAL,ENGIE SERVICES LTD,133267
North East Lincolnshire Council,http://statistics.data.gov.uk/id/local-authority/00FC),Chief Executive,Director Of Finance,Backlog Maintenance,Cap Land/Build-Build Enh Wrk,Cap Land/Build-Build Enh Wrk,YA102,3/29/2016,401160,250,CAPITAL,ENGIE SERVICES LTD,133267
North East Lincolnshire Council,http://statistics.data.gov.uk/id/local-authority/00FC),Chief Executive,Director Of Finance,Backlog Maintenance,Cap Land/Build-Build Enh Wrk,Cap Land/Build-Build Enh Wrk,YA102,3/29/2016,401166,401.7,CAPITAL,ENGIE SERVICES LTD,133267
North East Lincolnshire Council,http://statistics.data.gov.uk/id/local-authority/00FC),Chief Executive,Director Of Finance,Backlog Maintenance,Cap Land/Build-Build Enh Wrk,Cap Land/Build-Build Enh Wrk,YA102,3/29/2016,401191,505.05,CAPITAL,ENGIE SERVICES LTD,133267
North East Lincolnshire Council,http://statistics.data.gov.uk/id/local-authority/00FC),Chief Executive,Director Of Finance,Backlog Maintenance,Cap Land/Build-Build Enh Wrk,Cap Land/Build-Build Enh Wrk,YA102,3/1/2016,397434,10645,CAPITAL,ETON-LINCS LIMITED,101510
North East Lincolnshire Council,http://statistics.data.gov.uk/id/local-authority/00FC),Chief Executive,Director Of Finance,Backlog Maintenance,Cap Land/Build-Build Enh Wrk,Cap Land/Build-Build Enh Wrk,YA102,3/17/2016,399492,1730,CAPITAL,SIMPKINS KENNY LTD,125083
North East Lincolnshire Council,http://statistics.data.gov.uk/id/local-authority/00FC),Chief Executive,Director Of Finance,Backlog Maintenance,Cap Land/Build-Prof Fees,Cap Land/Build-Prof Fees,YA103,3/29/2016,401157,484.51,CAPITAL,ENGIE SERVICES LTD,133267
North East Lincolnshire Council,http://statistics.data.gov.uk/id/local-authority/00FC),Chief Executive,Director Of Finance,Backlog Maintenance,Cap Land/Build-Prof Fees,Cap Land/Build-Prof Fees,YA103,3/29/2016,401800,3000,CAPITAL,COFELY WORKPLACE LIMITED,123983
North East Lincolnshire Council,http://statistics.data.gov.uk/id/local-authority/00FC),Chief Executive,Director Of Finance,Backlog Maintenance,Cap Land/Build-Build Enh Wrk,Cap Land/Build-Build Enh Wrk,YA102,3/22/2016,401196,7385.42,CAPITAL,ENGIE SERVICES LTD,133267
North East Lincolnshire Council,http://statistics.data.gov.uk/id/local-authority/00FC),Chief Executive,Director Of Finance,Backlog Maintenance,Cap Land/Build-Build Enh Wrk,Cap Land/Build-Build Enh Wrk,YA102,3/21/2016,400729,43510.95,CAPITAL,BURROWS DAVIES LIMITED,102722
North East Lincolnshire Council,http://statistics.data.gov.uk/id/local-authority/00FC),Chief Executive,Director Of Finance,Property Rationalisation Prog,Cap Land/Build-Build Enh Wrk,Cap Land/Build-Build Enh Wrk,YA102,3/21/2016,400624,2652,CAPITAL,LINCS ELECTRICAL SERVICES LTD,102044
North East Lincolnshire Council,http://statistics.data.gov.uk/id/local-authority/00FC),Chief Executive,Director Of Finance,Property Rationalisation Prog,Cap Land/Build-Build Enh Wrk,Cap Land/Build-Build Enh Wrk,YA102,3/22/2016,401202,1489.15,CAPITAL,ENGIE SERVICES LTD,133267
North East Lincolnshire Council,http://statistics.data.gov.uk/id/local-authority/00FC),Chief Executive,Director Of Finance,Property Rationalisation Prog,Cap Infrastr-Purchase,Cap Infrastr-Purchase,YC101,3/18/2016,399981,1394.85,CAPITAL,SPECIALIST COMPUTER CENTRES PLC,110715
North East Lincolnshire Council,http://statistics.data.gov.uk/id/local-authority/00FC),Chief Executive,Director Of Finance,Property Rationalisation Prog,Cap Land/Build-Build Enh Wrk,Cap Land/Build-Build Enh Wrk,YA102,3/22/2016,401361,967.4,CAPITAL,BELL WASTE CONTROL,101433
North East Lincolnshire Council,http://statistics.data.gov.uk/id/local-authority/00FC),Chief Executive,Director Of Finance,Property Rationalisation Prog,Cap Land/Build-Build Enh Wrk,Cap Land/Build-Build Enh Wrk,YA102,3/21/2016,400071,22023.48,CAPITAL,S VOASE BUILDERS LTD,103594
North East Lincolnshire Council,http://statistics.data.gov.uk/id/local-authority/00FC),Chief Executive,Director Of Finance,Property Rationalisation Prog,Cap Land/Build-Build Enh Wrk,Cap Land/Build-Build Enh Wrk,YA102,3/21/2016,400072,4722.91,CAPITAL,S VOASE BUILDERS LTD,103594
North East Lincolnshire Council,http://statistics.data.gov.uk/id/local-authority/00FC),Chief Executive,Director Of Finance,Property Rationalisation Prog,Cap Infrastr-Purchase,Cap Infrastr-Purchase,YC101,3/18/2016,399981,1394.85,CAPITAL,SPECIALIST COMPUTER CENTRES PLC,110715
North East Lincolnshire Council,http://statistics.data.gov.uk/id/local-authority/00FC),Chief Executive,Director Of Finance,Property Rationalisation Prog,Cap Land/Build-Build Enh Wrk,Cap Land/Build-Build Enh Wrk,YA102,3/29/2016,401174,250,CAPITAL,ENGIE SERVICES LTD,133267
North East Lincolnshire Council,http://statistics.data.gov.uk/id/local-authority/00FC),Chief Executive,Director Of Finance,Property Rationalisation Prog,Cap Land/Build-Build Enh Wrk,Cap Land/Build-Build Enh Wrk,YA102,3/29/2016,401158,250,CAPITAL,ENGIE SERVICES LTD,133267
North East Lincolnshire Council,http://statistics.data.gov.uk/id/local-authority/00FC),Chief Executive,Director Of Finance,Property Rationalisation Prog,Cap Land/Build-Build Enh Wrk,Cap Land/Build-Build Enh Wrk,YA102,3/22/2016,400826,350,CAPITAL,BRIAN TYNAN LTD,104834
North East Lincolnshire Council,http://statistics.data.gov.uk/id/local-authority/00FC),Chief Executive,Director Of Finance,Property Rationalisation Prog,Cap Land/Build-Build Enh Wrk,Cap Land/Build-Build Enh Wrk,YA102,3/22/2016,401201,500,CAPITAL,ENGIE SERVICES LTD,133267
North East Lincolnshire Council,http://statistics.data.gov.uk/id/local-authority/00FC),Chief Executive,Director Of Finance,Property Rationalisation Prog,Cap Land/Build-Build Enh Wrk,Cap Land/Build-Build Enh Wrk,YA102,3/21/2016,400828,550,CAPITAL,BRIAN TYNAN LTD,104834
North East Lincolnshire Council,http://statistics.data.gov.uk/id/local-authority/00FC),Chief Executive,Director Of Finance,Property Rationalisation Prog,Cap Infrastr-Purchase,Cap Infrastr-Purchase,YC101,3/18/2016,388933,483.06,CAPITAL,VIRGIN MEDIA LTD,101831
North East Lincolnshire Council,http://statistics.data.gov.uk/id/local-authority/00FC),Chief Executive,Director Of Finance,Property Rationalisation Prog,Cap Infrastr-Purchase,Cap Infrastr-Purchase,YC101,3/10/2016,387760,453,CAPITAL,SAFE CONTROL LTD,100989
North East Lincolnshire Council,http://statistics.data.gov.uk/id/local-authority/00FC),Chief Executive,Director Of Finance,Property Rationalisation Prog,Cap Land/Build-Build Enh Wrk,Cap Land/Build-Build Enh Wrk,YA102,3/21/2016,400653,1271,CAPITAL,KES BUILDING MAINTENANCE LIMITED,100786
North East Lincolnshire Council,http://statistics.data.gov.uk/id/local-authority/00FC),Chief Executive,Director Of Finance,Public Conveniences,Cap Land/Build-Build Enh Wrk,Cap Land/Build-Build Enh Wrk,YA102,3/29/2016,401161,30826.4,CAPITAL,ENGIE SERVICES LTD,133267
North East Lincolnshire Council,http://statistics.data.gov.uk/id/local-authority/00FC),Chief Executive,Director Of Finance,Public Conveniences,Cap Land/Build-Build Enh Wrk,Cap Land/Build-Build Enh Wrk,YA102,3/29/2016,400032,236216.18,CAPITAL,KES BUILDING MAINTENANCE LIMITED,100786
North East Lincolnshire Council,http://statistics.data.gov.uk/id/local-authority/00FC),Chief Executive,Director Of Finance,Public Conveniences,Cap Land/Build-Build Enh Wrk,Cap Land/Build-Build Enh Wrk,YA102,3/21/2016,400066,910,CAPITAL,SIGNS EXPRESS (N & NE LINCS),100983
North East Lincolnshire Council,http://statistics.data.gov.uk/id/local-authority/00FC),Chief Executive,Ad Joint Delivery,Information System,Cap Intangible Assets,Cap Intangible Assets,YH101,3/8/2016,388355,4150,CAPITAL,CACI LTD,110598
North East Lincolnshire Council,http://statistics.data.gov.uk/id/local-authority/00FC),Chief Executive,Ad Joint Delivery,Information System,Cap Intangible Assets,Cap Intangible Assets,YH101,3/8/2016,388354,8700,CAPITAL,CACI LTD,110598
North East Lincolnshire Council,http://statistics.data.gov.uk/id/local-authority/00FC),Chief Executive,Ad Joint Delivery,New Ict Framework,Cap Veh Plt Eqp-Purchase,Cap Veh Plt Eqp-Purchase,YB101,3/10/2016,398901,2592,CAPITAL,SPECIALIST COMPUTER CENTRES PLC,110715
North East Lincolnshire Council,http://statistics.data.gov.uk/id/local-authority/00FC),Chief Executive,Ad Joint Delivery,New Ict Framework,Cap Veh Plt Eqp-Purchase,Cap Veh Plt Eqp-Purchase,YB101,3/10/2016,398901,86400,CAPITAL,SPECIALIST COMPUTER CENTRES PLC,110715
North East Lincolnshire Council,http://statistics.data.gov.uk/id/local-authority/00FC),Chief Executive,Ad Joint Delivery,New Ict Framework,Cap Veh Plt Eqp-Purchase,Cap Veh Plt Eqp-Purchase,YB101,3/10/2016,398900,648,CAPITAL,SPECIALIST COMPUTER CENTRES PLC,110715
North East Lincolnshire Council,http://statistics.data.gov.uk/id/local-authority/00FC),Chief Executive,Ad Joint Delivery,New Ict Framework,Cap Veh Plt Eqp-Purchase,Cap Veh Plt Eqp-Purchase,YB101,3/10/2016,398900,21600,CAPITAL,SPECIALIST COMPUTER CENTRES PLC,110715
North East Lincolnshire Council,http://statistics.data.gov.uk/id/local-authority/00FC),Chief Executive,Ad Joint Delivery,New Ict Framework,Cap Veh Plt Eqp-Purchase,Cap Veh Plt Eqp-Purchase,YB101,3/8/2016,398167,15000,CAPITAL,MIDLAND SOFTWARE LTD,102633
North East Lincolnshire Council,http://statistics.data.gov.uk/id/local-authority/00FC),Chief Executive,Ad Joint Delivery,New Ict Framework,Cap Veh Plt Eqp-Purchase,Cap Veh Plt Eqp-Purchase,YB101,3/8/2016,398167,3000,CAPITAL,MIDLAND SOFTWARE LTD,102633
North East Lincolnshire Council,http://statistics.data.gov.uk/id/local-authority/00FC),Chief Executive,Ad Joint Delivery,New Ict Framework,Cap Intangible Assets,Cap Intangible Assets,YH101,3/18/2016,390775,3600,CAPITAL,CAPITA BUSINESS SERVICES LTD,102314
North East Lincolnshire Council,http://statistics.data.gov.uk/id/local-authority/00FC),Chief Executive,Ad Joint Delivery,New Ict Framework,Cap Intangible Assets,Cap Intangible Assets,YH101,3/18/2016,392014,3125,CAPITAL,CAPITA BUSINESS SERVICES LTD,102314
North East Lincolnshire Council,http://statistics.data.gov.uk/id/local-authority/00FC),Chief Executive,Ad Joint Delivery,New Ict Framework,Cap Intangible Assets,Cap Intangible Assets,YH101,3/31/2016,398063,260,CAPITAL,VICTORIA SOLUTIONS (T/A VICTORIA FORMS),129023
North East Lincolnshire Council,http://statistics.data.gov.uk/id/local-authority/00FC),Chief Executive,Ad Joint Delivery,New Ict Framework,Cap Intangible Assets,Cap Intangible Assets,YH101,3/24/2016,401704,1499.25,CAPITAL,CAPITA BUSINESS SERVICES LTD,102314
North East Lincolnshire Council,http://statistics.data.gov.uk/id/local-authority/00FC),Chief Executive,Ad Joint Delivery,New Leisure Centre At Grimsby,Cap Land/Build-Build Enh Wrk,Cap Land/Build-Build Enh Wrk,YA102,3/7/2016,397608,1042,CAPITAL,W R CULLUM,100811
North East Lincolnshire Council,http://statistics.data.gov.uk/id/local-authority/00FC),Chief Executive,Ad Joint Delivery,New Leisure Centre At Grimsby,Cap Land/Build-Build Enh Wrk,Cap Land/Build-Build Enh Wrk,YA102,3/22/2016,401185,7577.66,CAPITAL,ENGIE SERVICES LTD,133267
North East Lincolnshire Council,http://statistics.data.gov.uk/id/local-authority/00FC),Chief Executive,Ad Joint Delivery,New Leisure Centre At Grimsby,Cap Land/Build-Build Enh Wrk,Cap Land/Build-Build Enh Wrk,YA102,3/29/2016,401186,5742.61,CAPITAL,ENGIE SERVICES LTD,133267
North East Lincolnshire Council,http://statistics.data.gov.uk/id/local-authority/00FC),Chief Executive,Ad Joint Delivery,New Leisure Centre At Grimsby,Cap Land/Build-Build Enh Wrk,Cap Land/Build-Build Enh Wrk,YA102,3/7/2016,396052,185915.52,CAPITAL,JOHNSON HEALTH TECH UK LTD,118830
North East Lincolnshire Council,http://statistics.data.gov.uk/id/local-authority/00FC),Chief Executive,Ad Joint Delivery,Replacement/Refurbishment  It,Cap Veh Plt Eqp-Purchase,Cap Veh Plt Eqp-Purchase,YB101,3/8/2016,397927,2613.52,CAPITAL,DELL COMPUTER CORPORATION LTD,100892
North East Lincolnshire Council,http://statistics.data.gov.uk/id/local-authority/00FC),Chief Executive,Ad Joint Delivery,Replacement/Refurbishment  It,Cap Veh Plt Eqp-Purchase,Cap Veh Plt Eqp-Purchase,YB101,3/24/2016,401484,6402,CAPITAL,SPECIALIST COMPUTER CENTRES PLC,110715
North East Lincolnshire Council,http://statistics.data.gov.uk/id/local-authority/00FC),Chief Executive,Ad Joint Delivery,Replacement/Refurbishment  It,Cap Veh Plt Eqp-Purchase,Cap Veh Plt Eqp-Purchase,YB101,3/1/2016,396563,1440.3,CAPITAL,INSIGHT DIRECT (UK) LTD,101011
North East Lincolnshire Council,http://statistics.data.gov.uk/id/local-authority/00FC),Chief Executive,Ad Joint Delivery,Replacement/Refurbishment  It,Cap Veh Plt Eqp-Purchase,Cap Veh Plt Eqp-Purchase,YB101,3/21/2016,399722,6536.15,CAPITAL,DELL COMPUTER CORPORATION LTD,100892
North East Lincolnshire Council,http://statistics.data.gov.uk/id/local-authority/00FC),Chief Executive,Ad Joint Delivery,Replacement/Refurbishment  It,Cap Veh Plt Eqp-Purchase,Cap Veh Plt Eqp-Purchase,YB101,3/8/2016,398218,2280,CAPITAL,INSIGHT DIRECT (UK) LTD,101011
North East Lincolnshire Council,http://statistics.data.gov.uk/id/local-authority/00FC),Chief Executive,Ad Joint Delivery,Replacement/Refurbishment  It,Cap Veh Plt Eqp-Purchase,Cap Veh Plt Eqp-Purchase,YB101,3/18/2016,399474,6960,CAPITAL,INSIGHT DIRECT (UK) LTD,101011
North East Lincolnshire Council,http://statistics.data.gov.uk/id/local-authority/00FC),Chief Executive,Ad Joint Delivery,Replacement/Refurbishment  It,Cap Veh Plt Eqp-Purchase,Cap Veh Plt Eqp-Purchase,YB101,3/18/2016,399474,420,CAPITAL,INSIGHT DIRECT (UK) LTD,101011
North East Lincolnshire Council,http://statistics.data.gov.uk/id/local-authority/00FC),Chief Executive,Ad Joint Delivery,Replacement/Refurbishment  It,Cap Veh Plt Eqp-Purchase,Cap Veh Plt Eqp-Purchase,YB101,3/24/2016,401500,2280,CAPITAL,INSIGHT DIRECT (UK) LTD,101011
North East Lincolnshire Council,http://statistics.data.gov.uk/id/local-authority/00FC),Chief Executive,Ad Joint Delivery,Replacement/Refurbishment  It,Cap Veh Plt Eqp-Purchase,Cap Veh Plt Eqp-Purchase,YB101,3/24/2016,401499,3480,CAPITAL,INSIGHT DIRECT (UK) LTD,101011
North East Lincolnshire Council,http://statistics.data.gov.uk/id/local-authority/00FC),Chief Executive,Ad Joint Delivery,Immingham Pool,Cap Land/Build-Build Enh Wrk,Cap Land/Build-Build Enh Wrk,YA102,3/3/2016,397175,24704.35,CAPITAL,F PARKINSON LTD,123944
North East Lincolnshire Council,http://statistics.data.gov.uk/id/local-authority/00FC),Chief Executive,Ad Joint Delivery,Decommission Gy Swimming Pool,Cap Land/Build-Build Enh Wrk,Cap Land/Build-Build Enh Wrk,YA102,3/29/2016,401190,38844.66,CAPITAL,ENGIE SERVICES LTD,133267
North East Lincolnshire Council,http://statistics.data.gov.uk/id/local-authority/00FC),Chief Executive,Ad Joint Delivery,Decommission Gy Swimming Pool,Cap Land/Build-Build Enh Wrk,Cap Land/Build-Build Enh Wrk,YA102,3/1/2016,397433,1445,CAPITAL,HAITHS HEATING LTD,101342
North East Lincolnshire Council,http://statistics.data.gov.uk/id/local-authority/00FC),Chief Executive,Ad Joint Delivery,Decommission Gy Swimming Pool,Cap Land/Build-Build Enh Wrk,Cap Land/Build-Build Enh Wrk,YA102,3/14/2016,399496,172021.58,CAPITAL,RHODAR LIMITED,107725
North East Lincolnshire Council,http://statistics.data.gov.uk/id/local-authority/00FC),Chief Executive,Ad Joint Delivery,Decommission Gy Swimming Pool,Cap Land/Build-Prof Fees,Cap Land/Build-Prof Fees,YA103,3/15/2016,399501,5982.57,CAPITAL,COFELY WORKPLACE LIMITED,123983
North East Lincolnshire Council,http://statistics.data.gov.uk/id/local-authority/00FC),Chief Executive,Director Of Economy & Growth,Hps-Disabled Fac. Grants,Cap Grants To O/Side Sources,Cap Grants To O/Side Sources,YJ101,3/24/2016,401453,5387.38,CAPITAL,F R TOWNSEND & CO LTD,104217
North East Lincolnshire Council,http://statistics.data.gov.uk/id/local-authority/00FC),Chief Executive,Director Of Economy & Growth,Hps-Disabled Fac. Grants,Cap Grants To O/Side Sources,Cap Grants To O/Side Sources,YJ101,3/10/2016,398904,17027.75,CAPITAL,COFELY WORKPLACE LIMITED,123983
North East Lincolnshire Council,http://statistics.data.gov.uk/id/local-authority/00FC),Chief Executive,Director Of Economy & Growth,Hps-Disabled Fac. Grants,Cap Grants To O/Side Sources,Cap Grants To O/Side Sources,YJ101,3/10/2016,398144,3331.09,CAPITAL,COFELY WORKPLACE LIMITED,123983
North East Lincolnshire Council,http://statistics.data.gov.uk/id/local-authority/00FC),Chief Executive,Director Of Economy & Growth,Hps-Disabled Fac. Grants,Cap Grants To O/Side Sources,Cap Grants To O/Side Sources,YJ101,3/24/2016,400681,4959,CAPITAL,DOLPHIN MOBILITY EAST MIDLANDS LTD,101317
North East Lincolnshire Council,http://statistics.data.gov.uk/id/local-authority/00FC),Chief Executive,Director Of Economy & Growth,Hps-Disabled Fac. Grants,Cap Grants To O/Side Sources,Cap Grants To O/Side Sources,YJ101,3/18/2016,399613,4772,CAPITAL,OBAM LIFT SERVICES LTD,112666
North East Lincolnshire Council,http://statistics.data.gov.uk/id/local-authority/00FC),Chief Executive,Director Of Economy & Growth,Hps-Disabled Fac. Grants,Cap Grants To O/Side Sources,Cap Grants To O/Side Sources,YJ101,3/29/2016,401446,5237.96,CAPITAL,OBAM LIFT SERVICES LTD,112666
North East Lincolnshire Council,http://statistics.data.gov.uk/id/local-authority/00FC),Chief Executive,Director Of Economy & Growth,Hps-Disabled Fac. Grants,Cap Grants To O/Side Sources,Cap Grants To O/Side Sources,YJ101,3/18/2016,399987,464.1,CAPITAL,SIMPKINS KENNY LTD,125083
North East Lincolnshire Council,http://statistics.data.gov.uk/id/local-authority/00FC),Chief Executive,Director Of Economy & Growth,Hps-Disabled Fac. Grants,Cap Grants To O/Side Sources,Cap Grants To O/Side Sources,YJ101,3/22/2016,400024,5234,CAPITAL,P G INGOLDBY & SONS LTD,100591
North East Lincolnshire Council,http://statistics.data.gov.uk/id/local-authority/00FC),Chief Executive,Director Of Economy & Growth,Hps-Disabled Fac. Grants,Cap Grants To O/Side Sources,Cap Grants To O/Side Sources,YJ101,3/15/2016,399409,12799.2,CAPITAL,MARK BENNETT,101838
North East Lincolnshire Council,http://statistics.data.gov.uk/id/local-authority/00FC),Chief Executive,Director Of Economy & Growth,Hps-Disabled Fac. Grants,Cap Grants To O/Side Sources,Cap Grants To O/Side Sources,YJ101,3/15/2016,399410,6240,CAPITAL,MARK BENNETT,101838
North East Lincolnshire Council,http://statistics.data.gov.uk/id/local-authority/00FC),Chief Executive,Director Of Economy & Growth,Hps-Disabled Fac. Grants,Cap Grants To O/Side Sources,Cap Grants To O/Side Sources,YJ101,3/24/2016,401709,1605,CAPITAL,OBAM LIFT SERVICES LTD,112666
North East Lincolnshire Council,http://statistics.data.gov.uk/id/local-authority/00FC),Chief Executive,Director Of Economy & Growth,Hps-Disabled Fac. Grants,Cap Grants To O/Side Sources,Cap Grants To O/Side Sources,YJ101,3/18/2016,399618,4223.16,CAPITAL,OBAM LIFT SERVICES LTD,112666
North East Lincolnshire Council,http://statistics.data.gov.uk/id/local-authority/00FC),Chief Executive,Director Of Economy & Growth,Hps-Disabled Fac. Grants,Cap Grants To O/Side Sources,Cap Grants To O/Side Sources,YJ101,3/21/2016,399692,7122.36,CAPITAL,MEARS LTD,102433
North East Lincolnshire Council,http://statistics.data.gov.uk/id/local-authority/00FC),Chief Executive,Director Of Economy & Growth,Hps-Disabled Fac. Grants,Cap Grants To O/Side Sources,Cap Grants To O/Side Sources,YJ101,3/22/2016,400682,9428.5,CAPITAL,VIC HANSEN BUILDING & JOINERY LTD,103981
North East Lincolnshire Council,http://statistics.data.gov.uk/id/local-authority/00FC),Chief Executive,Director Of Economy & Growth,Hps-Disabled Fac. Grants,Cap Grants To O/Side Sources,Cap Grants To O/Side Sources,YJ101,3/29/2016,402418,5693,CAPITAL,MARK BENNETT,101838
North East Lincolnshire Council,http://statistics.data.gov.uk/id/local-authority/00FC),Chief Executive,Director Of Economy & Growth,Hps-Disabled Fac. Grants,Cap Grants To O/Side Sources,Cap Grants To O/Side Sources,YJ101,3/7/2016,397861,3273.82,CAPITAL,OBAM LIFT SERVICES LTD,112666
North East Lincolnshire Council,http://statistics.data.gov.uk/id/local-authority/00FC),Chief Executive,Director Of Economy & Growth,Hps-Disabled Fac. Grants,Cap Grants To O/Side Sources,Cap Grants To O/Side Sources,YJ101,3/18/2016,399632,4067.25,CAPITAL,TOTAL HYGIENE LTD,100849
North East Lincolnshire Council,http://statistics.data.gov.uk/id/local-authority/00FC),Chief Executive,Director Of Economy & Growth,Hps-Disabled Fac. Grants,Cap Grants To O/Side Sources,Cap Grants To O/Side Sources,YJ101,3/29/2016,401871,5156.42,CAPITAL,TOPCON CONSTRUCTION LTD,108462
North East Lincolnshire Council,http://statistics.data.gov.uk/id/local-authority/00FC),Chief Executive,Director Of Economy & Growth,Hps-Disabled Fac. Grants,Cap Grants To O/Side Sources,Cap Grants To O/Side Sources,YJ101,3/31/2016,402518,855.8,CAPITAL,TOPCON CONSTRUCTION LTD,108462
North East Lincolnshire Council,http://statistics.data.gov.uk/id/local-authority/00FC),Chief Executive,Director Of Economy & Growth,Hps-Disabled Fac. Grants,Cap Grants To O/Side Sources,Cap Grants To O/Side Sources,YJ101,3/31/2016,402517,2981.42,CAPITAL,COFELY WORKPLACE LIMITED,123983
North East Lincolnshire Council,http://statistics.data.gov.uk/id/local-authority/00FC),Chief Executive,Director Of Economy & Growth,Local Transport Plan Schemes,Cap Infrastr-Build Enh Wrk,Cap Infrastr-Build Enh Wrk,YC102,3/18/2016,400025,816.09,CAPITAL,SPECIALIST SURFACING LIMITED,100579
North East Lincolnshire Council,http://statistics.data.gov.uk/id/local-authority/00FC),Chief Executive,Director Of Economy & Growth,Local Transport Plan Schemes,Cap Land/Build-Build Enh Wrk,Cap Land/Build-Build Enh Wrk,YA102,3/21/2016,400151,6538.26,CAPITAL,ESS SYSTEMS LTD,116642
North East Lincolnshire Council,http://statistics.data.gov.uk/id/local-authority/00FC),Chief Executive,Director Of Economy & Growth,Local Transport Plan Schemes,Cap Land/Build-Build Enh Wrk,Cap Land/Build-Build Enh Wrk,YA102,3/21/2016,400152,1722,CAPITAL,ESS SYSTEMS LTD,116642
North East Lincolnshire Council,http://statistics.data.gov.uk/id/local-authority/00FC),Chief Executive,Director Of Economy & Growth,Local Transport Plan Schemes,Cap Infrastr-Build Enh Wrk,Cap Infrastr-Build Enh Wrk,YC102,3/21/2016,400666,537.43,CAPITAL,SPECIALIST SURFACING LIMITED,100579
North East Lincolnshire Council,http://statistics.data.gov.uk/id/local-authority/00FC),Chief Executive,Director Of Economy & Growth,Local Transport Plan Schemes,Cap Land/Build-Build Enh Wrk,Cap Land/Build-Build Enh Wrk,YA102,3/31/2016,402496,828.18,CAPITAL,C E SMITH & SONS,104444
North East Lincolnshire Council,http://statistics.data.gov.uk/id/local-authority/00FC),Chief Executive,Director Of Economy & Growth,Local Transport Plan Schemes,Cap Land/Build-Build Enh Wrk,Cap Land/Build-Build Enh Wrk,YA102,3/21/2016,400836,366.63,CAPITAL,NORTHERN POWERGRID (YORKSHIRE) PLC,108328
North East Lincolnshire Council,http://statistics.data.gov.uk/id/local-authority/00FC),Chief Executive,Director Of Economy & Growth,Local Transport Plan Schemes,Cap Land/Build-Build Enh Wrk,Cap Land/Build-Build Enh Wrk,YA102,3/22/2016,400719,557.82,CAPITAL,J MCCANN & CO LTD,100841
North East Lincolnshire Council,http://statistics.data.gov.uk/id/local-authority/00FC),Chief Executive,Director Of Economy & Growth,Local Transport Plan Schemes,Cap Land/Build-Build Enh Wrk,Cap Land/Build-Build Enh Wrk,YA102,3/15/2016,399418,38743.69,CAPITAL,DEREK LEWIS LTD,108385
North East Lincolnshire Council,http://statistics.data.gov.uk/id/local-authority/00FC),Chief Executive,Director Of Economy & Growth,Local Transport Plan Schemes,Cap Land/Build-Build Enh Wrk,Cap Land/Build-Build Enh Wrk,YA102,3/21/2016,400842,389.99,CAPITAL,NORTHERN POWERGRID (YORKSHIRE) PLC,108328
North East Lincolnshire Council,http://statistics.data.gov.uk/id/local-authority/00FC),Chief Executive,Director Of Economy & Growth,Local Transport Plan Schemes,Cap Land/Build-Build Enh Wrk,Cap Land/Build-Build Enh Wrk,YA102,3/21/2016,400843,389.99,CAPITAL,NORTHERN POWERGRID (YORKSHIRE) PLC,108328
North East Lincolnshire Council,http://statistics.data.gov.uk/id/local-authority/00FC),Chief Executive,Director Of Economy & Growth,Local Transport Plan Schemes,Cap Land/Build-Build Enh Wrk,Cap Land/Build-Build Enh Wrk,YA102,3/21/2016,400847,1169.97,CAPITAL,NORTHERN POWERGRID (YORKSHIRE) PLC,108328
North East Lincolnshire Council,http://statistics.data.gov.uk/id/local-authority/00FC),Chief Executive,Director Of Economy & Growth,Local Transport Plan Schemes,Cap Land/Build-Build Enh Wrk,Cap Land/Build-Build Enh Wrk,YA102,3/22/2016,400719,1552.04,CAPITAL,J MCCANN & CO LTD,100841
North East Lincolnshire Council,http://statistics.data.gov.uk/id/local-authority/00FC),Chief Executive,Director Of Economy & Growth,Local Transport Plan Schemes,Cap Infrastr-Purchase,Cap Infrastr-Purchase,YC101,3/14/2016,398677,980.47,CAPITAL,WALTONS PUBLICATIONS LTD,128186
North East Lincolnshire Council,http://statistics.data.gov.uk/id/local-authority/00FC),Chief Executive,Director Of Economy & Growth,Local Transport Plan Schemes,Cap Infrastr-Build Enh Wrk,Cap Infrastr-Build Enh Wrk,YC102,3/8/2016,398224,1575,CAPITAL,CLUGSTON SURVEY SERVICES,105668
North East Lincolnshire Council,http://statistics.data.gov.uk/id/local-authority/00FC),Chief Executive,Director Of Economy & Growth,Local Transport Plan Schemes,Cap Infrastr-Build Enh Wrk,Cap Infrastr-Build Enh Wrk,YC102,3/3/2016,397402,380,CAPITAL,LINDSEY TREE SERVICES LTD,100981
North East Lincolnshire Council,http://statistics.data.gov.uk/id/local-authority/00FC),Chief Executive,Director Of Economy & Growth,Local Transport Plan Schemes,Cap Infrastr-Purchase,Cap Infrastr-Purchase,YC101,3/31/2016,402546,2500,CAPITAL,SUSTRANS LTD,133423
North East Lincolnshire Council,http://statistics.data.gov.uk/id/local-authority/00FC),Chief Executive,Director Of Economy & Growth,Local Transport Plan Schemes,Cap Infrastr-Prof Fees,Cap Infrastr-Prof Fees,YC103,3/22/2016,400265,846,CAPITAL,NATIONWIDE DATA COLLECTION,127290
North East Lincolnshire Council,http://statistics.data.gov.uk/id/local-authority/00FC),Chief Executive,Director Of Economy & Growth,Local Transport Plan Schemes,Cap Infrastr-Purchase,Cap Infrastr-Purchase,YC101,3/21/2016,400837,366.63,CAPITAL,NORTHERN POWERGRID (YORKSHIRE) PLC,108328
North East Lincolnshire Council,http://statistics.data.gov.uk/id/local-authority/00FC),Chief Executive,Director Of Economy & Growth,Local Transport Plan Schemes,Cap Infrastr-Purchase,Cap Infrastr-Purchase,YC101,3/22/2016,400719,3636.54,CAPITAL,J MCCANN & CO LTD,100841
North East Lincolnshire Council,http://statistics.data.gov.uk/id/local-authority/00FC),Chief Executive,Director Of Economy & Growth,Local Transport Plan Schemes,Cap Infrastr-Purchase,Cap Infrastr-Purchase,YC101,3/9/2016,398633,21238.9,CAPITAL,NIMBUS JOURNEY INFORMATION LTD,124772
North East Lincolnshire Council,http://statistics.data.gov.uk/id/local-authority/00FC),Chief Executive,Director Of Economy & Growth,Local Transport Plan Schemes,Cap Infrastr-Purchase,Cap Infrastr-Purchase,YC101,3/9/2016,398648,2544.5,CAPITAL,NIMBUS JOURNEY INFORMATION LTD,124772
North East Lincolnshire Council,http://statistics.data.gov.uk/id/local-authority/00FC),Chief Executive,Director Of Economy & Growth,Local Transport Plan Schemes,Cap Infrastr-Build Enh Wrk,Cap Infrastr-Build Enh Wrk,YC102,3/3/2016,397515,4346.32,CAPITAL,SPECIALIST SURFACING LIMITED,100579
North East Lincolnshire Council,http://statistics.data.gov.uk/id/local-authority/00FC),Chief Executive,Director Of Economy & Growth,Local Transport Plan Schemes,Cap Infrastr-Build Enh Wrk,Cap Infrastr-Build Enh Wrk,YC102,3/7/2016,397517,31197.58,CAPITAL,C R REYNOLDS (CONSTRUCTION) LTD,103021
North East Lincolnshire Council,http://statistics.data.gov.uk/id/local-authority/00FC),Chief Executive,Director Of Economy & Growth,Local Transport Plan Schemes,Cap Land/Build-Build Enh Wrk,Cap Land/Build-Build Enh Wrk,YA102,3/21/2016,398200,158753.97,CAPITAL,IMTECH TRAFFIC & INFRA UK LIMITED,129692
North East Lincolnshire Council,http://statistics.data.gov.uk/id/local-authority/00FC),Chief Executive,Director Of Economy & Growth,Local Transport Plan Schemes,Cap Land/Build-Build Enh Wrk,Cap Land/Build-Build Enh Wrk,YA102,3/7/2016,397860,4505,CAPITAL,ADVANTAGE TSC & D LTD,109136
North East Lincolnshire Council,http://statistics.data.gov.uk/id/local-authority/00FC),Chief Executive,Director Of Economy & Growth,Local Transport Plan Schemes,Cap Land/Build-Build Enh Wrk,Cap Land/Build-Build Enh Wrk,YA102,3/24/2016,401734,1001,CAPITAL,PELL FRISCHMANN CONSULTANTS,100880
North East Lincolnshire Council,http://statistics.data.gov.uk/id/local-authority/00FC),Chief Executive,Director Of Economy & Growth,Local Transport Plan Schemes,Cap Infrastr-Build Enh Wrk,Cap Infrastr-Build Enh Wrk,YC102,3/21/2016,400832,592.59,CAPITAL,NORTHERN POWERGRID (YORKSHIRE) PLC,108328
North East Lincolnshire Council,http://statistics.data.gov.uk/id/local-authority/00FC),Chief Executive,Director Of Economy & Growth,Local Transport Plan Schemes,Cap Infrastr-Build Enh Wrk,Cap Infrastr-Build Enh Wrk,YC102,3/21/2016,400841,389.99,CAPITAL,NORTHERN POWERGRID (YORKSHIRE) PLC,108328
North East Lincolnshire Council,http://statistics.data.gov.uk/id/local-authority/00FC),Chief Executive,Director Of Economy & Growth,Local Transport Plan Schemes,Cap Infrastr-Build Enh Wrk,Cap Infrastr-Build Enh Wrk,YC102,3/21/2016,400666,268.71,CAPITAL,SPECIALIST SURFACING LIMITED,100579
North East Lincolnshire Council,http://statistics.data.gov.uk/id/local-authority/00FC),Chief Executive,Director Of Economy & Growth,Local Transport Plan Schemes,Cap Land/Build-Build Enh Wrk,Cap Land/Build-Build Enh Wrk,YA102,3/14/2016,398949,20906.4,CAPITAL,DEREK LEWIS LTD,108385
North East Lincolnshire Council,http://statistics.data.gov.uk/id/local-authority/00FC),Chief Executive,Director Of Economy & Growth,Local Transport Plan Schemes,Cap Infrastr-Build Enh Wrk,Cap Infrastr-Build Enh Wrk,YC102,3/18/2016,398913,8189.1,CAPITAL,P H CONSTRUCTION SERVICES LTD,102107
North East Lincolnshire Council,http://statistics.data.gov.uk/id/local-authority/00FC),Chief Executive,Director Of Economy & Growth,Housing Assist Grants And Loan,Cap Grants To O/Side Sources,Cap Grants To O/Side Sources,YJ101,3/21/2016,400613,7610.4,CAPITAL,ETON-LINCS LIMITED,101510
North East Lincolnshire Council,http://statistics.data.gov.uk/id/local-authority/00FC),Chief Executive,Director Of Economy & Growth,Housing Assist Grants And Loan,Cap Grants To O/Side Sources,Cap Grants To O/Side Sources,YJ101,3/10/2016,398904,1518.48,CAPITAL,COFELY WORKPLACE LIMITED,123983
North East Lincolnshire Council,http://statistics.data.gov.uk/id/local-authority/00FC),Chief Executive,Director Of Economy & Growth,Housing Assist Grants And Loan,Cap Grants To O/Side Sources,Cap Grants To O/Side Sources,YJ101,3/10/2016,398144,1287.67,CAPITAL,COFELY WORKPLACE LIMITED,123983
North East Lincolnshire Council,http://statistics.data.gov.uk/id/local-authority/00FC),Chief Executive,Director Of Economy & Growth,Housing Assist Grants And Loan,Cap Grants To O/Side Sources,Cap Grants To O/Side Sources,YJ101,3/21/2016,400612,6768,CAPITAL,ETON-LINCS LIMITED,101510
North East Lincolnshire Council,http://statistics.data.gov.uk/id/local-authority/00FC),Chief Executive,Director Of Economy & Growth,Housing Assist Grants And Loan,Cap Grants To O/Side Sources,Cap Grants To O/Side Sources,YJ101,3/21/2016,399694,4869,CAPITAL,VIC HANSEN BUILDING & JOINERY LTD,103981
North East Lincolnshire Council,http://statistics.data.gov.uk/id/local-authority/00FC),Chief Executive,Director Of Economy & Growth,Housing Assist Grants And Loan,Cap Grants To O/Side Sources,Cap Grants To O/Side Sources,YJ101,3/3/2016,397892,2472,CAPITAL,MAYNE GAS HEATING LTD,101861
North East Lincolnshire Council,http://statistics.data.gov.uk/id/local-authority/00FC),Chief Executive,Director Of Economy & Growth,Housing Assist Grants And Loan,Cap Grants To O/Side Sources,Cap Grants To O/Side Sources,YJ101,3/14/2016,399408,3540,CAPITAL,DEAN WILLETT & SONS,101982
North East Lincolnshire Council,http://statistics.data.gov.uk/id/local-authority/00FC),Chief Executive,Director Of Economy & Growth,Housing Assist Grants And Loan,Cap Grants To O/Side Sources,Cap Grants To O/Side Sources,YJ101,3/10/2016,398144,3226.83,CAPITAL,COFELY WORKPLACE LIMITED,123983
North East Lincolnshire Council,http://statistics.data.gov.uk/id/local-authority/00FC),Chief Executive,Director Of Economy & Growth,Housing Assist Grants And Loan,Cap Grants To O/Side Sources,Cap Grants To O/Side Sources,YJ101,3/3/2016,397467,360,CAPITAL,LOCAL WORLD LIMITED,118774
North East Lincolnshire Council,http://statistics.data.gov.uk/id/local-authority/00FC),Chief Executive,Director Of Economy & Growth,Derelict Land & Comm Prop,Cap Grants To O/Side Sources,Cap Grants To O/Side Sources,YJ101,3/10/2016,398904,12987.45,CAPITAL,COFELY WORKPLACE LIMITED,123983
North East Lincolnshire Council,http://statistics.data.gov.uk/id/local-authority/00FC),Chief Executive,Director Of Economy & Growth,Derelict Land & Comm Prop,Cap Grants To O/Side Sources,Cap Grants To O/Side Sources,YJ101,3/10/2016,398144,3226.83,CAPITAL,COFELY WORKPLACE LIMITED,123983
North East Lincolnshire Council,http://statistics.data.gov.uk/id/local-authority/00FC),Chief Executive,Director Of Economy & Growth,Derelict Land & Comm Prop,Cap Grants To O/Side Sources,Cap Grants To O/Side Sources,YJ101,3/9/2016,398685,635.53,CAPITAL,KES BUILDING MAINTENANCE LIMITED,100786
North East Lincolnshire Council,http://statistics.data.gov.uk/id/local-authority/00FC),Chief Executive,Director Of Economy & Growth,A18 - A180 Link Road,Cap Infrastr-Build Enh Wrk,Cap Infrastr-Build Enh Wrk,YC102,3/22/2016,400719,12263.39,CAPITAL,J MCCANN & CO LTD,100841
North East Lincolnshire Council,http://statistics.data.gov.uk/id/local-authority/00FC),Chief Executive,Director Of Economy & Growth,Cartergate Access Scheme,Cap Land/Build-Prof Fees,Cap Land/Build-Prof Fees,YA103,3/7/2016,389632,-382.57,CAPITAL,NORTHERN POWERGRID (YORKSHIRE) PLC,108328
North East Lincolnshire Council,http://statistics.data.gov.uk/id/local-authority/00FC),Chief Executive,Director Of Economy & Growth,Victoria Mills,Cap Land/Build-Build Enh Wrk,Cap Land/Build-Build Enh Wrk,YA102,3/22/2016,401278,900,CAPITAL,BESA GROUP,133502
North East Lincolnshire Council,http://statistics.data.gov.uk/id/local-authority/00FC),Chief Executive,Director Of Economy & Growth,Victoria Mills,Cap Land/Build-Build Enh Wrk,Cap Land/Build-Build Enh Wrk,YA102,3/22/2016,401168,391.95,CAPITAL,ENGIE SERVICES LTD,133267
North East Lincolnshire Council,http://statistics.data.gov.uk/id/local-authority/00FC),Chief Executive,Director Of Economy & Growth,Victoria Mills,Cap Land/Build-Build Enh Wrk,Cap Land/Build-Build Enh Wrk,YA102,3/21/2016,400751,1900,CAPITAL,GRADE 3 LIMITED,101924
North East Lincolnshire Council,http://statistics.data.gov.uk/id/local-authority/00FC),Chief Executive,Director Of Economy & Growth,Victoria Mills,Cap Land/Build-Build Enh Wrk,Cap Land/Build-Build Enh Wrk,YA102,3/1/2016,397400,1350,CAPITAL,HOLIDAY INN EXPRESS GRIMSBY,133151
North East Lincolnshire Council,http://statistics.data.gov.uk/id/local-authority/00FC),Chief Executive,Director Of Economy & Growth,Victoria Mills,Cap Land/Build-Build Enh Wrk,Cap Land/Build-Build Enh Wrk,YA102,3/8/2016,398484,1050,CAPITAL,HOLIDAY INN EXPRESS GRIMSBY,133151
North East Lincolnshire Council,http://statistics.data.gov.uk/id/local-authority/00FC),Chief Executive,Director Of Economy & Growth,Victoria Mills,Cap Land/Build-Build Enh Wrk,Cap Land/Build-Build Enh Wrk,YA102,3/15/2016,399411,1875,CAPITAL,HOLIDAY INN EXPRESS GRIMSBY,133151
North East Lincolnshire Council,http://statistics.data.gov.uk/id/local-authority/00FC),Chief Executive,Director Of Economy & Growth,Victoria Mills,Cap Land/Build-Build Enh Wrk,Cap Land/Build-Build Enh Wrk,YA102,3/22/2016,400673,2100,CAPITAL,HOLIDAY INN EXPRESS GRIMSBY,133151
North East Lincolnshire Council,http://statistics.data.gov.uk/id/local-authority/00FC),Chief Executive,Director Of Economy & Growth,Victoria Mills,Cap Land/Build-Build Enh Wrk,Cap Land/Build-Build Enh Wrk,YA102,3/29/2016,402542,2100,CAPITAL,HOLIDAY INN EXPRESS GRIMSBY,133151
North East Lincolnshire Council,http://statistics.data.gov.uk/id/local-authority/00FC),Chief Executive,Director Of Economy & Growth,Victoria Mills,Cap Land/Build-Prof Fees,Cap Land/Build-Prof Fees,YA103,3/8/2016,398244,10000,CAPITAL,COFELY WORKPLACE LIMITED,123983
North East Lincolnshire Council,http://statistics.data.gov.uk/id/local-authority/00FC),Chief Executive,Director Of Economy & Growth,Victoria Mills,Cap Land/Build-Prof Fees,Cap Land/Build-Prof Fees,YA103,3/8/2016,398245,20000,CAPITAL,COFELY WORKPLACE LIMITED,123983
North East Lincolnshire Council,http://statistics.data.gov.uk/id/local-authority/00FC),Chief Executive,Director Of Economy & Growth,Cartergate Office Development,Cap Land/Build-Build Enh Wrk,Cap Land/Build-Build Enh Wrk,YA102,3/22/2016,401181,12841.42,CAPITAL,ENGIE SERVICES LTD,133267
North East Lincolnshire Council,http://statistics.data.gov.uk/id/local-authority/00FC),Chief Executive,Director Of Economy & Growth,Cartergate Office Development,Cap Invest Prop-Build Enh Wrk,Cap Invest Prop-Build Enh Wrk,YE102,3/18/2016,400121,414938.1,CAPITAL,THE GELDER GROUP,103601
North East Lincolnshire Council,http://statistics.data.gov.uk/id/local-authority/00FC),Chief Executive,Director Of Economy & Growth,Cartergate Office Development,Cap Invest Prop-Prof Fees,Cap Invest Prop-Prof Fees,YE103,3/3/2016,397423,16800,CAPITAL,COFELY WORKPLACE LIMITED,123983
North East Lincolnshire Council,http://statistics.data.gov.uk/id/local-authority/00FC),Chief Executive,Director Of Economy & Growth,Cartergate Office Development,Cap Invest Prop-Prof Fees,Cap Invest Prop-Prof Fees,YE103,3/9/2016,398534,15000,CAPITAL,COFELY WORKPLACE LIMITED,123983
North East Lincolnshire Council,http://statistics.data.gov.uk/id/local-authority/00FC),Chief Executive,Director Of Economy & Growth,Cartergate Office Development,Cap Invest Prop-Prof Fees,Cap Invest Prop-Prof Fees,YE103,3/9/2016,398535,15000,CAPITAL,COFELY WORKPLACE LIMITED,123983
North East Lincolnshire Council,http://statistics.data.gov.uk/id/local-authority/00FC),Chief Executive,Director Of Economy & Growth,Town Centre Works Lep,Cap Land/Build-Build Enh Wrk,Cap Land/Build-Build Enh Wrk,YA102,3/3/2016,390779,517.4,CAPITAL,BT PAYPHONES RECEIVABLES,119376
North East Lincolnshire Council,http://statistics.data.gov.uk/id/local-authority/00FC),Chief Executive,Director Of Economy & Growth,Town Centre Works Lep,Cap Infrastr-Build Enh Wrk,Cap Infrastr-Build Enh Wrk,YC102,3/3/2016,390779,1825,CAPITAL,BT PAYPHONES RECEIVABLES,119376
North East Lincolnshire Council,http://statistics.data.gov.uk/id/local-authority/00FC),Chief Executive,Director Of Economy & Growth,Town Centre Works Lep,Cap Infrastr-Build Enh Wrk,Cap Infrastr-Build Enh Wrk,YC102,3/9/2016,397528,1770.6,CAPITAL,CLEAR CHANNEL UK LTD,101851
North East Lincolnshire Council,http://statistics.data.gov.uk/id/local-authority/00FC),Chief Executive,Director Of Economy & Growth,Town Centre Works Lep,Cap Infrastr-Build Enh Wrk,Cap Infrastr-Build Enh Wrk,YC102,3/9/2016,397531,1770.6,CAPITAL,CLEAR CHANNEL UK LTD,101851
North East Lincolnshire Council,http://statistics.data.gov.uk/id/local-authority/00FC),Chief Executive,Director Of Economy & Growth,Town Centre Works Lep,Cap Infrastr-Build Enh Wrk,Cap Infrastr-Build Enh Wrk,YC102,3/9/2016,397534,1770.6,CAPITAL,CLEAR CHANNEL UK LTD,101851
North East Lincolnshire Council,http://statistics.data.gov.uk/id/local-authority/00FC),Chief Executive,Director Of Economy & Growth,Town Centre Works Lep,Cap Infrastr-Build Enh Wrk,Cap Infrastr-Build Enh Wrk,YC102,3/22/2016,400130,177603.78,CAPITAL,PBS CONSTRUCTION (NORTH EAST) LTD,127459
North East Lincolnshire Council,http://statistics.data.gov.uk/id/local-authority/00FC),Chief Executive,Director Of Economy & Growth,Town Centre Works Lep,Cap Infrastr-Prof Fees,Cap Infrastr-Prof Fees,YC103,3/3/2016,397422,67872,CAPITAL,COFELY WORKPLACE LIMITED,123983
North East Lincolnshire Council,http://statistics.data.gov.uk/id/local-authority/00FC),Chief Executive,Director Of Economy & Growth,Car Pk Ticket Machine Upgrade,Cap Land/Build-Build Enh Wrk,Cap Land/Build-Build Enh Wrk,YA102,3/22/2016,400719,1189.53,CAPITAL,J MCCANN & CO LTD,100841
North East Lincolnshire Council,http://statistics.data.gov.uk/id/local-authority/00FC),Chief Executive,Director Of Finance,Accountancy,Print Stationery / Gen Off Exp,Advertising,LD104,3/31/2016,402467,282.54,REVENUE,LOCAL WORLD LIMITED,118774
North East Lincolnshire Council,http://statistics.data.gov.uk/id/local-authority/00FC),Chief Executive,Director Of Finance,Accountancy,Communications And Computing,Computer S/Ware - Licences,LF103,3/8/2016,397807,730,REVENUE,INSIGHT DIRECT (UK) LTD,101011
North East Lincolnshire Council,http://statistics.data.gov.uk/id/local-authority/00FC),Chief Executive,Director Of Finance,Accountancy,Grants And Subscriptions,Subscriptions,LJ101,3/29/2016,402488,4040,REVENUE,CIPFA,100518
North East Lincolnshire Council,http://statistics.data.gov.uk/id/local-authority/00FC),Chief Executive,Director Of Finance,Accountancy,Grants And Subscriptions,Subscriptions,LJ101,3/31/2016,402453,5720,REVENUE,CIPFA BUSINESS LIMITED,102338
North East Lincolnshire Council,http://statistics.data.gov.uk/id/local-authority/00FC),Chief Executive,Director Of Finance,Chief Exec & Support,Grants And Subscriptions,Subscriptions,LJ101,3/18/2016,400251,595,REVENUE,HEMMING GROUP LIMITED,104412
North East Lincolnshire Council,http://statistics.data.gov.uk/id/local-authority/00FC),Chief Executive,Director Of Finance,Chief Exec & Support,Contributions To Provisions,Contributions - Communities,LK101,3/22/2016,401249,500,REVENUE,FRESHNEY FORWARD,119346
North East Lincolnshire Council,http://statistics.data.gov.uk/id/local-authority/00FC),Chief Executive,Director Of Finance,Chief Exec & Support,Contributions To Provisions,Contributions - Third Sector,LK102,3/8/2016,398566,400,REVENUE,WILLOWS COMMUNITY CHURCH,104491
North East Lincolnshire Council,http://statistics.data.gov.uk/id/local-authority/00FC),Chief Executive,Director Of Finance,Chief Exec & Support,Contributions To Provisions,Contributions - Third Sector,LK102,3/9/2016,398489,500,REVENUE,CARE 4 ALL LTD,111733
North East Lincolnshire Council,http://statistics.data.gov.uk/id/local-authority/00FC),Chief Executive,Director Of Finance,Chief Exec & Support,Contributions To Provisions,Contributions - Third Sector,LK102,3/8/2016,398502,400,REVENUE,BISHOP KING CENTRE,128861
North East Lincolnshire Council,http://statistics.data.gov.uk/id/local-authority/00FC),Chief Executive,Director Of Finance,Chief Exec & Support,Contributions To Provisions,Contributions - Third Sector,LK102,3/21/2016,400757,500,REVENUE,FRESHNEY FORWARD,108886
North East Lincolnshire Council,http://statistics.data.gov.uk/id/local-authority/00FC),Chief Executive,Director Of Finance,Chief Exec & Support,Contributions To Provisions,Contributions - Third Sector,LK102,3/9/2016,398506,500,REVENUE,GREAT COATES PARISH COUNCIL,101474
North East Lincolnshire Council,http://statistics.data.gov.uk/id/local-authority/00FC),Chief Executive,Director Of Finance,Chief Exec & Support,Contributions To Provisions,Contributions - Third Sector,LK102,3/10/2016,398504,500,REVENUE,GRIMSBY IN BLOOM,109366
North East Lincolnshire Council,http://statistics.data.gov.uk/id/local-authority/00FC),Chief Executive,Director Of Finance,Chief Exec & Support,Contributions To Provisions,Contributions - Third Sector,LK102,3/22/2016,401246,600,REVENUE,BELVIOR PARK RESIDENTS ASSOCIATION,124594
North East Lincolnshire Council,http://statistics.data.gov.uk/id/local-authority/00FC),Chief Executive,Director Of Finance,Chief Exec & Support,Contributions To Provisions,Contributions - Third Sector,LK102,3/22/2016,401245,800,REVENUE,HAVERSTOE WARD FORUM,129463
North East Lincolnshire Council,http://statistics.data.gov.uk/id/local-authority/00FC),Chief Executive,Director Of Finance,Chief Exec & Support,Contributions To Provisions,Contributions - Third Sector,LK102,3/22/2016,401253,500,REVENUE,GIVING YOUNG PEOPLE OPPORTUNITIES,111322
North East Lincolnshire Council,http://statistics.data.gov.uk/id/local-authority/00FC),Chief Executive,Director Of Finance,Chief Exec & Support,Contributions To Provisions,Contributions - Third Sector,LK102,3/22/2016,401244,400,REVENUE,FRIENDS OF HAVERSTOE PARK,109185
North East Lincolnshire Council,http://statistics.data.gov.uk/id/local-authority/00FC),Chief Executive,Director Of Finance,Chief Exec & Support,Contributions To Provisions,Contributions - Third Sector,LK102,3/22/2016,401247,250,REVENUE,ST PETERS CHURCH,108092
North East Lincolnshire Council,http://statistics.data.gov.uk/id/local-authority/00FC),Chief Executive,Director Of Finance,Chief Exec & Support,Contributions To Provisions,Contributions - Third Sector,LK102,3/8/2016,398570,720,REVENUE,FIGHT MINISTRY,133336
North East Lincolnshire Council,http://statistics.data.gov.uk/id/local-authority/00FC),Chief Executive,Director Of Finance,Chief Exec & Support,Contributions To Provisions,Contributions - Third Sector,LK102,3/22/2016,401241,500,REVENUE,FRIENDS OF HUMBERSTON PARK SPECIAL SCHOOL,133510
North East Lincolnshire Council,http://statistics.data.gov.uk/id/local-authority/00FC),Chief Executive,Director Of Finance,Chief Exec & Support,Contributions To Provisions,Contributions - Third Sector,LK102,3/8/2016,398568,750,REVENUE,GET HOOKED ON POSITIVE ACTIVITIES,111758
North East Lincolnshire Council,http://statistics.data.gov.uk/id/local-authority/00FC),Chief Executive,Director Of Finance,Chief Exec & Support,Contributions To Provisions,Contributions - Third Sector,LK102,3/10/2016,398496,524,REVENUE,GRIMSBY TOWN FOOTBALL IN THE COMMUNITY,100978
North East Lincolnshire Council,http://statistics.data.gov.uk/id/local-authority/00FC),Chief Executive,Director Of Finance,Chief Exec & Support,Contributions To Provisions,Contributions - Third Sector,LK102,3/9/2016,398564,500,REVENUE,IMMINGHAM MUSEUM,101101
North East Lincolnshire Council,http://statistics.data.gov.uk/id/local-authority/00FC),Chief Executive,Director Of Finance,Chief Exec & Support,Contributions To Provisions,Contributions - Third Sector,LK102,3/9/2016,398487,500,REVENUE,LACEBY IN BLOOM,133330
North East Lincolnshire Council,http://statistics.data.gov.uk/id/local-authority/00FC),Chief Executive,Director Of Finance,Chief Exec & Support,Contributions To Provisions,Contributions - Third Sector,LK102,3/9/2016,398562,2000,REVENUE,ONE VOICE,133335
North East Lincolnshire Council,http://statistics.data.gov.uk/id/local-authority/00FC),Chief Executive,Director Of Finance,Chief Exec & Support,Contributions To Provisions,Contributions - Third Sector,LK102,3/9/2016,398561,250,REVENUE,ONE VOICE,133334
North East Lincolnshire Council,http://statistics.data.gov.uk/id/local-authority/00FC),Chief Executive,Director Of Finance,Chief Exec & Support,Contributions To Provisions,Contributions - Third Sector,LK102,3/10/2016,398495,1000,REVENUE,GRIMSBY IN BLOOM,109366
North East Lincolnshire Council,http://statistics.data.gov.uk/id/local-authority/00FC),Chief Executive,Director Of Finance,Chief Exec & Support,Contributions To Provisions,Contributions - Third Sector,LK102,3/10/2016,398493,250,REVENUE,JOHN HARRISON FOUNDATION,128431
North East Lincolnshire Council,http://statistics.data.gov.uk/id/local-authority/00FC),Chief Executive,Director Of Finance,Chief Exec & Support,Contributions To Provisions,Contributions - Third Sector,LK102,3/10/2016,398492,930,REVENUE,NAVIGO,104262
North East Lincolnshire Council,http://statistics.data.gov.uk/id/local-authority/00FC),Chief Executive,Director Of Finance,Chief Exec & Support,Contributions To Provisions,Contributions - Third Sector,LK102,3/7/2016,398170,500,REVENUE,PARK WARD ACTION GROUP,125194
North East Lincolnshire Council,http://statistics.data.gov.uk/id/local-authority/00FC),Chief Executive,Director Of Finance,Chief Exec & Support,Contributions To Provisions,Contributions - Third Sector,LK102,3/10/2016,398491,500,REVENUE,CARE 4 ALL LTD,111733
North East Lincolnshire Council,http://statistics.data.gov.uk/id/local-authority/00FC),Chief Executive,Director Of Finance,Chief Exec & Support,Contributions To Provisions,Contributions - Third Sector,LK102,3/10/2016,398555,600,REVENUE,SCARTHO COMMUNITY GARDEN,133333
North East Lincolnshire Council,http://statistics.data.gov.uk/id/local-authority/00FC),Chief Executive,Director Of Finance,Chief Exec & Support,Contributions To Provisions,Contributions - Third Sector,LK102,3/10/2016,398556,600,REVENUE,SPRINGFIELD PRIMARY ACADEMY,131306
North East Lincolnshire Council,http://statistics.data.gov.uk/id/local-authority/00FC),Chief Executive,Director Of Finance,Chief Exec & Support,Contributions To Provisions,Contributions - Third Sector,LK102,3/10/2016,398549,300,REVENUE,BARCROFT STREET NEIGHBOURHOOD,108322
North East Lincolnshire Council,http://statistics.data.gov.uk/id/local-authority/00FC),Chief Executive,Director Of Finance,Chief Exec & Support,Contributions To Provisions,Contributions - Third Sector,LK102,3/8/2016,398552,500,REVENUE,CLEELINCS NEIGHBOURHOOD FORUM,109043
North East Lincolnshire Council,http://statistics.data.gov.uk/id/local-authority/00FC),Chief Executive,Director Of Finance,Chief Exec & Support,Contributions To Provisions,Contributions - Third Sector,LK102,3/9/2016,398551,300,REVENUE,COLLEGE STREET NEIGHBOURHOOD WATCH GROUP,121221
North East Lincolnshire Council,http://statistics.data.gov.uk/id/local-authority/00FC),Chief Executive,Director Of Finance,Chief Exec & Support,Contributions To Provisions,Contributions - Third Sector,LK102,3/8/2016,398505,300,REVENUE,DAUBNEY STREET NHWG,129840
North East Lincolnshire Council,http://statistics.data.gov.uk/id/local-authority/00FC),Chief Executive,Director Of Finance,Chief Exec & Support,Contributions To Provisions,Contributions - Third Sector,LK102,3/7/2016,398169,613,REVENUE,KDARS,131821
North East Lincolnshire Council,http://statistics.data.gov.uk/id/local-authority/00FC),Chief Executive,Director Of Finance,Chief Exec & Support,Contributions To Provisions,Contributions - Third Sector,LK102,3/8/2016,398503,300,REVENUE,PHELPS STREET NEIGHBOURHOOD WATCH GROUP,122274
North East Lincolnshire Council,http://statistics.data.gov.uk/id/local-authority/00FC),Chief Executive,Director Of Finance,Chief Exec & Support,Contributions To Provisions,Contributions - Third Sector,LK102,3/8/2016,398548,500,REVENUE,CENTRE4 LIMITED,126893
North East Lincolnshire Council,http://statistics.data.gov.uk/id/local-authority/00FC),Chief Executive,Director Of Finance,Chief Exec & Support,Contributions To Provisions,Contributions - Third Sector,LK102,3/29/2016,401148,492,REVENUE,THE GRANGE TOGETHER,111112
North East Lincolnshire Council,http://statistics.data.gov.uk/id/local-authority/00FC),Chief Executive,Director Of Finance,Chief Exec & Support,Contributions To Provisions,Contributions - Third Sector,LK102,3/8/2016,398547,500,REVENUE,GREEN FUTURES,102397
North East Lincolnshire Council,http://statistics.data.gov.uk/id/local-authority/00FC),Chief Executive,Director Of Finance,Chief Exec & Support,Contributions To Provisions,Contributions - Third Sector,LK102,3/10/2016,398490,2295.22,REVENUE,WALTHAM PARISH COUNCIL,100655
North East Lincolnshire Council,http://statistics.data.gov.uk/id/local-authority/00FC),Chief Executive,Director Of Finance,Chief Exec & Support,Contributions To Provisions,Contributions - Third Sector,LK102,3/10/2016,398499,500,REVENUE,GRIMSBY IN BLOOM,109366
North East Lincolnshire Council,http://statistics.data.gov.uk/id/local-authority/00FC),Chief Executive,Director Of Finance,Chief Exec & Support,Contributions To Provisions,Contributions - Third Sector,LK102,3/22/2016,401240,350,REVENUE,CREATIVE SUPPORT LTD,107198
North East Lincolnshire Council,http://statistics.data.gov.uk/id/local-authority/00FC),Chief Executive,Director Of Finance,Chief Exec & Support,Contributions To Provisions,Contributions - Third Sector,LK102,3/10/2016,398497,700,REVENUE,HEALING YOUNG PEOPLES COUNCIL,133332
North East Lincolnshire Council,http://statistics.data.gov.uk/id/local-authority/00FC),Chief Executive,Director Of Finance,Chief Exec & Support,Contributions To Provisions,Contributions - Third Sector,LK102,3/8/2016,398500,350,REVENUE,LACEBY PARISH COUNCIL,100657
North East Lincolnshire Council,http://statistics.data.gov.uk/id/local-authority/00FC),Chief Executive,Director Of Finance,Chief Exec & Support,Contributions To Provisions,Contributions - Third Sector,LK102,3/10/2016,398498,1000,REVENUE,THE STANFORD GROUP,131455
North East Lincolnshire Council,http://statistics.data.gov.uk/id/local-authority/00FC),Chief Executive,Director Of Finance,Chief Exec & Support,Contributions To Provisions,Contributions - Third Sector,LK102,3/9/2016,398488,700,REVENUE,ST MICHAELS CHURCH,133331
North East Lincolnshire Council,http://statistics.data.gov.uk/id/local-authority/00FC),Chief Executive,Director Of Finance,Chief Exec & Support,Car Allowances,Travel - Employees,JF101,3/17/2016,400357,890,REVENUE,CLICK TRAVEL,127476
North East Lincolnshire Council,http://statistics.data.gov.uk/id/local-authority/00FC),Chief Executive,Director Of Finance,Chief Exec & Support,Contributions To Provisions,Contributions - Communities,LK101,3/24/2016,401465,301.82,REVENUE,THOMAS FATTORINI LTD,106988
North East Lincolnshire Council,http://statistics.data.gov.uk/id/local-authority/00FC),Chief Executive,Director Of Finance,Chief Exec & Support,Contributions To Provisions,Contributions - Communities,LK101,3/24/2016,401466,310.42,REVENUE,THOMAS FATTORINI LTD,106988
North East Lincolnshire Council,http://statistics.data.gov.uk/id/local-authority/00FC),Chief Executive,Director Of Finance,Chief Exec & Support,Contributions To Provisions,Contributions - Communities,LK101,3/24/2016,401457,302.24,REVENUE,THOMAS FATTORINI LTD,106988
North East Lincolnshire Council,http://statistics.data.gov.uk/id/local-authority/00FC),Chief Executive,Director Of Finance,Chief Exec & Support,Private Contractors,Third Party Prov - Private,PH101,3/17/2016,400443,1113,REVENUE,CLICK TRAVEL,127476
North East Lincolnshire Council,http://statistics.data.gov.uk/id/local-authority/00FC),Chief Executive,Director Of Finance,Chief Exec & Support,Private Contractors,Third Party Prov - Private,PH101,3/17/2016,400445,614,REVENUE,CLICK TRAVEL,127476
North East Lincolnshire Council,http://statistics.data.gov.uk/id/local-authority/00FC),Chief Executive,Director Of Finance,Cfs Assets & Pc Programme,Rep Alterations Maint Building,Buildings - Repairs And Maint,GA102,3/22/2016,401279,340,REVENUE,ETON-LINCS LIMITED,101510
North East Lincolnshire Council,http://statistics.data.gov.uk/id/local-authority/00FC),Chief Executive,Director Of Finance,Cfs Assets & Pc Programme,Rates,Rates,GD101,3/21/2016,400798,3555.6,REVENUE,NORTH EAST LINCOLNSHIRE COUNCIL,100894
North East Lincolnshire Council,http://statistics.data.gov.uk/id/local-authority/00FC),Chief Executive,Director Of Finance,Cfs Assets & Pc Programme,Rep Alterations Maint Building,Buildings - Repairs And Maint,GA102,3/22/2016,401188,9570,REVENUE,ENGIE SERVICES LTD,133267
North East Lincolnshire Council,http://statistics.data.gov.uk/id/local-authority/00FC),Chief Executive,Director Of Finance,Cfs Assets & Pc Programme,Rep Alterations Maint Building,Buildings - Repairs And Maint,GA102,3/21/2016,400821,572,REVENUE,KES BUILDING MAINTENANCE LIMITED,100786
North East Lincolnshire Council,http://statistics.data.gov.uk/id/local-authority/00FC),Chief Executive,Director Of Finance,Cfs Assets & Pc Programme,Print Stationery / Gen Off Exp,Advertising,LD104,3/22/2016,400817,300,REVENUE,SCOTTS PROPERTY LLP,103513
North East Lincolnshire Council,http://statistics.data.gov.uk/id/local-authority/00FC),Chief Executive,Director Of Finance,Cfs Assets & Pc Programme,Private Contractors,Third Party Prov - Private,PH101,3/22/2016,401233,300,REVENUE,GRIMSBY & CLEETHORPES AREA,105052
North East Lincolnshire Council,http://statistics.data.gov.uk/id/local-authority/00FC),Chief Executive,Director Of Finance,Facilities Management,Water Services,Water,GE101,3/14/2016,398680,715,REVENUE,ANGLIAN WATER,100508
North East Lincolnshire Council,http://statistics.data.gov.uk/id/local-authority/00FC),Chief Executive,Director Of Finance,Facilities Management,Energy Costs,Electricity,GB102,3/17/2016,399499,1472.43,REVENUE,ASSOCIATED BRITISH PORTS,100834
North East Lincolnshire Council,http://statistics.data.gov.uk/id/local-authority/00FC),Chief Executive,Director Of Finance,Facilities Management,Energy Costs,Heating Fuel,GB103,3/15/2016,398220,332.5,REVENUE,CERTAS ENERGY,124794
North East Lincolnshire Council,http://statistics.data.gov.uk/id/local-authority/00FC),Chief Executive,Director Of Finance,Facilities Management,Energy Costs,Heating Fuel,GB103,3/15/2016,398219,665,REVENUE,CERTAS ENERGY,124794
North East Lincolnshire Council,http://statistics.data.gov.uk/id/local-authority/00FC),Chief Executive,Director Of Finance,Facilities Management,Water Services,Water,GE101,3/7/2016,398168,267.58,REVENUE,ANGLIAN WATER,100508
North East Lincolnshire Council,http://statistics.data.gov.uk/id/local-authority/00FC),Chief Executive,Director Of Finance,Facilities Management,Energy Costs,Electricity,GB102,3/21/2016,400068,400.18,REVENUE,OLD CLEE PRIMARY ACADEMY,119822
North East Lincolnshire Council,http://statistics.data.gov.uk/id/local-authority/00FC),Chief Executive,Director Of Finance,Facilities Management,Energy Costs,Electricity,GB102,3/22/2016,401285,371.16,REVENUE,OLD CLEE PRIMARY ACADEMY,119822
North East Lincolnshire Council,http://statistics.data.gov.uk/id/local-authority/00FC),Chief Executive,Director Of Finance,Facilities Management,Rents,Rent,GC101,3/22/2016,401363,1250,REVENUE,THE GRIMSBY INSTITUTE OF FURTHER,102742
North East Lincolnshire Council,http://statistics.data.gov.uk/id/local-authority/00FC),Chief Executive,Director Of Finance,Facilities Management,Rents,Rent,GC101,3/22/2016,401364,1250,REVENUE,THE GRIMSBY INSTITUTE OF FURTHER,102742
North East Lincolnshire Council,http://statistics.data.gov.uk/id/local-authority/00FC),Chief Executive,Director Of Finance,Facilities Management,Rents,Service Charge,GC102,3/22/2016,401363,1100,REVENUE,THE GRIMSBY INSTITUTE OF FURTHER,102742
North East Lincolnshire Council,http://statistics.data.gov.uk/id/local-authority/00FC),Chief Executive,Director Of Finance,Facilities Management,Rents,Service Charge,GC102,3/22/2016,401364,1100,REVENUE,THE GRIMSBY INSTITUTE OF FURTHER,102742
North East Lincolnshire Council,http://statistics.data.gov.uk/id/local-authority/00FC),Chief Executive,Director Of Finance,Commercial Estate,Cleaning And Domestic Supplies,Refuse Collection,GH104,3/17/2016,399932,293.34,REVENUE,BELL WASTE CONTROL,101433
North East Lincolnshire Council,http://statistics.data.gov.uk/id/local-authority/00FC),Chief Executive,Director Of Finance,Commercial Estate,Cleaning And Domestic Supplies,Refuse Collection,GH104,3/17/2016,399933,306.34,REVENUE,BELL WASTE CONTROL,101433
North East Lincolnshire Council,http://statistics.data.gov.uk/id/local-authority/00FC),Chief Executive,Director Of Finance,Commercial Estate,Cleaning And Domestic Supplies,Refuse Collection,GH104,3/17/2016,400079,254.34,REVENUE,BELL WASTE CONTROL,101433
North East Lincolnshire Council,http://statistics.data.gov.uk/id/local-authority/00FC),Chief Executive,Director Of Finance,Commercial Estate,Cleaning And Domestic Supplies,Refuse Collection,GH104,3/22/2016,401361,409.32,REVENUE,BELL WASTE CONTROL,101433
North East Lincolnshire Council,http://statistics.data.gov.uk/id/local-authority/00FC),Chief Executive,Director Of Finance,Commercial Estate,Water Services,Water,GE101,3/8/2016,398569,1713.52,REVENUE,GRIMSBY SHOPPING CENTRE LTD (BMO REAL ESTATE,131809
North East Lincolnshire Council,http://statistics.data.gov.uk/id/local-authority/00FC),Chief Executive,Director Of Finance,Commercial Estate,Energy Costs,Electricity,GB102,3/29/2016,401318,5549.63,REVENUE,BOURNE LEISURE LTD,109336
North East Lincolnshire Council,http://statistics.data.gov.uk/id/local-authority/00FC),Chief Executive,Director Of Finance,Commercial Estate,Energy Costs,Electricity,GB102,3/22/2016,401317,4950.13,REVENUE,BOURNE LEISURE LTD,109336
North East Lincolnshire Council,http://statistics.data.gov.uk/id/local-authority/00FC),Chief Executive,Director Of Finance,Commercial Estate,Rents,Rent,GC101,3/17/2016,399946,2562.5,REVENUE,ASSOCIATED BRITISH PORTS,100834
North East Lincolnshire Council,http://statistics.data.gov.uk/id/local-authority/00FC),Chief Executive,Director Of Finance,Comm & Strategic Support Unit,Indirect Employee Expenses,Staff Training,EB122,3/10/2016,399194,4900,REVENUE,KNOWLEDGEBRIEF LTD,133296
North East Lincolnshire Council,http://statistics.data.gov.uk/id/local-authority/00FC),Chief Executive,Director Of Finance,Comm & Strategic Support Unit,Indirect Employee Expenses,Staff Training,EB122,3/31/2016,402514,265,REVENUE,ACT NOW TRAINING LTD,118744
North East Lincolnshire Council,http://statistics.data.gov.uk/id/local-authority/00FC),Chief Executive,Director Of Finance,Comm & Strategic Support Unit,Print Stationery / Gen Off Exp,Advertising,LD104,3/3/2016,397170,250,REVENUE,DIVERSIFIED BUSINESS COMMUNICATIONS UK,133095
North East Lincolnshire Council,http://statistics.data.gov.uk/id/local-authority/00FC),Chief Executive,Director Of Economy & Growth,Environment,Consultancy,Consultancy,PL101,3/31/2016,387045,7900,REVENUE,COFELY WORKPLACE LIMITED,123983
North East Lincolnshire Council,http://statistics.data.gov.uk/id/local-authority/00FC),Chief Executive,Director Of Economy & Growth,Environment,Consultancy,Consultancy,PL101,3/31/2016,387045,9900,REVENUE,COFELY WORKPLACE LIMITED,123983
North East Lincolnshire Council,http://statistics.data.gov.uk/id/local-authority/00FC),Chief Executive,Director Of Economy & Growth,Discovery Centre,Equip / Furniture / Materials,Equipment - Purchase,LA101,3/9/2016,398582,254.89,REVENUE,SYLVESTER-KEAL LTD,100593
North East Lincolnshire Council,http://statistics.data.gov.uk/id/local-authority/00FC),Chief Executive,Director Of Economy & Growth,Discovery Centre,Equip / Furniture / Materials,Equipment - Purchase,LA101,3/9/2016,398576,331.21,REVENUE,SYLVESTER-KEAL LTD,100593
North East Lincolnshire Council,http://statistics.data.gov.uk/id/local-authority/00FC),Chief Executive,Director Of Economy & Growth,Discovery Centre,Equip / Furniture / Materials,Goods For Resale,LA123,3/9/2016,398600,363.4,REVENUE,HULLEYS FROZEN,102551
North East Lincolnshire Council,http://statistics.data.gov.uk/id/local-authority/00FC),Chief Executive,Director Of Economy & Growth,Discovery Centre,Equip / Furniture / Materials,Goods For Resale,LA123,3/9/2016,398604,322.48,REVENUE,ROBINSON FARM SHOP (WALTHAM) LTD,119467
North East Lincolnshire Council,http://statistics.data.gov.uk/id/local-authority/00FC),Chief Executive,Director Of Economy & Growth,Discovery Centre,Equip / Furniture / Materials,Goods For Resale,LA123,3/9/2016,398596,326.7,REVENUE,R W STOKES & SONS LTD,123706
North East Lincolnshire Council,http://statistics.data.gov.uk/id/local-authority/00FC),Chief Executive,Director Of Economy & Growth,Discovery Centre,Equip / Furniture / Materials,Goods For Resale,LA123,3/9/2016,398521,553.42,REVENUE,JOHN TURNER,100921
North East Lincolnshire Council,http://statistics.data.gov.uk/id/local-authority/00FC),Chief Executive,Director Of Economy & Growth,Museums & N F Heritage Centre,Equip / Furniture / Materials,Equipment - Purchase,LA101,3/21/2016,400811,5225,REVENUE,NEWGLAZE,100642
North East Lincolnshire Council,http://statistics.data.gov.uk/id/local-authority/00FC),Chief Executive,Director Of Economy & Growth,Museums & N F Heritage Centre,Equip / Furniture / Materials,Equipment - Purchase,LA101,3/24/2016,401877,3438,REVENUE,CALLMAC SCAFFOLDING UK LTD,102659
North East Lincolnshire Council,http://statistics.data.gov.uk/id/local-authority/00FC),Chief Executive,Director Of Economy & Growth,Museums & N F Heritage Centre,Equip / Furniture / Materials,Equipment - Purchase,LA101,3/29/2016,401192,1151.54,REVENUE,ENGIE SERVICES LTD,133267
North East Lincolnshire Council,http://statistics.data.gov.uk/id/local-authority/00FC),Chief Executive,Director Of Economy & Growth,Museums & N F Heritage Centre,Equip / Furniture / Materials,Equipment - Purchase,LA101,3/24/2016,400123,1500,REVENUE,WYN DAVIES 5201 CONSULTANCY LTD,133365
North East Lincolnshire Council,http://statistics.data.gov.uk/id/local-authority/00FC),Chief Executive,Director Of Economy & Growth,Museums & N F Heritage Centre,Grants And Subscriptions,Subscriptions,LJ101,3/21/2016,400204,411,REVENUE,VISIT ENGLAND,103673
North East Lincolnshire Council,http://statistics.data.gov.uk/id/local-authority/00FC),Chief Executive,Director Of Economy & Growth,Tourist Information Centre,Private Contractors,Third Party Prov - Private,PH101,3/14/2016,399384,256,REVENUE,GRIMSBY AUDITORIUM,128160
North East Lincolnshire Council,http://statistics.data.gov.uk/id/local-authority/00FC),Chief Executive,Director Of Economy & Growth,Tourist Information Centre,Private Contractors,Third Party Prov - Private,PH101,3/14/2016,399385,688,REVENUE,GRIMSBY AUDITORIUM,128160
North East Lincolnshire Council,http://statistics.data.gov.uk/id/local-authority/00FC),Chief Executive,Director Of Economy & Growth,Tourist Information Centre,Private Contractors,Third Party Prov - Private,PH101,3/14/2016,399383,493.5,REVENUE,GRIMSBY AUDITORIUM,128160
North East Lincolnshire Council,http://statistics.data.gov.uk/id/local-authority/00FC),Chief Executive,Director Of Economy & Growth,Tourist Information Centre,Private Contractors,Third Party Prov - Private,PH101,3/14/2016,399386,411,REVENUE,GRIMSBY AUDITORIUM,128160
North East Lincolnshire Council,http://statistics.data.gov.uk/id/local-authority/00FC),Chief Executive,Director Of Economy & Growth,Tourist Information Centre,Private Contractors,Third Party Prov - Private,PH101,3/14/2016,399387,964,REVENUE,GRIMSBY AUDITORIUM,128160
North East Lincolnshire Council,http://statistics.data.gov.uk/id/local-authority/00FC),Chief Executive,Director Of Economy & Growth,Tourist Information Centre,Private Contractors,Third Party Prov - Private,PH101,3/22/2016,400859,1343,REVENUE,THE CAXTON PLAYERS,129590
North East Lincolnshire Council,http://statistics.data.gov.uk/id/local-authority/00FC),Chief Executive,Director Of Economy & Growth,Tourist Information Centre,Private Contractors,Third Party Prov - Private,PH101,3/17/2016,399425,1456.5,REVENUE,THE CAXTON PLAYERS,129590
North East Lincolnshire Council,http://statistics.data.gov.uk/id/local-authority/00FC),Chief Executive,Director Of Economy & Growth,Tourist Information Centre,Private Contractors,Third Party Prov - Private,PH101,3/22/2016,401136,428.5,REVENUE,THE CAXTON PLAYERS,129590
North East Lincolnshire Council,http://statistics.data.gov.uk/id/local-authority/00FC),Chief Executive,Director Of Economy & Growth,Tourist Information Centre,Private Contractors,Third Party Prov - Private,PH101,3/17/2016,399426,832.5,REVENUE,THE CAXTON PLAYERS,129590
North East Lincolnshire Council,http://statistics.data.gov.uk/id/local-authority/00FC),Chief Executive,Director Of Economy & Growth,Tourist Information Centre,Private Contractors,Third Party Prov - Private,PH101,3/21/2016,400856,281.5,REVENUE,GRIMSBY AUDITORIUM,128160
North East Lincolnshire Council,http://statistics.data.gov.uk/id/local-authority/00FC),Chief Executive,Director Of Economy & Growth,Tourist Information Centre,Private Contractors,Third Party Prov - Private,PH101,3/22/2016,400692,481,REVENUE,GRIMSBY AUDITORIUM,128160
North East Lincolnshire Council,http://statistics.data.gov.uk/id/local-authority/00FC),Chief Executive,Director Of Economy & Growth,Tourist Information Centre,Private Contractors,Third Party Prov - Private,PH101,3/17/2016,399429,303,REVENUE,GRIMSBY CENTRAL HALL TRUST,100882
North East Lincolnshire Council,http://statistics.data.gov.uk/id/local-authority/00FC),Chief Executive,Director Of Economy & Growth,Tourist Information Centre,Private Contractors,Third Party Prov - Private,PH101,3/21/2016,400578,1160.4,REVENUE,NATIONAL EXPRESS LTD,100835
North East Lincolnshire Council,http://statistics.data.gov.uk/id/local-authority/00FC),Chief Executive,Director Of Economy & Growth,Tourist Information Centre,Private Contractors,Third Party Prov - Private,PH101,3/21/2016,400577,1001.8,REVENUE,NATIONAL EXPRESS LTD,100835
North East Lincolnshire Council,http://statistics.data.gov.uk/id/local-authority/00FC),Chief Executive,Director Of Economy & Growth,Community Investment Team,Communications And Computing,Computer S/Ware - Maintenance,LF102,3/21/2016,400633,676.65,REVENUE,WELCOM DIGITAL LIMITED,104463
North East Lincolnshire Council,http://statistics.data.gov.uk/id/local-authority/00FC),Chief Executive,Director Of Economy & Growth,Community Investment Team,Private Contractors,Third Party Prov - Private,PH101,3/24/2016,400464,420,REVENUE,PROSPECT FARM COUNTRY COTTAGES,101297
North East Lincolnshire Council,http://statistics.data.gov.uk/id/local-authority/00FC),Chief Executive,Director Of Economy & Growth,Community Investment Team,Private Contractors,Third Party Prov - Private,PH101,3/8/2016,398323,656.25,REVENUE,NAVIGO,104262
North East Lincolnshire Council,http://statistics.data.gov.uk/id/local-authority/00FC),Chief Executive,Director Of Economy & Growth,Community Investment Team,Private Contractors,Third Party Prov - Private,PH101,3/8/2016,398324,656.25,REVENUE,NAVIGO,104262
North East Lincolnshire Council,http://statistics.data.gov.uk/id/local-authority/00FC),Chief Executive,Director Of Economy & Growth,Community Investment Team,Private Contractors,Third Party Prov - Private,PH101,3/8/2016,398325,931.3,REVENUE,LYNX POLYTHENE LTD,110149
North East Lincolnshire Council,http://statistics.data.gov.uk/id/local-authority/00FC),Chief Executive,Director Of Economy & Growth,Community Investment Team,Private Contractors,Third Party Prov - Private,PH101,3/18/2016,400215,6000,REVENUE,LINCS ELECTRICAL WHOLESALERS LTD,103116
North East Lincolnshire Council,http://statistics.data.gov.uk/id/local-authority/00FC),Chief Executive,Director Of Economy & Growth,Community Investment Team,Private Contractors,Third Party Prov - Private,PH101,3/7/2016,397813,1300,REVENUE,SCANIA (GREAT BRITAIN) LTD,101361
North East Lincolnshire Council,http://statistics.data.gov.uk/id/local-authority/00FC),Chief Executive,Director Of Economy & Growth,Community Investment Team,Private Contractors,Third Party Prov - Private,PH101,3/7/2016,396675,4995.22,REVENUE,SCANIA (GREAT BRITAIN) LTD,101361
North East Lincolnshire Council,http://statistics.data.gov.uk/id/local-authority/00FC),Chief Executive,Director Of Economy & Growth,Community Investment Team,Private Contractors,Third Party Prov - Private,PH101,3/18/2016,400212,-60,REVENUE,SCANIA (GREAT BRITAIN) LTD,101361
North East Lincolnshire Council,http://statistics.data.gov.uk/id/local-authority/00FC),Chief Executive,Director Of Economy & Growth,Community Investment Team,Private Contractors,Third Party Prov - Private,PH101,3/31/2016,402728,6199.55,REVENUE,SCANIA (GREAT BRITAIN) LTD,101361
North East Lincolnshire Council,http://statistics.data.gov.uk/id/local-authority/00FC),Chief Executive,Director Of Economy & Growth,Community Investment Team,Private Contractors,Third Party Prov - Private,PH101,3/1/2016,397369,1500,REVENUE,VOLUNTARY ACTION NORTH EAST LINCOLNSHIRE,103631
North East Lincolnshire Council,http://statistics.data.gov.uk/id/local-authority/00FC),Chief Executive,Director Of Economy & Growth,Community Investment Team,Other Agencies,Grants Pd Over To Third Party,PJ138,3/18/2016,400222,115485,REVENUE,GRIMSBY FISH DOCK ENTERPRISES LTD,110874
North East Lincolnshire Council,http://statistics.data.gov.uk/id/local-authority/00FC),Chief Executive,Director Of Economy & Growth,Community Investment Team,Other Agencies,Grants Pd Over To Third Party,PJ138,3/18/2016,400466,9651.76,REVENUE,GRAPHITENE LTD,131344
North East Lincolnshire Council,http://statistics.data.gov.uk/id/local-authority/00FC),Chief Executive,Director Of Economy & Growth,Community Investment Team,Other Agencies,Grants Pd Over To Third Party,PJ138,3/29/2016,402415,265957.82,REVENUE,YOUNGS SEAFOOD LTD,111391
North East Lincolnshire Council,http://statistics.data.gov.uk/id/local-authority/00FC),Chief Executive,Director Of Economy & Growth,Community Investment Team,Grants And Subscriptions,Subscriptions,LJ101,3/9/2016,398625,270,REVENUE,E-FACTOR ENTERPRISES,102010
North East Lincolnshire Council,http://statistics.data.gov.uk/id/local-authority/00FC),Chief Executive,Director Of Economy & Growth,Community Investment Team,Other Agencies,Grants Pd Over To Third Party,PJ138,3/24/2016,400846,3616.46,REVENUE,AGRIMIN LIMITED,130564
North East Lincolnshire Council,http://statistics.data.gov.uk/id/local-authority/00FC),Chief Executive,Director Of Economy & Growth,Community Investment Team,Other Agencies,Grants Pd Over To Third Party,PJ138,3/22/2016,400669,6751.54,REVENUE,BJB LIFT TRUCKS LTD,101173
North East Lincolnshire Council,http://statistics.data.gov.uk/id/local-authority/00FC),Chief Executive,Director Of Economy & Growth,Community Investment Team,Other Agencies,Grants Pd Over To Third Party,PJ138,3/9/2016,398752,3004.26,REVENUE,SHERWOOD PLASTIC PRODUCTS LTD,131472
North East Lincolnshire Council,http://statistics.data.gov.uk/id/local-authority/00FC),Chief Executive,Director Of Economy & Growth,Community Investment Team,Other Agencies,Grants Pd Over To Third Party,PJ138,3/10/2016,398970,103421.8,REVENUE,COLT HOLDINGS LTD,126616
North East Lincolnshire Council,http://statistics.data.gov.uk/id/local-authority/00FC),Chief Executive,Director Of Economy & Growth,Community Investment Team,Other Agencies,Grants Pd Over To Third Party,PJ138,3/3/2016,397637,3760.8,REVENUE,ROSINDALE & SONS LTD,131442
North East Lincolnshire Council,http://statistics.data.gov.uk/id/local-authority/00FC),Chief Executive,Director Of Economy & Growth,Community Investment Team,Other Agencies,Grants Pd Over To Third Party,PJ138,3/1/2016,397370,900,REVENUE,OLD CLEE BAKERY LIMITED,129963
North East Lincolnshire Council,http://statistics.data.gov.uk/id/local-authority/00FC),Chief Executive,Director Of Economy & Growth,Community Investment Team,Other Agencies,Grants Pd Over To Third Party,PJ138,3/14/2016,399405,1347,REVENUE,OLD CLEE BAKERY LIMITED,129963
North East Lincolnshire Council,http://statistics.data.gov.uk/id/local-authority/00FC),Chief Executive,Director Of Economy & Growth,Community Investment Team,Other Agencies,Grants Pd Over To Third Party,PJ138,3/14/2016,399327,17735.91,REVENUE,FAST-FORM SYSTEMS LTD,127598
North East Lincolnshire Council,http://statistics.data.gov.uk/id/local-authority/00FC),Chief Executive,Director Of Economy & Growth,Community Investment Team,Other Agencies,Grants Pd Over To Third Party,PJ138,3/10/2016,398969,12241.77,REVENUE,FOCUS PACKAGING & DESIGN lTD,132801
North East Lincolnshire Council,http://statistics.data.gov.uk/id/local-authority/00FC),Chief Executive,Director Of Economy & Growth,Community Investment Team,Other Agencies,Grants Pd Over To Third Party,PJ138,3/18/2016,400465,75000,REVENUE,ROLLITS LLP,112664
North East Lincolnshire Council,http://statistics.data.gov.uk/id/local-authority/00FC),Chief Executive,Director Of Economy & Growth,Community Investment Team,Other Agencies,Grants Pd Over To Third Party,PJ138,3/18/2016,400214,12998.28,REVENUE,TURNER & PRICE LTD,100893
North East Lincolnshire Council,http://statistics.data.gov.uk/id/local-authority/00FC),Chief Executive,Director Of Economy & Growth,Community Investment Team,Other Agencies,Grants Pd Over To Third Party,PJ138,3/24/2016,400668,11575.63,REVENUE,AGRIMIN LIMITED,130564
North East Lincolnshire Council,http://statistics.data.gov.uk/id/local-authority/00FC),Chief Executive,Director Of Economy & Growth,Community Investment Team,Other Agencies,Grants Pd Over To Third Party,PJ138,3/29/2016,402422,4744.13,REVENUE,CENTRAL INSULATIONS LTD,116570
North East Lincolnshire Council,http://statistics.data.gov.uk/id/local-authority/00FC),Chief Executive,Director Of Economy & Growth,Community Investment Team,Other Agencies,Grants Pd Over To Third Party,PJ138,3/29/2016,402416,38400,REVENUE,STEELRIDGE LTD,133413
North East Lincolnshire Council,http://statistics.data.gov.uk/id/local-authority/00FC),Chief Executive,Director Of Economy & Growth,Retained Function,Private Contractors,Third Party Prov - Private,PH101,3/31/2016,402491,2525.36,REVENUE,HUMBERSIDE MATERIALS LABORATORY LTD,122103
North East Lincolnshire Council,http://statistics.data.gov.uk/id/local-authority/00FC),Chief Executive,Director Of Economy & Growth,Retained Function,Car Allowances,Travel - Employees,JF101,3/17/2016,400446,614,REVENUE,CLICK TRAVEL,127476
North East Lincolnshire Council,http://statistics.data.gov.uk/id/local-authority/00FC),Chief Executive,Director Of Economy & Growth,Retained Function,Grants And Subscriptions,Subscriptions,LJ101,3/22/2016,398227,509,REVENUE,REDACTED PERSONAL INFORMATION,REDACTED PERSONAL INFORMATION
North East Lincolnshire Council,http://statistics.data.gov.uk/id/local-authority/00FC),Chief Executive,Director Of Economy & Growth,Retained Function,Grants And Subscriptions,Subscriptions,LJ101,3/21/2016,400693,520,REVENUE,HULL & HUMBER CHAMBER OF COMMERCE,102808
North East Lincolnshire Council,http://statistics.data.gov.uk/id/local-authority/00FC),Chief Executive,Director Of Economy & Growth,Retained Function,Miscellaneous Expenses,Legal Fees - General,LL103,3/29/2016,402490,606,REVENUE,GOSSCHALKS SOLICITORS,131768
North East Lincolnshire Council,http://statistics.data.gov.uk/id/local-authority/00FC),Chief Executive,Director Of Economy & Growth,Retained Function,Grants And Subscriptions,Subscriptions,LJ101,3/31/2016,402540,5000,REVENUE,BONDHOLDER SCHEME LTD,122925
North East Lincolnshire Council,http://statistics.data.gov.uk/id/local-authority/00FC),Chief Executive,Director Of Economy & Growth,Retained Function,Contributions To Provisions,Contributions - Other,LK103,3/29/2016,402420,5000,REVENUE,HULL CITY COUNCIL,119705
North East Lincolnshire Council,http://statistics.data.gov.uk/id/local-authority/00FC),Chief Executive,Director Of Economy & Growth,Retained Function,Private Contractors,Third Party Prov - Private,PH101,3/8/2016,397514,29083.19,REVENUE,EC SURFACING LTD,125951
North East Lincolnshire Council,http://statistics.data.gov.uk/id/local-authority/00FC),Chief Executive,Director Of Economy & Growth,Retained Function,Print Stationery / Gen Off Exp,Publicity,LD105,3/29/2016,402474,2072,REVENUE,E-FACTOR (NEL LTD),122549
North East Lincolnshire Council,http://statistics.data.gov.uk/id/local-authority/00FC),Chief Executive,Director Of Economy & Growth,Retained Function,Miscellaneous Expenses,Hospitality,LL112,3/18/2016,399487,250,REVENUE,BEST WESTERN OAKLANDS HALL HOTEL,125098
North East Lincolnshire Council,http://statistics.data.gov.uk/id/local-authority/00FC),Chief Executive,Director Of Economy & Growth,Retained Function,Private Contractors,Third Party Prov - Private,PH101,3/29/2016,402436,540,REVENUE,E-FACTOR ENTERPRISES,102010
North East Lincolnshire Council,http://statistics.data.gov.uk/id/local-authority/00FC),Chief Executive,Director Of Economy & Growth,Retained Function,Private Contractors,Third Party Prov - Private,PH101,3/8/2016,398243,25000,REVENUE,COFELY WORKPLACE LIMITED,123983
North East Lincolnshire Council,http://statistics.data.gov.uk/id/local-authority/00FC),Chief Executive,Director Of Economy & Growth,Retained Function,Private Contractors,Third Party Prov - Private,PH101,3/14/2016,399404,25000,REVENUE,COFELY WORKPLACE LIMITED,123983
North East Lincolnshire Council,http://statistics.data.gov.uk/id/local-authority/00FC),Chief Executive,Director Of Economy & Growth,In Scope Contract,Private Contractors,Contract Payments,PH105,3/14/2016,399324,86927.5,REVENUE,COFELY WORKPLACE LIMITED,123983
North East Lincolnshire Council,http://statistics.data.gov.uk/id/local-authority/00FC),Chief Executive,Director Of Economy & Growth,In Scope Contract,Private Contractors,Contract Payments,PH105,3/14/2016,399325,86927.5,REVENUE,COFELY WORKPLACE LIMITED,123983
North East Lincolnshire Council,http://statistics.data.gov.uk/id/local-authority/00FC),Chief Executive,Director Of Economy & Growth,In Scope Contract,Private Contractors,Contract Payments,PH105,3/14/2016,399324,288453.33,REVENUE,COFELY WORKPLACE LIMITED,123983
North East Lincolnshire Council,http://statistics.data.gov.uk/id/local-authority/00FC),Chief Executive,Director Of Economy & Growth,In Scope Contract,Private Contractors,Contract Payments,PH105,3/14/2016,399325,288453.33,REVENUE,COFELY WORKPLACE LIMITED,123983
North East Lincolnshire Council,http://statistics.data.gov.uk/id/local-authority/00FC),Chief Executive,Director Of Economy & Growth,In Scope Contract,Private Contractors,Contract Payments,PH105,3/14/2016,399324,13624.17,REVENUE,COFELY WORKPLACE LIMITED,123983
North East Lincolnshire Council,http://statistics.data.gov.uk/id/local-authority/00FC),Chief Executive,Director Of Economy & Growth,In Scope Contract,Private Contractors,Contract Payments,PH105,3/14/2016,399325,13624.17,REVENUE,COFELY WORKPLACE LIMITED,123983
North East Lincolnshire Council,http://statistics.data.gov.uk/id/local-authority/00FC),Chief Executive,Director Of Economy & Growth,In Scope Contract,Private Contractors,Contract Payments,PH105,3/14/2016,399324,459310,REVENUE,COFELY WORKPLACE LIMITED,123983
North East Lincolnshire Council,http://statistics.data.gov.uk/id/local-authority/00FC),Chief Executive,Director Of Economy & Growth,In Scope Contract,Private Contractors,Contract Payments,PH105,3/14/2016,399325,459310,REVENUE,COFELY WORKPLACE LIMITED,123983
North East Lincolnshire Council,http://statistics.data.gov.uk/id/local-authority/00FC),Chief Executive,Director Of Economy & Growth,In Scope Contract,Private Contractors,Contract Payments,PH105,3/14/2016,399324,5325,REVENUE,COFELY WORKPLACE LIMITED,123983
North East Lincolnshire Council,http://statistics.data.gov.uk/id/local-authority/00FC),Chief Executive,Director Of Economy & Growth,In Scope Contract,Private Contractors,Contract Payments,PH105,3/14/2016,399325,5325,REVENUE,COFELY WORKPLACE LIMITED,123983
North East Lincolnshire Council,http://statistics.data.gov.uk/id/local-authority/00FC),Chief Executive,Director Of Economy & Growth,In Scope Contract,Private Contractors,Contract Payments,PH105,3/14/2016,399324,69896.25,REVENUE,COFELY WORKPLACE LIMITED,123983
North East Lincolnshire Council,http://statistics.data.gov.uk/id/local-authority/00FC),Chief Executive,Director Of Economy & Growth,In Scope Contract,Private Contractors,Contract Payments,PH105,3/14/2016,399325,69896.25,REVENUE,COFELY WORKPLACE LIMITED,123983
North East Lincolnshire Council,http://statistics.data.gov.uk/id/local-authority/00FC),Chief Executive,Director Of Economy & Growth,In Scope Contract,Private Contractors,Contract Payments,PH105,3/14/2016,399324,34407.5,REVENUE,COFELY WORKPLACE LIMITED,123983
North East Lincolnshire Council,http://statistics.data.gov.uk/id/local-authority/00FC),Chief Executive,Director Of Economy & Growth,In Scope Contract,Private Contractors,Contract Payments,PH105,3/14/2016,399325,34407.5,REVENUE,COFELY WORKPLACE LIMITED,123983
North East Lincolnshire Council,http://statistics.data.gov.uk/id/local-authority/00FC),Chief Executive,Director Of Economy & Growth,Car Parks,Rates,Rates,GD101,3/14/2016,399159,16145.75,REVENUE,NORTH EAST LINCOLNSHIRE COUNCIL,100894
North East Lincolnshire Council,http://statistics.data.gov.uk/id/local-authority/00FC),Chief Executive,Director Of Economy & Growth,Car Parks,Rates,Rates,GD101,3/15/2016,399169,1296,REVENUE,NORTH EAST LINCOLNSHIRE COUNCIL,100894
North East Lincolnshire Council,http://statistics.data.gov.uk/id/local-authority/00FC),Chief Executive,Director Of Economy & Growth,Car Parks,Rates,Rates,GD101,3/15/2016,399201,11092.5,REVENUE,NORTH EAST LINCOLNSHIRE COUNCIL,100894
North East Lincolnshire Council,http://statistics.data.gov.uk/id/local-authority/00FC),Chief Executive,Director Of Economy & Growth,Car Parks,Rates,Rates,GD101,3/15/2016,399213,15159.75,REVENUE,NORTH EAST LINCOLNSHIRE COUNCIL,100894
North East Lincolnshire Council,http://statistics.data.gov.uk/id/local-authority/00FC),Chief Executive,Director Of Economy & Growth,Car Parks,Rates,Rates,GD101,3/15/2016,399173,2064,REVENUE,NORTH EAST LINCOLNSHIRE COUNCIL,100894
North East Lincolnshire Council,http://statistics.data.gov.uk/id/local-authority/00FC),Chief Executive,Director Of Economy & Growth,Car Parks,Rates,Rates,GD101,3/24/2016,400194,624,REVENUE,NORTH EAST LINCOLNSHIRE COUNCIL,100894
North East Lincolnshire Council,http://statistics.data.gov.uk/id/local-authority/00FC),Chief Executive,Director Of Economy & Growth,Car Parks,Rates,Rates,GD101,3/21/2016,400193,19350.25,REVENUE,NORTH EAST LINCOLNSHIRE COUNCIL,100894
North East Lincolnshire Council,http://statistics.data.gov.uk/id/local-authority/00FC),Chief Executive,Director Of Economy & Growth,Car Parks,Rates,Rates,GD101,3/15/2016,399202,6240,REVENUE,NORTH EAST LINCOLNSHIRE COUNCIL,100894
North East Lincolnshire Council,http://statistics.data.gov.uk/id/local-authority/00FC),Chief Executive,Director Of Economy & Growth,Car Parks,Rates,Rates,GD101,3/15/2016,399212,2256,REVENUE,NORTH EAST LINCOLNSHIRE COUNCIL,100894
North East Lincolnshire Council,http://statistics.data.gov.uk/id/local-authority/00FC),Chief Executive,Director Of Economy & Growth,Car Parks,Rates,Rates,GD101,3/15/2016,399211,1704,REVENUE,NORTH EAST LINCOLNSHIRE COUNCIL,100894
North East Lincolnshire Council,http://statistics.data.gov.uk/id/local-authority/00FC),Chief Executive,Director Of Economy & Growth,Car Parks,Rates,Rates,GD101,3/15/2016,399207,1440,REVENUE,NORTH EAST LINCOLNSHIRE COUNCIL,100894
North East Lincolnshire Council,http://statistics.data.gov.uk/id/local-authority/00FC),Chief Executive,Director Of Economy & Growth,Car Parks,Rates,Rates,GD101,3/15/2016,399208,3264,REVENUE,NORTH EAST LINCOLNSHIRE COUNCIL,100894
North East Lincolnshire Council,http://statistics.data.gov.uk/id/local-authority/00FC),Chief Executive,Director Of Economy & Growth,Car Parks,Rates,Rates,GD101,3/15/2016,399209,3504,REVENUE,NORTH EAST LINCOLNSHIRE COUNCIL,100894
North East Lincolnshire Council,http://statistics.data.gov.uk/id/local-authority/00FC),Chief Executive,Director Of Economy & Growth,Car Parks,Rates,Rates,GD101,3/21/2016,400195,19473.5,REVENUE,NORTH EAST LINCOLNSHIRE COUNCIL,100894
North East Lincolnshire Council,http://statistics.data.gov.uk/id/local-authority/00FC),Chief Executive,Director Of Economy & Growth,Car Parks,Rates,Rates,GD101,3/15/2016,399210,12325,REVENUE,NORTH EAST LINCOLNSHIRE COUNCIL,100894
North East Lincolnshire Council,http://statistics.data.gov.uk/id/local-authority/00FC),Chief Executive,Director Of Economy & Growth,Car Parks,Rates,Rates,GD101,3/10/2016,398966,600,REVENUE,NORTH EAST LINCOLNSHIRE COUNCIL,100894
North East Lincolnshire Council,http://statistics.data.gov.uk/id/local-authority/00FC),Chief Executive,Director Of Economy & Growth,Car Parks,Rates,Rates,GD101,3/10/2016,398977,2640,REVENUE,NORTH EAST LINCOLNSHIRE COUNCIL,100894
North East Lincolnshire Council,http://statistics.data.gov.uk/id/local-authority/00FC),Chief Executive,Director Of Economy & Growth,Car Parks,Rates,Rates,GD101,3/14/2016,399157,480,REVENUE,NORTH EAST LINCOLNSHIRE COUNCIL,100894
North East Lincolnshire Council,http://statistics.data.gov.uk/id/local-authority/00FC),Chief Executive,Director Of Economy & Growth,Car Parks,Rates,Rates,GD101,3/15/2016,399167,696,REVENUE,NORTH EAST LINCOLNSHIRE COUNCIL,100894
North East Lincolnshire Council,http://statistics.data.gov.uk/id/local-authority/00FC),Chief Executive,Director Of Economy & Growth,Car Parks,Rates,Rates,GD101,3/15/2016,399168,13927.25,REVENUE,NORTH EAST LINCOLNSHIRE COUNCIL,100894
North East Lincolnshire Council,http://statistics.data.gov.uk/id/local-authority/00FC),Chief Executive,Director Of Economy & Growth,Car Parks,Rates,Rates,GD101,3/15/2016,399170,5640,REVENUE,NORTH EAST LINCOLNSHIRE COUNCIL,100894
North East Lincolnshire Council,http://statistics.data.gov.uk/id/local-authority/00FC),Chief Executive,Director Of Economy & Growth,Car Parks,Rates,Rates,GD101,3/15/2016,399172,2112,REVENUE,NORTH EAST LINCOLNSHIRE COUNCIL,100894
North East Lincolnshire Council,http://statistics.data.gov.uk/id/local-authority/00FC),Chief Executive,Director Of Economy & Growth,Car Parks,Rates,Rates,GD101,3/15/2016,399171,2976,REVENUE,NORTH EAST LINCOLNSHIRE COUNCIL,100894
North East Lincolnshire Council,http://statistics.data.gov.uk/id/local-authority/00FC),Chief Executive,Director Of Economy & Growth,Car Parks,Rates,Rates,GD101,3/15/2016,399205,259.2,REVENUE,NORTH EAST LINCOLNSHIRE COUNCIL,100894
North East Lincolnshire Council,http://statistics.data.gov.uk/id/local-authority/00FC),Chief Executive,Director Of Economy & Growth,Car Parks,Rates,Rates,GD101,3/15/2016,399206,936,REVENUE,NORTH EAST LINCOLNSHIRE COUNCIL,100894
North East Lincolnshire Council,http://statistics.data.gov.uk/id/local-authority/00FC),Chief Executive,Director Of Economy & Growth,Car Parks,Water Services,Water,GE101,3/21/2016,400144,393.99,REVENUE,ANGLIAN WATER,100508
North East Lincolnshire Council,http://statistics.data.gov.uk/id/local-authority/00FC),Chief Executive,Director Of Economy & Growth,Highways Dso,Dlo Holding,Depot Fuel Holding Account,LM101,3/8/2016,398223,14096.58,REVENUE,CERTAS ENERGY,124794
North East Lincolnshire Council,http://statistics.data.gov.uk/id/local-authority/00FC),Chief Executive,Director Of Economy & Growth,Highways Dso,Dlo Holding,Depot Fuel Holding Account,LM101,3/29/2016,401850,14608.18,REVENUE,CERTAS ENERGY,124794
North East Lincolnshire Council,http://statistics.data.gov.uk/id/local-authority/00FC),Chief Executive,Director Of Economy & Growth,Highways Dso,Dlo Holding,Depot Fuel Holding Account,LM101,3/29/2016,401849,841.75,REVENUE,CERTAS ENERGY,124794
North East Lincolnshire Council,http://statistics.data.gov.uk/id/local-authority/00FC),Chief Executive,Director Of Economy & Growth,Private Sector Housing,Private Contractors,Third Party Prov - Private,PH101,3/24/2016,400269,2900,REVENUE,DERBY CITY COUNCIL,115014
North East Lincolnshire Council,http://statistics.data.gov.uk/id/local-authority/00FC),Chief Executive,Director Of Economy & Growth,Street Lighting,Private Contractors,Third Party Prov - Private,PH101,3/21/2016,400844,562.64,REVENUE,NORTHERN POWERGRID (YORKSHIRE) PLC,108328
North East Lincolnshire Council,http://statistics.data.gov.uk/id/local-authority/00FC),Chief Executive,Director Of Economy & Growth,Street Lighting,Private Contractors,Third Party Prov - Private,PH101,3/22/2016,400719,4230.76,REVENUE,J MCCANN & CO LTD,100841
North East Lincolnshire Council,http://statistics.data.gov.uk/id/local-authority/00FC),Chief Executive,Director Of Economy & Growth,Street Lighting,Rep Alterations Maint Building,Street Lighting-General Maint,GA111,3/22/2016,400719,4533.7,REVENUE,J MCCANN & CO LTD,100841
North East Lincolnshire Council,http://statistics.data.gov.uk/id/local-authority/00FC),Chief Executive,Director Of Economy & Growth,Street Lighting,Rep Alterations Maint Building,Traffic Signs / Signals,GA113,3/22/2016,400719,4590.97,REVENUE,J MCCANN & CO LTD,100841
North East Lincolnshire Council,http://statistics.data.gov.uk/id/local-authority/00FC),Chief Executive,Director Of Economy & Growth,Street Lighting,Private Contractors,Third Party Prov - Private,PH101,3/22/2016,400719,519.85,REVENUE,J MCCANN & CO LTD,100841
North East Lincolnshire Council,http://statistics.data.gov.uk/id/local-authority/00FC),Chief Executive,Director Of Economy & Growth,Street Lighting,Rep Alterations Maint Building,Street Lighting - Energy,GA110,3/21/2016,400636,1192.59,REVENUE,NPOWER YORKSHIRE LTD,101525
North East Lincolnshire Council,http://statistics.data.gov.uk/id/local-authority/00FC),Chief Executive,Director Of Economy & Growth,Street Lighting,Rep Alterations Maint Building,Street Lighting-General Maint,GA111,3/22/2016,400719,9505.54,REVENUE,J MCCANN & CO LTD,100841
North East Lincolnshire Council,http://statistics.data.gov.uk/id/local-authority/00FC),Chief Executive,Director Of Economy & Growth,Street Lighting,Rep Alterations Maint Building,Street Lighting-General Maint,GA111,3/22/2016,400719,823.31,REVENUE,J MCCANN & CO LTD,100841
North East Lincolnshire Council,http://statistics.data.gov.uk/id/local-authority/00FC),Chief Executive,Director Of Economy & Growth,Street Lighting,Rep Alterations Maint Building,Street Lighting-General Maint,GA111,3/21/2016,400833,389.99,REVENUE,NORTHERN POWERGRID (YORKSHIRE) PLC,108328
North East Lincolnshire Council,http://statistics.data.gov.uk/id/local-authority/00FC),Chief Executive,Director Of Economy & Growth,Street Lighting,Rep Alterations Maint Building,Street Lighting-General Maint,GA111,3/21/2016,400834,389.99,REVENUE,NORTHERN POWERGRID (YORKSHIRE) PLC,108328
North East Lincolnshire Council,http://statistics.data.gov.uk/id/local-authority/00FC),Chief Executive,Director Of Economy & Growth,Street Lighting,Rep Alterations Maint Building,Street Lighting-General Maint,GA111,3/21/2016,400835,779.98,REVENUE,NORTHERN POWERGRID (YORKSHIRE) PLC,108328
North East Lincolnshire Council,http://statistics.data.gov.uk/id/local-authority/00FC),Chief Executive,Director Of Economy & Growth,Street Lighting,Rep Alterations Maint Building,Street Lighting-General Maint,GA111,3/21/2016,400838,389.99,REVENUE,NORTHERN POWERGRID (YORKSHIRE) PLC,108328
North East Lincolnshire Council,http://statistics.data.gov.uk/id/local-authority/00FC),Chief Executive,Director Of Economy & Growth,Street Lighting,Rep Alterations Maint Building,Street Lighting-General Maint,GA111,3/21/2016,400840,952.63,REVENUE,NORTHERN POWERGRID (YORKSHIRE) PLC,108328
North East Lincolnshire Council,http://statistics.data.gov.uk/id/local-authority/00FC),Chief Executive,Director Of Economy & Growth,Street Lighting,Rep Alterations Maint Building,Street Lighting-General Maint,GA111,3/21/2016,400848,389.99,REVENUE,NORTHERN POWERGRID (YORKSHIRE) PLC,108328
North East Lincolnshire Council,http://statistics.data.gov.uk/id/local-authority/00FC),Chief Executive,Director Of Economy & Growth,Street Lighting,Rep Alterations Maint Building,Street Light-Irrecoverable Dam,GA112,3/22/2016,400719,2098.79,REVENUE,J MCCANN & CO LTD,100841
North East Lincolnshire Council,http://statistics.data.gov.uk/id/local-authority/00FC),Chief Executive,Director Of Economy & Growth,Street Lighting,Rep Alterations Maint Building,Traffic Mgmt-Irrecoverable Dam,GA115,3/22/2016,400719,2786.59,REVENUE,J MCCANN & CO LTD,100841
North East Lincolnshire Council,http://statistics.data.gov.uk/id/local-authority/00FC),Chief Executive,Director Of Economy & Growth,Street Lighting,Rep Alterations Maint Building,Traffic Mgmt-Irrecoverable Dam,GA115,3/9/2016,398889,584.97,REVENUE,NORTHERN POWERGRID (YORKSHIRE) PLC,108328
North East Lincolnshire Council,http://statistics.data.gov.uk/id/local-authority/00FC),Chief Executive,Director Of Economy & Growth,Street Lighting,Rep Alterations Maint Building,Traffic Signs / Signals,GA113,3/22/2016,400719,4878.68,REVENUE,J MCCANN & CO LTD,100841
North East Lincolnshire Council,http://statistics.data.gov.uk/id/local-authority/00FC),Chief Executive,Director Of Economy & Growth,Street Lighting,Rep Alterations Maint Building,Traffic Signs / Signals,GA113,3/22/2016,400719,949.32,REVENUE,J MCCANN & CO LTD,100841
North East Lincolnshire Council,http://statistics.data.gov.uk/id/local-authority/00FC),Chief Executive,Director Of Economy & Growth,Street Lighting,Rep Alterations Maint Building,Traffic Signs / Signals,GA113,3/21/2016,400845,756.62,REVENUE,NORTHERN POWERGRID (YORKSHIRE) PLC,108328
North East Lincolnshire Council,http://statistics.data.gov.uk/id/local-authority/00FC),Chief Executive,Director Of Economy & Growth,Street Lighting,Private Contractors,Third Party Prov - Private,PH101,3/22/2016,400719,1159.63,REVENUE,J MCCANN & CO LTD,100841
North East Lincolnshire Council,http://statistics.data.gov.uk/id/local-authority/00FC),Chief Executive,Director Of Economy & Growth,Street Lighting,Private Contractors,Third Party Prov - Private,PH101,3/9/2016,398888,392.71,REVENUE,NORTHERN POWERGRID (YORKSHIRE) PLC,108328
North East Lincolnshire Council,http://statistics.data.gov.uk/id/local-authority/00FC),Chief Executive,Director Of Economy & Growth,Street Lighting,Private Contractors,Third Party Prov - Private,PH101,3/9/2016,398890,883.73,REVENUE,NORTHERN POWERGRID (YORKSHIRE) PLC,108328
North East Lincolnshire Council,http://statistics.data.gov.uk/id/local-authority/00FC),Chief Executive,Director Of Economy & Growth,Street Lighting,Private Contractors,Third Party Prov - Private,PH101,3/21/2016,400829,389.99,REVENUE,NORTHERN POWERGRID (YORKSHIRE) PLC,108328
North East Lincolnshire Council,http://statistics.data.gov.uk/id/local-authority/00FC),Chief Executive,Director Of Economy & Growth,Street Lighting,Private Contractors,Third Party Prov - Private,PH101,3/21/2016,400830,389.99,REVENUE,NORTHERN POWERGRID (YORKSHIRE) PLC,108328
North East Lincolnshire Council,http://statistics.data.gov.uk/id/local-authority/00FC),Chief Executive,Director Of Economy & Growth,Street Lighting,Private Contractors,Third Party Prov - Private,PH101,3/21/2016,400831,389.99,REVENUE,NORTHERN POWERGRID (YORKSHIRE) PLC,108328
North East Lincolnshire Council,http://statistics.data.gov.uk/id/local-authority/00FC),Chief Executive,Director Of Economy & Growth,Traffic Management,Private Contractors,Third Party Prov - Private,PH101,3/18/2016,399743,680,REVENUE,ONEWAY TM LIMITED,128602
North East Lincolnshire Council,http://statistics.data.gov.uk/id/local-authority/00FC),Chief Executive,Director Of Economy & Growth,Traffic Management,Private Contractors,Third Party Prov - Private,PH101,3/18/2016,399690,5060,REVENUE,J MCCANN & CO LTD,100841
North East Lincolnshire Council,http://statistics.data.gov.uk/id/local-authority/00FC),Chief Executive,Director Of Economy & Growth,Traffic Management,Private Contractors,Contract Payments,PH105,3/31/2016,402895,852,REVENUE,3M UNITED KINGDOM PLC,112724
North East Lincolnshire Council,http://statistics.data.gov.uk/id/local-authority/00FC),Chief Executive,Director Of Economy & Growth,Transport Policy,Private Contractors,Concessionary Fares,PH104,3/31/2016,402787,REDACTED COMMERCIALLY SENSITIVE ,REVENUE,GY CLPS & DISTRICT DIAL A RIDE,100980
North East Lincolnshire Council,http://statistics.data.gov.uk/id/local-authority/00FC),Chief Executive,Director Of Economy & Growth,Transport Policy,Private Contractors,Concessionary Fares,PH104,3/31/2016,402788,REDACTED COMMERCIALLY SENSITIVE ,REVENUE,GY CLPS & DISTRICT DIAL A RIDE,100980
North East Lincolnshire Council,http://statistics.data.gov.uk/id/local-authority/00FC),Chief Executive,Director Of Economy & Growth,Transport Policy,Private Contractors,Concessionary Fares,PH104,3/24/2016,401510,REDACTED COMMERCIALLY SENSITIVE ,REVENUE,AMVALE LIMITED,101030
North East Lincolnshire Council,http://statistics.data.gov.uk/id/local-authority/00FC),Chief Executive,Director Of Economy & Growth,Transport Policy,Private Contractors,Concessionary Fares,PH104,3/24/2016,401511,REDACTED COMMERCIALLY SENSITIVE ,REVENUE,AMVALE LIMITED,101030
North East Lincolnshire Council,http://statistics.data.gov.uk/id/local-authority/00FC),Chief Executive,Director Of Economy & Growth,Transport Policy,Private Contractors,Concessionary Fares,PH104,3/22/2016,400191,REDACTED COMMERCIALLY SENSITIVE ,REVENUE,GRAYSCROFT BUS SERVICES LIMITED,101786
North East Lincolnshire Council,http://statistics.data.gov.uk/id/local-authority/00FC),Chief Executive,Director Of Economy & Growth,Transport Policy,Private Contractors,Concessionary Fares,PH104,3/31/2016,402785,REDACTED COMMERCIALLY SENSITIVE ,REVENUE,GRAYSCROFT BUS SERVICES LIMITED,101786
North East Lincolnshire Council,http://statistics.data.gov.uk/id/local-authority/00FC),Chief Executive,Director Of Economy & Growth,Transport Policy,Private Contractors,Concessionary Fares,PH104,3/18/2016,400572,REDACTED COMMERCIALLY SENSITIVE ,REVENUE,F HUNT ( COACH HIRE) LTD,104034
North East Lincolnshire Council,http://statistics.data.gov.uk/id/local-authority/00FC),Chief Executive,Director Of Economy & Growth,Transport Policy,Private Contractors,Concessionary Fares,PH104,3/31/2016,402749,REDACTED COMMERCIALLY SENSITIVE ,REVENUE,F HUNT ( COACH HIRE) LTD,104034
North East Lincolnshire Council,http://statistics.data.gov.uk/id/local-authority/00FC),Chief Executive,Director Of Economy & Growth,Transport Policy,Private Contractors,Concessionary Fares,PH104,3/3/2016,397521,REDACTED COMMERCIALLY SENSITIVE ,REVENUE,NORTHERN RAIL LIMITED,101610
North East Lincolnshire Council,http://statistics.data.gov.uk/id/local-authority/00FC),Chief Executive,Director Of Economy & Growth,Transport Policy,Private Contractors,Concessionary Fares,PH104,3/21/2016,400764,REDACTED COMMERCIALLY SENSITIVE ,REVENUE,STAGECOACH SERVICES,101404
North East Lincolnshire Council,http://statistics.data.gov.uk/id/local-authority/00FC),Chief Executive,Director Of Economy & Growth,Transport Policy,Private Contractors,Concessionary Fares,PH104,3/24/2016,401730,REDACTED COMMERCIALLY SENSITIVE ,REVENUE,STAGECOACH SERVICES,101404
North East Lincolnshire Council,http://statistics.data.gov.uk/id/local-authority/00FC),Chief Executive,Director Of Economy & Growth,Transport Policy,Private Contractors,Subsidies,PH102,3/14/2016,398180,REDACTED COMMERCIALLY SENSITIVE ,REVENUE,BDRC CONTINENTAL LTD,131438
North East Lincolnshire Council,http://statistics.data.gov.uk/id/local-authority/00FC),Chief Executive,Director Of Economy & Growth,Transport Policy,Private Contractors,Subsidies,PH102,3/31/2016,402745,REDACTED COMMERCIALLY SENSITIVE ,REVENUE,STAGECOACH SERVICES,101404
North East Lincolnshire Council,http://statistics.data.gov.uk/id/local-authority/00FC),Chief Executive,Director Of Economy & Growth,Transport Policy,Private Contractors,Contract Payments,PH105,3/14/2016,399328,22881.86,REVENUE,ESSENTIAL FLEET SERVICES LTD,101159
North East Lincolnshire Council,http://statistics.data.gov.uk/id/local-authority/00FC),Chief Executive,Director Of Economy & Growth,Transport Policy,Private Contractors,Contract Payments,PH105,3/18/2016,400064,-122.9,REVENUE,ESSENTIAL FLEET SERVICES LTD,101159
North East Lincolnshire Council,http://statistics.data.gov.uk/id/local-authority/00FC),Chief Executive,Director Of Economy & Growth,Transport Policy,Private Contractors,Contract Payments,PH105,3/18/2016,400080,-35,REVENUE,ESSENTIAL FLEET SERVICES LTD,101159
North East Lincolnshire Council,http://statistics.data.gov.uk/id/local-authority/00FC),Chief Executive,Director Of Economy & Growth,Transport Policy,Private Contractors,Contract Payments,PH105,3/18/2016,400117,22237.86,REVENUE,ESSENTIAL FLEET SERVICES LTD,101159
North East Lincolnshire Council,http://statistics.data.gov.uk/id/local-authority/00FC),Chief Executive,Director Of Economy & Growth,Transport Policy,Private Contractors,Contract Payments,PH105,3/21/2016,400665,22876.56,REVENUE,ESSENTIAL FLEET SERVICES LTD,101159
North East Lincolnshire Council,http://statistics.data.gov.uk/id/local-authority/00FC),Chief Executive,Director Of Economy & Growth,Transport Policy,Consultancy,Consultancy,PL101,3/10/2016,398978,602,REVENUE,EAST RIDING OF YORKSHIRE COUNCIL,100654
North East Lincolnshire Council,http://statistics.data.gov.uk/id/local-authority/00FC),Chief Executive,Director Of Public Health,Drug / Alcohol Action Service,Private Contractors,Contract Payments,PH105,3/3/2016,397636,12500,REVENUE,FREELANCE NEEDLE EXCHANGE LIMITED,119999
North East Lincolnshire Council,http://statistics.data.gov.uk/id/local-authority/00FC),Chief Executive,Director Of Public Health,Drug / Alcohol Action Service,Private Contractors,Contract Payments,PH105,3/21/2016,399723,15833.33,REVENUE,FREELANCE NEEDLE EXCHANGE LIMITED,119999
North East Lincolnshire Council,http://statistics.data.gov.uk/id/local-authority/00FC),Chief Executive,Director Of Public Health,Drug / Alcohol Action Service,Private Contractors,Contract Payments,PH105,3/24/2016,401163,118583.33,REVENUE,CARE PLUS GROUP,106467
North East Lincolnshire Council,http://statistics.data.gov.uk/id/local-authority/00FC),Chief Executive,Director Of Public Health,Drug / Alcohol Action Service,Private Contractors,Contract Payments,PH105,3/3/2016,397478,33292.97,REVENUE,NHS BUSINESS SERVICES AUTHORITY,127751
North East Lincolnshire Council,http://statistics.data.gov.uk/id/local-authority/00FC),Chief Executive,Director Of Public Health,Drug / Alcohol Action Service,Private Contractors,Contract Payments,PH105,3/8/2016,397933,5549.4,REVENUE,BIRKWOOD MEDICAL CENTRE,120420
North East Lincolnshire Council,http://statistics.data.gov.uk/id/local-authority/00FC),Chief Executive,Director Of Public Health,Drug / Alcohol Action Service,Private Contractors,Contract Payments,PH105,3/10/2016,398947,587.59,REVENUE,DR I D S CHALMERS & DR V O MEIER,104521
North East Lincolnshire Council,http://statistics.data.gov.uk/id/local-authority/00FC),Chief Executive,Director Of Public Health,Drug / Alcohol Action Service,Private Contractors,Contract Payments,PH105,3/31/2016,402750,2928.85,REVENUE,BIRKWOOD MEDICAL CENTRE,120420
North East Lincolnshire Council,http://statistics.data.gov.uk/id/local-authority/00FC),Chief Executive,Director Of Public Health,Sexual Health,Contributions To Provisions,Contributions - Communities,LK101,3/3/2016,397903,4057.2,REVENUE,VIRGIN CARE SERVICES LTD,120538
North East Lincolnshire Council,http://statistics.data.gov.uk/id/local-authority/00FC),Chief Executive,Director Of Public Health,Sexual Health,Private Contractors,Contract Payments,PH105,3/3/2016,397902,66481.2,REVENUE,VIRGIN CARE SERVICES LTD,120538
North East Lincolnshire Council,http://statistics.data.gov.uk/id/local-authority/00FC),Chief Executive,Director Of Public Health,Sexual Health,Private Contractors,Contract Payments,PH105,3/3/2016,397905,55401,REVENUE,VIRGIN CARE SERVICES LTD,120538
North East Lincolnshire Council,http://statistics.data.gov.uk/id/local-authority/00FC),Chief Executive,Director Of Public Health,Sexual Health,Private Contractors,Contract Payments,PH105,3/21/2016,399697,55401,REVENUE,VIRGIN CARE SERVICES LTD,120538
North East Lincolnshire Council,http://statistics.data.gov.uk/id/local-authority/00FC),Chief Executive,Director Of Public Health,Sexual Health,Other Agencies,Health Charges,PJ131,3/7/2016,397855,1123,REVENUE,VIRGIN CARE SERVICES LTD,120538
North East Lincolnshire Council,http://statistics.data.gov.uk/id/local-authority/00FC),Chief Executive,Director Of Public Health,Sexual Health,Other Agencies,Health Charges,PJ131,3/3/2016,397906,732,REVENUE,VIRGIN CARE SERVICES LTD,120538
North East Lincolnshire Council,http://statistics.data.gov.uk/id/local-authority/00FC),Chief Executive,Director Of Public Health,Sexual Health,Other Agencies,Health Charges,PJ131,3/21/2016,399696,3080,REVENUE,THE CHANTRY HEALTH GROUP,108912
North East Lincolnshire Council,http://statistics.data.gov.uk/id/local-authority/00FC),Chief Executive,Director Of Public Health,Sexual Health,Other Agencies,Health Charges,PJ131,3/21/2016,400638,393,REVENUE,LINCS COMMUNITY HEALTH SERVICES NHST,124099
North East Lincolnshire Council,http://statistics.data.gov.uk/id/local-authority/00FC),Chief Executive,Director Of Public Health,Sexual Health,Other Agencies,Other,PJ121,3/3/2016,397498,10880,REVENUE,THE ROXTON PRACTICE,104395
North East Lincolnshire Council,http://statistics.data.gov.uk/id/local-authority/00FC),Chief Executive,Director Of Public Health,Sexual Health,Other Agencies,Other,PJ121,3/8/2016,398293,800,REVENUE,DR R K MATTHEWS,111090
North East Lincolnshire Council,http://statistics.data.gov.uk/id/local-authority/00FC),Chief Executive,Director Of Public Health,Sexual Health,Other Agencies,Other,PJ121,3/21/2016,400101,680,REVENUE,SCARTHO MEDICAL CENTRE,107570
North East Lincolnshire Council,http://statistics.data.gov.uk/id/local-authority/00FC),Chief Executive,Director Of Public Health,Sexual Health,Other Agencies,Other,PJ121,3/21/2016,400157,440,REVENUE,WOODFORD MEDICAL CENTRE,107882
North East Lincolnshire Council,http://statistics.data.gov.uk/id/local-authority/00FC),Chief Executive,Director Of Public Health,Sexual Health,Other Agencies,Other,PJ121,3/24/2016,400158,520,REVENUE,LITTLEFIELDS HEALTH CENTRE,111683
North East Lincolnshire Council,http://statistics.data.gov.uk/id/local-authority/00FC),Chief Executive,Director Of Public Health,Sexual Health,Other Agencies,Other,PJ121,3/21/2016,400159,640,REVENUE,DR HOPPER & PARTNERS,103900
North East Lincolnshire Council,http://statistics.data.gov.uk/id/local-authority/00FC),Chief Executive,Director Of Public Health,Sexual Health,Other Agencies,Other,PJ121,3/24/2016,401751,1760,REVENUE,CLEE MEDICAL CENTRE,105319
North East Lincolnshire Council,http://statistics.data.gov.uk/id/local-authority/00FC),Chief Executive,Director Of Public Health,Child Health Commssioning,Other Agencies,Further Ed Emp & Training,PJ130,3/7/2016,397857,1200,REVENUE,YOU PLUS,124088
North East Lincolnshire Council,http://statistics.data.gov.uk/id/local-authority/00FC),Chief Executive,Director Of Public Health,Child Health Commssioning,Other Agencies,Further Ed Emp & Training,PJ130,3/7/2016,397859,8330,REVENUE,APT TRAINING & CONSULTANCY LTD,133138
North East Lincolnshire Council,http://statistics.data.gov.uk/id/local-authority/00FC),Chief Executive,Director Of Public Health,Child Health Commssioning,Other Agencies,Further Ed Emp & Training,PJ130,3/7/2016,397854,5970,REVENUE,APT TRAINING & CONSULTANCY LTD,133138
North East Lincolnshire Council,http://statistics.data.gov.uk/id/local-authority/00FC),Chief Executive,Director Of Public Health,Child Health Commssioning,Other Agencies,Further Ed Emp & Training,PJ130,3/8/2016,398221,4590,REVENUE,APT TRAINING & CONSULTANCY LTD,133138
North East Lincolnshire Council,http://statistics.data.gov.uk/id/local-authority/00FC),Chief Executive,Ad Joint Delivery,Benefit Payments & Subsidy,Miscellaneous Income,Exp Recov - O/Side Scope Vat 4,VG107,3/21/2016,400750,1840,REVENUE,JACOBS CERTIFIED BAILIFFS,101788
North East Lincolnshire Council,http://statistics.data.gov.uk/id/local-authority/00FC),Chief Executive,Ad Joint Delivery,Local Taxation & Benefits,Communications And Computing,Computer S/Ware - Maintenance,LF102,3/24/2016,397901,5608.61,REVENUE,NORTHGATE PUBLIC SERVICES (UK) LTD,101841
North East Lincolnshire Council,http://statistics.data.gov.uk/id/local-authority/00FC),Chief Executive,Ad Joint Delivery,Local Taxation & Benefits,Communications And Computing,Postage,LF111,3/8/2016,398748,7500,REVENUE,CAPITA BUSINESS SERVICES LTD,102314
North East Lincolnshire Council,http://statistics.data.gov.uk/id/local-authority/00FC),Chief Executive,Ad Joint Delivery,Local Taxation & Benefits,Indirect Employee Expenses,Staff Training,EB122,3/14/2016,399421,250,REVENUE,ARVATO GOVERNMENT SERVICES LTD,119119
North East Lincolnshire Council,http://statistics.data.gov.uk/id/local-authority/00FC),Chief Executive,Ad Joint Delivery,Head Commission & Info Systems,Direct Employee Expenses,Agency Staff,EA105,3/15/2016,399442,4000,REVENUE,MECOS LTD,128199
North East Lincolnshire Council,http://statistics.data.gov.uk/id/local-authority/00FC),Chief Executive,Ad Joint Delivery,Head Commission & Info Systems,Direct Employee Expenses,Agency Staff,EA105,3/15/2016,399443,4250,REVENUE,MECOS LTD,128199
North East Lincolnshire Council,http://statistics.data.gov.uk/id/local-authority/00FC),Chief Executive,Ad Joint Delivery,I.T Shared Service,Communications And Computing,Telephones,LF112,3/8/2016,398317,4723.78,REVENUE,VIRGIN MEDIA,107612
North East Lincolnshire Council,http://statistics.data.gov.uk/id/local-authority/00FC),Chief Executive,Ad Joint Delivery,I.T Shared Service,Communications And Computing,Telephones,LF112,3/8/2016,398317,319.6,REVENUE,VIRGIN MEDIA,107612
North East Lincolnshire Council,http://statistics.data.gov.uk/id/local-authority/00FC),Chief Executive,Ad Joint Delivery,I.T Shared Service,Communications And Computing,Telephones,LF112,3/8/2016,398317,853.66,REVENUE,VIRGIN MEDIA,107612
North East Lincolnshire Council,http://statistics.data.gov.uk/id/local-authority/00FC),Chief Executive,Ad Joint Delivery,I.T Shared Service,Communications And Computing,Telephones,LF112,3/14/2016,397160,275.67,REVENUE,BRITISH TELECOMMUNICATIONS PLC,100974
North East Lincolnshire Council,http://statistics.data.gov.uk/id/local-authority/00FC),Chief Executive,Ad Joint Delivery,I.T Shared Service,Communications And Computing,Computer H/Ware - Maintenance,LF106,3/9/2016,378090,2169.5,REVENUE,ORACLE CORPORATION UK LTD,100696
North East Lincolnshire Council,http://statistics.data.gov.uk/id/local-authority/00FC),Chief Executive,Ad Joint Delivery,I.T Shared Service,Communications And Computing,Computer H/Ware - Purchases,LF105,3/8/2016,398317,250,REVENUE,VIRGIN MEDIA,107612
North East Lincolnshire Council,http://statistics.data.gov.uk/id/local-authority/00FC),Chief Executive,Ad Joint Delivery,I.T Shared Service,Communications And Computing,Computer H/Ware - Purchases,LF105,3/8/2016,398317,397.2,REVENUE,VIRGIN MEDIA,107612
North East Lincolnshire Council,http://statistics.data.gov.uk/id/local-authority/00FC),Chief Executive,Ad Joint Delivery,I.T Shared Service,Communications And Computing,Computer H/Ware - Purchases,LF105,3/8/2016,398321,480,REVENUE,INSIGHT DIRECT (UK) LTD,101011
North East Lincolnshire Council,http://statistics.data.gov.uk/id/local-authority/00FC),Chief Executive,Ad Joint Delivery,I.T Shared Service,Communications And Computing,Computer H/Ware - Purchases,LF105,3/10/2016,382126,570.81,REVENUE,POWER CONTROL LTD,112737
North East Lincolnshire Council,http://statistics.data.gov.uk/id/local-authority/00FC),Chief Executive,Ad Joint Delivery,I.T Shared Service,Communications And Computing,Computer H/Ware - Purchases,LF105,3/10/2016,394750,-570.81,REVENUE,POWER CONTROL LTD,112737
North East Lincolnshire Council,http://statistics.data.gov.uk/id/local-authority/00FC),Chief Executive,Ad Joint Delivery,I.T Shared Service,Communications And Computing,Computer H/Ware - Purchases,LF105,3/29/2016,390392,725,REVENUE,VIRGIN MEDIA LTD,101831
North East Lincolnshire Council,http://statistics.data.gov.uk/id/local-authority/00FC),Chief Executive,Ad Joint Delivery,I.T Shared Service,Communications And Computing,Computer H/Ware - Purchases,LF105,3/31/2016,402549,702,REVENUE,POWER CONTROL LTD,112737
North East Lincolnshire Council,http://statistics.data.gov.uk/id/local-authority/00FC),Chief Executive,Ad Joint Delivery,I.T Shared Service,Communications And Computing,Computer H/Ware - Purchases,LF105,3/31/2016,402456,1728,REVENUE,SPECIALIST COMPUTER CENTRES PLC,110715
North East Lincolnshire Council,http://statistics.data.gov.uk/id/local-authority/00FC),Chief Executive,Ad Joint Delivery,I.T Shared Service,Communications And Computing,Computer H/Ware - Purchases,LF105,3/31/2016,402456,884,REVENUE,SPECIALIST COMPUTER CENTRES PLC,110715
North East Lincolnshire Council,http://statistics.data.gov.uk/id/local-authority/00FC),Chief Executive,Ad Joint Delivery,I.T Shared Service,Communications And Computing,Computer H/Ware - Purchases,LF105,3/21/2016,400255,360,REVENUE,XMA LIMITED,100699
North East Lincolnshire Council,http://statistics.data.gov.uk/id/local-authority/00FC),Chief Executive,Ad Joint Delivery,I.T Shared Service,Communications And Computing,Computer H/Ware - Purchases,LF105,3/18/2016,399715,440.85,REVENUE,COMPUTACENTER UK LTD,101303
North East Lincolnshire Council,http://statistics.data.gov.uk/id/local-authority/00FC),Chief Executive,Ad Joint Delivery,I.T Shared Service,Communications And Computing,Computer S/Ware - Licences,LF103,3/7/2016,398068,475,REVENUE,KEL,108299
North East Lincolnshire Council,http://statistics.data.gov.uk/id/local-authority/00FC),Chief Executive,Ad Joint Delivery,I.T Shared Service,Communications And Computing,Computer S/Ware - Licences,LF103,3/7/2016,398068,2350,REVENUE,KEL,108299
North East Lincolnshire Council,http://statistics.data.gov.uk/id/local-authority/00FC),Chief Executive,Ad Joint Delivery,I.T Shared Service,Communications And Computing,Computer S/Ware - Licences,LF103,3/7/2016,398068,790.02,REVENUE,KEL,108299
North East Lincolnshire Council,http://statistics.data.gov.uk/id/local-authority/00FC),Chief Executive,Ad Joint Delivery,I.T Shared Service,Communications And Computing,Computer S/Ware - Licences,LF103,3/7/2016,398068,2100,REVENUE,KEL,108299
North East Lincolnshire Council,http://statistics.data.gov.uk/id/local-authority/00FC),Chief Executive,Ad Joint Delivery,I.T Shared Service,Communications And Computing,Computer S/Ware - Maintenance,LF102,3/9/2016,386149,675.98,REVENUE,NATIONAL CONSORTIUM FOR EXAMINATION RESULTS,110067
North East Lincolnshire Council,http://statistics.data.gov.uk/id/local-authority/00FC),Chief Executive,Ad Joint Delivery,I.T Shared Service,Communications And Computing,Computer S/Ware - Maintenance,LF102,3/18/2016,391981,2500,REVENUE,FIRST MEDIA SOLUTIONS LTD,101489
North East Lincolnshire Council,http://statistics.data.gov.uk/id/local-authority/00FC),Chief Executive,Ad Joint Delivery,I.T Shared Service,Communications And Computing,Computer S/Ware - Maintenance,LF102,3/9/2016,398634,3279.77,REVENUE,APD COMMUNICATIONS LTD,101972
North East Lincolnshire Council,http://statistics.data.gov.uk/id/local-authority/00FC),Chief Executive,Ad Joint Delivery,I.T Shared Service,Communications And Computing,Computer S/Ware - Maintenance,LF102,3/31/2016,387073,712.39,REVENUE,DELL SOFTWARE INTERNATIONAL LIMITED,125539
North East Lincolnshire Council,http://statistics.data.gov.uk/id/local-authority/00FC),Chief Executive,Ad Joint Delivery,I.T Shared Service,Communications And Computing,Computer S/Ware - Maintenance,LF102,3/29/2016,398298,8144.44,REVENUE,CIVICA UK LIMITED,103029
North East Lincolnshire Council,http://statistics.data.gov.uk/id/local-authority/00FC),Chief Executive,Ad Joint Delivery,I.T Shared Service,Communications And Computing,Computer S/Ware - Maintenance,LF102,3/31/2016,399463,3712,REVENUE,NTA MONITOR LTD,103458
North East Lincolnshire Council,http://statistics.data.gov.uk/id/local-authority/00FC),Chief Executive,Ad Joint Delivery,I.T Shared Service,Communications And Computing,Computer S/Ware - Maintenance,LF102,3/7/2016,398053,3370.7,REVENUE,RESPOND GROUP LIMITED,102963
North East Lincolnshire Council,http://statistics.data.gov.uk/id/local-authority/00FC),Chief Executive,Ad Joint Delivery,I.T Shared Service,Communications And Computing,Computer S/Ware - Maintenance,LF102,3/3/2016,397896,7239.54,REVENUE,CIVICA UK LIMITED,103029
North East Lincolnshire Council,http://statistics.data.gov.uk/id/local-authority/00FC),Chief Executive,Ad Joint Delivery,I.T Shared Service,Communications And Computing,Computer S/Ware - Maintenance,LF102,3/3/2016,397896,365.82,REVENUE,CIVICA UK LIMITED,103029
North East Lincolnshire Council,http://statistics.data.gov.uk/id/local-authority/00FC),Chief Executive,Ad Joint Delivery,I.T Shared Service,Communications And Computing,Computer S/Ware - Maintenance,LF102,3/24/2016,401733,11125,REVENUE,ASTUN TECHNOLOGY LTD,104929
North East Lincolnshire Council,http://statistics.data.gov.uk/id/local-authority/00FC),Chief Executive,Ad Joint Delivery,I.T Shared Service,Communications And Computing,Computer S/Ware - Maintenance,LF102,3/10/2016,399237,944.68,REVENUE,MICROGEN BANKING SYSTEMS LIMITED,119325
North East Lincolnshire Council,http://statistics.data.gov.uk/id/local-authority/00FC),Chief Executive,Ad Joint Delivery,I.T Shared Service,Communications And Computing,Computer H/Ware - Purchases,LF105,3/31/2016,402449,2955.49,REVENUE,VIRGIN MEDIA LTD,101831
North East Lincolnshire Council,http://statistics.data.gov.uk/id/local-authority/00FC),Chief Executive,Ad Joint Delivery,I.T Shared Service,Communications And Computing,Computer H/Ware - Purchases,LF105,3/31/2016,402449,14628.6,REVENUE,VIRGIN MEDIA LTD,101831
North East Lincolnshire Council,http://statistics.data.gov.uk/id/local-authority/00FC),Chief Executive,Ad Joint Delivery,I.T Shared Service,Communications And Computing,Computer H/Ware - Purchases,LF105,3/31/2016,402449,5309.52,REVENUE,VIRGIN MEDIA LTD,101831
North East Lincolnshire Council,http://statistics.data.gov.uk/id/local-authority/00FC),Chief Executive,Ad Joint Delivery,I.T Shared Service,Communications And Computing,Computer H/Ware - Purchases,LF105,3/31/2016,401478,2981,REVENUE,SAFE CONTROL LTD,100989
North East Lincolnshire Council,http://statistics.data.gov.uk/id/local-authority/00FC),Chief Executive,Ad Joint Delivery,Bradley Playing Fields,Customer And Client Receipts,Sales - Std Vat 7,VC101,3/17/2016,400221,1540.74,REVENUE,LINCS INSPIRE LIMITED,129063
North East Lincolnshire Council,http://statistics.data.gov.uk/id/local-authority/00FC),Chief Executive,Ad Joint Delivery,Community Support Mgmt A/C,Consultancy,Consultancy,PL101,3/29/2016,401155,14086.11,REVENUE,ENGIE SERVICES LTD,133267
North East Lincolnshire Council,http://statistics.data.gov.uk/id/local-authority/00FC),Chief Executive,Ad Joint Delivery,Community Support Mgmt A/C,Consultancy,Consultancy,PL101,3/22/2016,401284,1600,REVENUE,STEPHEN HEYWOOD DESIGN LTD,132818
North East Lincolnshire Council,http://statistics.data.gov.uk/id/local-authority/00FC),Chief Executive,Ad Joint Delivery,Leisure Contracts,Rep Alterations Maint Building,Buildings - Repairs And Maint,GA102,3/24/2016,401879,34564,REVENUE,HB SPORTS SURFACES LTD,106579
North East Lincolnshire Council,http://statistics.data.gov.uk/id/local-authority/00FC),Chief Executive,Ad Joint Delivery,Leisure Contracts,Rep Alterations Maint Building,Buildings - Repairs And Maint,GA102,3/17/2016,399941,1515,REVENUE,ICE TECH UK,121107
North East Lincolnshire Council,http://statistics.data.gov.uk/id/local-authority/00FC),Chief Executive,Ad Joint Delivery,Leisure Contracts,Rep Alterations Maint Building,Buildings - Repairs And Maint,GA102,3/17/2016,399942,1515,REVENUE,ICE TECH UK,121107
North East Lincolnshire Council,http://statistics.data.gov.uk/id/local-authority/00FC),Chief Executive,Ad Joint Delivery,Leisure Contracts,Rep Alterations Maint Building,Buildings - Repairs And Maint,GA102,3/9/2016,398297,4609.26,REVENUE,AUDITORIA SERVICES LTD,128689
North East Lincolnshire Council,http://statistics.data.gov.uk/id/local-authority/00FC),Chief Executive,Ad Joint Delivery,Leisure Contracts,Rep Alterations Maint Building,Buildings - Repairs And Maint,GA102,3/31/2016,398296,6351.45,REVENUE,AUDITORIA SERVICES LTD,128689
North East Lincolnshire Council,http://statistics.data.gov.uk/id/local-authority/00FC),Chief Executive,Ad Joint Delivery,Leisure Contracts,Water Services,Water,GE101,3/7/2016,398164,399.53,REVENUE,ANGLIAN WATER,100508
North East Lincolnshire Council,http://statistics.data.gov.uk/id/local-authority/00FC),Chief Executive,Ad Joint Delivery,Leisure Contracts,Private Contractors,Third Party Prov - Private,PH101,3/18/2016,399977,2919.58,REVENUE,LEGEND CLUB MANAGMENT SYSTEMS (UK) LTD,119144
North East Lincolnshire Council,http://statistics.data.gov.uk/id/local-authority/00FC),Chief Executive,Ad Joint Delivery,Leisure Contracts,Private Contractors,Third Party Prov - Private,PH101,3/21/2016,399896,2465.18,REVENUE,LEGEND LEISURE SERVICES LTD,121539
North East Lincolnshire Council,http://statistics.data.gov.uk/id/local-authority/00FC),Chief Executive,Ad Joint Delivery,Leisure Contracts,Private Contractors,Third Party Prov - Private,PH101,3/21/2016,400209,2512.4,REVENUE,LEGEND LEISURE SERVICES LTD,121539
North East Lincolnshire Council,http://statistics.data.gov.uk/id/local-authority/00FC),Chief Executive,Ad Joint Delivery,Director And Support,Miscellaneous Expenses,Other Expenses General,LL119,3/29/2016,402492,5000,REVENUE,MISHCON DE REYA,133532
North East Lincolnshire Council,http://statistics.data.gov.uk/id/local-authority/00FC),Chief Executive,Ad Joint Delivery,Human Resources,Indirect Employee Expenses,Disclosure Checks,EB124,3/18/2016,399419,4576,REVENUE,DISCLOSURE & BARRING SERVICE,119180
North East Lincolnshire Council,http://statistics.data.gov.uk/id/local-authority/00FC),Chief Executive,Ad Joint Delivery,Human Resources,Indirect Employee Expenses,Staff Training,EB122,3/31/2016,402535,837,REVENUE,INTUITION DISCOVERY & DEVELOPMENT LTD,104760
North East Lincolnshire Council,http://statistics.data.gov.uk/id/local-authority/00FC),Chief Executive,Ad Joint Delivery,Human Resources,Indirect Employee Expenses,Staff Training,EB122,3/18/2016,398215,3500,REVENUE,ASHRIDGE EXECUTIVE & ORGANISATION,124504
North East Lincolnshire Council,http://statistics.data.gov.uk/id/local-authority/00FC),Chief Executive,Ad Joint Delivery,Human Resources,Indirect Employee Expenses,Staff Training,EB122,3/31/2016,402455,735,REVENUE,PETER HIRD & SONS LTD,104825
North East Lincolnshire Council,http://statistics.data.gov.uk/id/local-authority/00FC),Chief Executive,Ad Joint Delivery,Human Resources,Indirect Employee Expenses,Staff Training,EB122,3/21/2016,400724,1322.2,REVENUE,REDACTED PERSONAL INFORMATION,REDACTED PERSONAL INFORMATION
North East Lincolnshire Council,http://statistics.data.gov.uk/id/local-authority/00FC),Chief Executive,Ad Joint Delivery,Human Resources,Indirect Employee Expenses,Staff Training,EB122,3/21/2016,400727,1322.2,REVENUE,REDACTED PERSONAL INFORMATION,REDACTED PERSONAL INFORMATION
North East Lincolnshire Council,http://statistics.data.gov.uk/id/local-authority/00FC),Chief Executive,Ad Joint Delivery,Human Resources,Indirect Employee Expenses,Staff Training,EB122,3/21/2016,400721,1322.2,REVENUE,REDACTED PERSONAL INFORMATION,REDACTED PERSONAL INFORMATION
North East Lincolnshire Council,http://statistics.data.gov.uk/id/local-authority/00FC),Chief Executive,Ad Joint Delivery,Human Resources,Indirect Employee Expenses,Staff Training,EB122,3/24/2016,396474,869.16,REVENUE,KAPLAN FINANCIAL,121994
North East Lincolnshire Council,http://statistics.data.gov.uk/id/local-authority/00FC),Chief Executive,Ad Joint Delivery,Human Resources,Indirect Employee Expenses,Staff Training,EB122,3/24/2016,399776,450,REVENUE,MR NIGEL K BISHOP,109708
North East Lincolnshire Council,http://statistics.data.gov.uk/id/local-authority/00FC),Chief Executive,Ad Joint Delivery,Human Resources,Indirect Employee Expenses,Staff Training,EB122,3/1/2016,397189,400,REVENUE,JOHN STEAD EDUCATION CONSULTANCY & TRAINING,119700
North East Lincolnshire Council,http://statistics.data.gov.uk/id/local-authority/00FC),Chief Executive,Ad Joint Delivery,Human Resources,Indirect Employee Expenses,Staff Training,EB122,3/3/2016,397188,379.45,REVENUE,BROWNS BOOKS FOR STUDENTS,104856
North East Lincolnshire Council,http://statistics.data.gov.uk/id/local-authority/00FC),Chief Executive,Ad Joint Delivery,Human Resources,Indirect Employee Expenses,Staff Training,EB122,3/18/2016,398667,571.1,REVENUE,SUE WOOLMORE,111635
North East Lincolnshire Council,http://statistics.data.gov.uk/id/local-authority/00FC),Chief Executive,Ad Joint Delivery,Human Resources,Indirect Employee Expenses,Staff Training,EB122,3/18/2016,399978,900,REVENUE,FOREFRONT TRAINING LTD,105501
North East Lincolnshire Council,http://statistics.data.gov.uk/id/local-authority/00FC),Chief Executive,Ad Joint Delivery,Human Resources,Indirect Employee Expenses,Staff Training,EB122,3/29/2016,401469,9150,REVENUE,VIRTUAL COLLEGE LTD,105926
North East Lincolnshire Council,http://statistics.data.gov.uk/id/local-authority/00FC),Chief Executive,Ad Joint Delivery,Human Resources,Indirect Employee Expenses,Staff Training,EB122,3/22/2016,399979,330,REVENUE,FOREFRONT TRAINING LTD,105501
North East Lincolnshire Council,http://statistics.data.gov.uk/id/local-authority/00FC),Chief Executive,Ad Joint Delivery,Human Resources,Indirect Employee Expenses,Staff Training,EB122,3/24/2016,400768,12432,REVENUE,PAUL CARLILE,119569
North East Lincolnshire Council,http://statistics.data.gov.uk/id/local-authority/00FC),Chief Executive,Ad Joint Delivery,Human Resources,Indirect Employee Expenses,Staff Training,EB122,3/22/2016,400767,600,REVENUE,WOMENS AID,100326
North East Lincolnshire Council,http://statistics.data.gov.uk/id/local-authority/00FC),Chief Executive,Ad Joint Delivery,Human Resources,Indirect Employee Expenses,Medical Expenses - Employees,EB112,3/1/2016,393278,775.26,REVENUE,EA BROADBURN DISPENSING CHEMIST,101135
North East Lincolnshire Council,http://statistics.data.gov.uk/id/local-authority/00FC),Chief Executive,Ad Joint Delivery,Human Resources,Indirect Employee Expenses,Medical Expenses - Employees,EB112,3/24/2016,401760,932.7,REVENUE,EA BROADBURN DISPENSING CHEMIST,101135
North East Lincolnshire Council,http://statistics.data.gov.uk/id/local-authority/00FC),Chief Executive,Ad Joint Delivery,Human Resources,Indirect Employee Expenses,Medical Expenses - Employees,EB112,3/24/2016,401759,410.18,REVENUE,N LINCS & GOOLE HOSPITALS NHS,111074
North East Lincolnshire Council,http://statistics.data.gov.uk/id/local-authority/00FC),Chief Executive,Ad Joint Delivery,Human Resources,Indirect Employee Expenses,Medical Expenses - Employees,EB112,3/31/2016,402522,360.13,REVENUE,N LINCS & GOOLE HOSPITALS NHS,111074
North East Lincolnshire Council,http://statistics.data.gov.uk/id/local-authority/00FC),Chief Executive,Ad Joint Delivery,Human Resources,Indirect Employee Expenses,Medical Expenses - Employees,EB112,3/24/2016,401753,335,REVENUE,NORTH LINCOLNSHIRE COUNCIL,101186
North East Lincolnshire Council,http://statistics.data.gov.uk/id/local-authority/00FC),Chief Executive,Ad Joint Delivery,Human Resources,Private Contractors,Third Party Prov - Private,PH101,3/3/2016,397624,16147.28,REVENUE,SERCO SHARED SERVICES CENTRE,101875
North East Lincolnshire Council,http://statistics.data.gov.uk/id/local-authority/00FC),Chief Executive,Ad Joint Delivery,Human Resources,Communications And Computing,Computer S/Ware - Maintenance,LF102,3/3/2016,397468,1400,REVENUE,PHASE 3 CONSULTING LTD,129793
North East Lincolnshire Council,http://statistics.data.gov.uk/id/local-authority/00FC),Chief Executive,Ad Joint Delivery,Human Resources,Communications And Computing,Computer S/Ware - Maintenance,LF102,3/18/2016,400029,700,REVENUE,PHASE 3 CONSULTING LTD,129793
North East Lincolnshire Council,http://statistics.data.gov.uk/id/local-authority/00FC),Chief Executive,Ad Joint Delivery,Human Resources,Communications And Computing,Computer S/Ware - Maintenance,LF102,3/21/2016,400127,580.66,REVENUE,PHASE 3 CONSULTING LTD,129793
North East Lincolnshire Council,http://statistics.data.gov.uk/id/local-authority/00FC),Chief Executive,Ad Joint Delivery,Human Resources,Communications And Computing,Computer S/Ware - Maintenance,LF102,3/29/2016,402486,2925,REVENUE,SELIMA LTD,125712
North East Lincolnshire Council,http://statistics.data.gov.uk/id/local-authority/00FC),Chief Executive,Ad Joint Delivery,Central Commissioning & Delive,Catering,Provisions,LB101,3/14/2016,399322,8978.77,REVENUE,DAIRY CREST LTD,101743
North East Lincolnshire Council,http://statistics.data.gov.uk/id/local-authority/00FC),Chief Executive,Ad Joint Delivery,Central Commissioning & Delive,Catering,Purchase School Meals,LB103,3/18/2016,400052,23614.5,REVENUE,CYGNET CATERING,108880
North East Lincolnshire Council,http://statistics.data.gov.uk/id/local-authority/00FC),Chief Executive,Ad Joint Delivery,Central Commissioning & Delive,Catering,Purchase School Meals,LB103,3/18/2016,400054,111796.6,REVENUE,CYGNET CATERING,108880
North East Lincolnshire Council,http://statistics.data.gov.uk/id/local-authority/00FC),Chief Executive,Ad Joint Delivery,Central Commissioning & Delive,Private Contractors,Contract Payments,PH105,3/10/2016,398176,6309.33,REVENUE,MATRIX SCM LTD,108117
North East Lincolnshire Council,http://statistics.data.gov.uk/id/local-authority/00FC),Chief Executive,Ad Joint Delivery,Central Commissioning & Delive,Private Contractors,Contract Payments,PH105,3/24/2016,401737,11119.12,REVENUE,MATRIX SCM LTD,108117
North East Lincolnshire Council,http://statistics.data.gov.uk/id/local-authority/00FC),Chief Executive,Ad Joint Delivery,Central Commissioning & Delive,Private Contractors,Contract Payments,PH105,3/24/2016,401741,7876.64,REVENUE,MATRIX SCM LTD,108117
North East Lincolnshire Council,http://statistics.data.gov.uk/id/local-authority/00FC),Chief Executive,Ad Joint Delivery,Central Commissioning & Delive,Private Contractors,Contract Payments,PH105,3/24/2016,401742,3794.78,REVENUE,MATRIX SCM LTD,108117
North East Lincolnshire Council,http://statistics.data.gov.uk/id/local-authority/00FC),Chief Executive,Ad Joint Delivery,Central Commissioning & Delive,Private Contractors,Contract Payments,PH105,3/24/2016,401738,8979.21,REVENUE,MATRIX SCM LTD,108117
North East Lincolnshire Council,http://statistics.data.gov.uk/id/local-authority/00FC),Chief Executive,Ad Joint Delivery,Communications And Marketing,Equip / Furniture / Materials,Equipment - Purchase,LA101,3/14/2016,399218,2210,REVENUE,PRESSTEK EUROPE LTD,101613
North East Lincolnshire Council,http://statistics.data.gov.uk/id/local-authority/00FC),Chief Executive,Ad Joint Delivery,Communications And Marketing,Equip / Furniture / Materials,Equipment - Purchase,LA101,3/14/2016,395087,612,REVENUE,ANTALIS LTD,124930
North East Lincolnshire Council,http://statistics.data.gov.uk/id/local-authority/00FC),Chief Executive,Ad Joint Delivery,Communications And Marketing,Equip / Furniture / Materials,Equipment - Purchase,LA101,3/14/2016,397632,918,REVENUE,ANTALIS LTD,124930
North East Lincolnshire Council,http://statistics.data.gov.uk/id/local-authority/00FC),Chief Executive,Ad Joint Delivery,Communications And Marketing,Equip / Furniture / Materials,Equipment - Purchase,LA101,3/21/2016,397700,322.07,REVENUE,ELLIOTT BAXTER & COMPANY LIMITED,101996
North East Lincolnshire Council,http://statistics.data.gov.uk/id/local-authority/00FC),Chief Executive,Ad Joint Delivery,Communications And Marketing,Equip / Furniture / Materials,Equipment - Purchase,LA101,3/31/2016,402586,992,REVENUE,JIGSAW SYSTEMS LTD,106840
North East Lincolnshire Council,http://statistics.data.gov.uk/id/local-authority/00FC),Chief Executive,Ad Joint Delivery,Communications And Marketing,Print Stationery / Gen Off Exp,Photocopier - Running Costs,LD102,3/14/2016,399214,2500.79,REVENUE,XEROX FINANCE,100572
North East Lincolnshire Council,http://statistics.data.gov.uk/id/local-authority/00FC),Chief Executive,Ad Joint Delivery,Communications And Marketing,Print Stationery / Gen Off Exp,Photocopier - Running Costs,LD102,3/14/2016,398916,1969.35,REVENUE,UNITED CARLTON OFFICE SYSTEMS LTD,101652
North East Lincolnshire Council,http://statistics.data.gov.uk/id/local-authority/00FC),Chief Executive,Ad Joint Delivery,Communications And Marketing,Private Contractors,Third Party Prov - Private,PH101,3/24/2016,401456,1230,REVENUE,ALPHA CARD COMPACT MEDIA LTD,130094
North East Lincolnshire Council,http://statistics.data.gov.uk/id/local-authority/00FC),Chief Executive,Ad Joint Delivery,Communications And Marketing,Private Contractors,Third Party Prov - Private,PH101,3/7/2016,396519,6580,REVENUE,SYSTEMATIC PRINT MANAGEMENT LTD,101147
North East Lincolnshire Council,http://statistics.data.gov.uk/id/local-authority/00FC),Chief Executive,Ad Joint Delivery,Communications And Marketing,Private Contractors,Third Party Prov - Private,PH101,3/7/2016,396638,960,REVENUE,PITNEY BOWES LIMITED,101236
North East Lincolnshire Council,http://statistics.data.gov.uk/id/local-authority/00FC),Chief Executive,Ad Joint Delivery,Communications And Marketing,Private Contractors,Third Party Prov - Private,PH101,3/10/2016,397493,566,REVENUE,AR PRINTING LTD,100596
North East Lincolnshire Council,http://statistics.data.gov.uk/id/local-authority/00FC),Chief Executive,Ad Joint Delivery,Communications And Marketing,Private Contractors,Third Party Prov - Private,PH101,3/10/2016,397457,1072.5,REVENUE,SYSTEMATIC PRINT MANAGEMENT LTD,101147
North East Lincolnshire Council,http://statistics.data.gov.uk/id/local-authority/00FC),Chief Executive,Ad Joint Delivery,Communications And Marketing,Private Contractors,Third Party Prov - Private,PH101,3/10/2016,397456,445,REVENUE,AR PRINTING LTD,100596
North East Lincolnshire Council,http://statistics.data.gov.uk/id/local-authority/00FC),Chief Executive,Ad Joint Delivery,Communications And Marketing,Private Contractors,Third Party Prov - Private,PH101,3/18/2016,399456,478,REVENUE,SYSTEMATIC PRINT MANAGEMENT LTD,101147
North East Lincolnshire Council,http://statistics.data.gov.uk/id/local-authority/00FC),Chief Executive,Ad Joint Delivery,Communications And Marketing,Private Contractors,Third Party Prov - Private,PH101,3/29/2016,401832,260,REVENUE,SYSTEMATIC PRINT MANAGEMENT LTD,101147
North East Lincolnshire Council,http://statistics.data.gov.uk/id/local-authority/00FC),Chief Executive,Ad Joint Delivery,Communications And Marketing,Private Contractors,Third Party Prov - Private,PH101,3/31/2016,402554,460,REVENUE,GSB PRINT & DESIGN LTD,101553
North East Lincolnshire Council,http://statistics.data.gov.uk/id/local-authority/00FC),Chief Executive,Ad Joint Delivery,Communications And Marketing,Private Contractors,Third Party Prov - Private,PH101,3/21/2016,400231,300,REVENUE,AR PRINTING LTD,100596
North East Lincolnshire Council,http://statistics.data.gov.uk/id/local-authority/00FC),Chief Executive,Ad Joint Delivery,Communications And Marketing,Private Contractors,Third Party Prov - Private,PH101,3/14/2016,398592,327.6,REVENUE,TOTAL SIGNS AND GRAPHICS LTD,104775
North East Lincolnshire Council,http://statistics.data.gov.uk/id/local-authority/00FC),Chief Executive,Ad Joint Delivery,Communications And Marketing,Private Contractors,Third Party Prov - Private,PH101,3/24/2016,401736,313.13,REVENUE,PREMIER PLASTIC CARDS LTD,131200
North East Lincolnshire Council,http://statistics.data.gov.uk/id/local-authority/00FC),Chief Executive,Ad Joint Delivery,Communications And Marketing,Print Stationery / Gen Off Exp,Printing And Stationery,LD103,3/24/2016,400170,1519.25,REVENUE,MOTION PICTURE LICENSING COMPANY,101852
North East Lincolnshire Council,http://statistics.data.gov.uk/id/local-authority/00FC),Chief Executive,Ad Joint Delivery,Bus Support & Customer Serv,Equip / Furniture / Materials,Office Equipment - Purchase,LA110,3/18/2016,399681,-14.5,REVENUE,STOR-A-FILE LTD,124466
North East Lincolnshire Council,http://statistics.data.gov.uk/id/local-authority/00FC),Chief Executive,Ad Joint Delivery,Bus Support & Customer Serv,Miscellaneous Expenses,Other Supplies & Services,LL110,3/8/2016,398147,347.3,REVENUE,COMPUTACENTER UK LTD,101303
North East Lincolnshire Council,http://statistics.data.gov.uk/id/local-authority/00FC),Chief Executive,Ad Joint Delivery,Bus Support & Customer Serv,Equip / Furniture / Materials,Goods For Resale,LA123,3/3/2016,397831,-9.2,REVENUE,NORTHGATE PUBLIC SERVICES (UK) LTD,101841
North East Lincolnshire Council,http://statistics.data.gov.uk/id/local-authority/00FC),Chief Executive,Ad Joint Delivery,Bus Support & Customer Serv,Equip / Furniture / Materials,Goods For Resale,LA123,3/24/2016,399460,981.59,REVENUE,NORTHGATE PUBLIC SERVICES (UK) LTD,101841
North East Lincolnshire Council,http://statistics.data.gov.uk/id/local-authority/00FC),Chief Executive,Ad Joint Delivery,Bus Support & Customer Serv,Communications And Computing,Postage,LF111,3/10/2016,398906,298.25,REVENUE,ROYAL MAIL GROUP PLC,101082
North East Lincolnshire Council,http://statistics.data.gov.uk/id/local-authority/00FC),Chief Executive,Ad Joint Delivery,Bus Support & Customer Serv,Communications And Computing,Postage,LF111,3/3/2016,397439,1227.88,REVENUE,ROYAL MAIL GROUP PLC,101082
North East Lincolnshire Council,http://statistics.data.gov.uk/id/local-authority/00FC),Chief Executive,Ad Joint Delivery,Bus Support & Customer Serv,Communications And Computing,Postage,LF111,3/3/2016,397863,2747.75,REVENUE,ROYAL MAIL GROUP PLC,101082
North East Lincolnshire Council,http://statistics.data.gov.uk/id/local-authority/00FC),Chief Executive,Ad Joint Delivery,Bus Support & Customer Serv,Communications And Computing,Postage,LF111,3/14/2016,399319,1347.81,REVENUE,ROYAL MAIL GROUP PLC,101082
North East Lincolnshire Council,http://statistics.data.gov.uk/id/local-authority/00FC),Chief Executive,Ad Joint Delivery,Bus Support & Customer Serv,Communications And Computing,Postage,LF111,3/31/2016,402498,3024.16,REVENUE,ROYAL MAIL GROUP PLC,101082
North East Lincolnshire Council,http://statistics.data.gov.uk/id/local-authority/00FC),Chief Executive,Ad Joint Delivery,Bus Support & Customer Serv,Communications And Computing,Postage,LF111,3/3/2016,397864,365.42,REVENUE,ROYAL MAIL GROUP PLC,101082
North East Lincolnshire Council,http://statistics.data.gov.uk/id/local-authority/00FC),Chief Executive,Ad Joint Delivery,Bus Support & Customer Serv,Print Stationery / Gen Off Exp,Photocopier - Running Costs,LD102,3/21/2016,399916,711.87,REVENUE,UNITED CARLTON OFFICE SYSTEMS LTD,101652
North East Lincolnshire Council,http://statistics.data.gov.uk/id/local-authority/00FC),Chief Executive,Ad Joint Delivery,Bus Support & Customer Serv,Print Stationery / Gen Off Exp,Photocopier - Running Costs,LD102,3/21/2016,399914,402.14,REVENUE,UNITED CARLTON OFFICE SYSTEMS LTD,101652
North East Lincolnshire Council,http://statistics.data.gov.uk/id/local-authority/00FC),Chief Executive,Ad Joint Delivery,Bus Support & Customer Serv,Print Stationery / Gen Off Exp,Photocopier - Running Costs,LD102,3/21/2016,399911,304.31,REVENUE,UNITED CARLTON OFFICE SYSTEMS LTD,101652
North East Lincolnshire Council,http://statistics.data.gov.uk/id/local-authority/00FC),Chief Executive,Ad Joint Delivery,Bus Support & Customer Serv,Print Stationery / Gen Off Exp,Photocopier - Running Costs,LD102,3/21/2016,399912,285.58,REVENUE,UNITED CARLTON OFFICE SYSTEMS LTD,101652
North East Lincolnshire Council,http://statistics.data.gov.uk/id/local-authority/00FC),Chief Executive,Ad Joint Delivery,Bus Support & Customer Serv,Print Stationery / Gen Off Exp,Photocopier - Running Costs,LD102,3/18/2016,399964,276.35,REVENUE,UNITED CARLTON OFFICE SYSTEMS LTD,101652
North East Lincolnshire Council,http://statistics.data.gov.uk/id/local-authority/00FC),Chief Executive,Ad Joint Delivery,Bus Support & Customer Serv,Print Stationery / Gen Off Exp,Photocopier - Running Costs,LD102,3/18/2016,399961,264.45,REVENUE,UNITED CARLTON OFFICE SYSTEMS LTD,101652
North East Lincolnshire Council,http://statistics.data.gov.uk/id/local-authority/00FC),Chief Executive,Ad Joint Delivery,Bus Support & Customer Serv,Print Stationery / Gen Off Exp,Photocopier - Running Costs,LD102,3/18/2016,399958,294.09,REVENUE,UNITED CARLTON OFFICE SYSTEMS LTD,101652
North East Lincolnshire Council,http://statistics.data.gov.uk/id/local-authority/00FC),Chief Executive,Ad Joint Delivery,Bus Support & Customer Serv,Print Stationery / Gen Off Exp,Printing And Stationery,LD103,3/18/2016,399954,316,REVENUE,UNITED CARLTON OFFICE SYSTEMS LTD,101652
North East Lincolnshire Council,http://statistics.data.gov.uk/id/local-authority/00FC),Chief Executive,Ad Joint Delivery,Bus Support & Customer Serv,Print Stationery / Gen Off Exp,Printing And Stationery,LD103,3/21/2016,399916,277.84,REVENUE,UNITED CARLTON OFFICE SYSTEMS LTD,101652
North East Lincolnshire Council,http://statistics.data.gov.uk/id/local-authority/00FC),Chief Executive,Ad Joint Delivery,Bus Support & Customer Serv,Print Stationery / Gen Off Exp,Printing And Stationery,LD103,3/21/2016,399912,573.24,REVENUE,UNITED CARLTON OFFICE SYSTEMS LTD,101652
North East Lincolnshire Council,http://statistics.data.gov.uk/id/local-authority/00FC),Chief Executive,Ad Joint Delivery,Bus Support & Customer Serv,Print Stationery / Gen Off Exp,Printing And Stationery,LD103,3/18/2016,399972,438.95,REVENUE,UNITED CARLTON OFFICE SYSTEMS LTD,101652
North East Lincolnshire Council,http://statistics.data.gov.uk/id/local-authority/00FC),Chief Executive,Ad Joint Delivery,Bus Support & Customer Serv,Print Stationery / Gen Off Exp,Printing And Stationery,LD103,3/18/2016,399959,288.59,REVENUE,UNITED CARLTON OFFICE SYSTEMS LTD,101652
North East Lincolnshire Council,http://statistics.data.gov.uk/id/local-authority/00FC),Chief Executive,Ad Joint Delivery,Bus Support & Customer Serv,Print Stationery / Gen Off Exp,Printing And Stationery,LD103,3/18/2016,399961,825.19,REVENUE,UNITED CARLTON OFFICE SYSTEMS LTD,101652
North East Lincolnshire Council,http://statistics.data.gov.uk/id/local-authority/00FC),Chief Executive,Ad Joint Delivery,Bus Support & Customer Serv,Print Stationery / Gen Off Exp,Printing And Stationery,LD103,3/18/2016,399960,622.65,REVENUE,UNITED CARLTON OFFICE SYSTEMS LTD,101652
North East Lincolnshire Council,http://statistics.data.gov.uk/id/local-authority/00FC),Chief Executive,Ad Joint Delivery,Bus Support & Customer Serv,Print Stationery / Gen Off Exp,Printing And Stationery,LD103,3/18/2016,400187,410.54,REVENUE,UNITED CARLTON OFFICE SYSTEMS LTD,101652
North East Lincolnshire Council,http://statistics.data.gov.uk/id/local-authority/00FC),Chief Executive,Ad Governance And Democracy,Registrars & Civic Services,Miscellaneous Expenses,Civic Regalia And Events,LL117,3/8/2016,398304,742.92,REVENUE,THOMAS FATTORINI LTD,106988
North East Lincolnshire Council,http://statistics.data.gov.uk/id/local-authority/00FC),Chief Executive,Ad Governance And Democracy,Registrars & Civic Services,Miscellaneous Expenses,Hospitality,LL112,3/21/2016,400110,2486,REVENUE,PERFECT PALATE SOLUTIONS LTD,126870
North East Lincolnshire Council,http://statistics.data.gov.uk/id/local-authority/00FC),Chief Executive,Ad Governance And Democracy,Registrars & Civic Services,Miscellaneous Expenses,Other Expenses General,LL119,3/24/2016,392457,961,REVENUE,TRENT FURNITURE,132737
North East Lincolnshire Council,http://statistics.data.gov.uk/id/local-authority/00FC),Chief Executive,Ad Governance And Democracy,Elections & Complaints,Equip / Furniture / Materials,Books,LA121,3/7/2016,397527,365.45,REVENUE,LEXISNEXIS UK,101447
North East Lincolnshire Council,http://statistics.data.gov.uk/id/local-authority/00FC),Chief Executive,Ad Governance And Democracy,Elections & Complaints,Communications And Computing,Computer S/Ware - Licences,LF103,3/7/2016,397526,20103.49,REVENUE,HALAROSE LIMITED,101974
North East Lincolnshire Council,http://statistics.data.gov.uk/id/local-authority/00FC),Chief Executive,Ad Governance And Democracy,Elections & Complaints,Communications And Computing,Postage,LF111,3/14/2016,399320,342.72,REVENUE,ROYAL MAIL GROUP PLC,101082
North East Lincolnshire Council,http://statistics.data.gov.uk/id/local-authority/00FC),Chief Executive,Ad Governance And Democracy,Elections & Complaints,Public Transport,Public Transport - Employees,JD101,3/17/2016,400461,-29.5,REVENUE,CLICK TRAVEL,127476
North East Lincolnshire Council,http://statistics.data.gov.uk/id/local-authority/00FC),Chief Executive,Ad Governance And Democracy,Elections & Complaints,Public Transport,Public Transport - Employees,JD101,3/17/2016,400462,-25,REVENUE,CLICK TRAVEL,127476
North East Lincolnshire Council,http://statistics.data.gov.uk/id/local-authority/00FC),Chief Executive,Ad Governance And Democracy,Elections & Complaints,Print Stationery / Gen Off Exp,Printing And Stationery,LD103,3/18/2016,399761,1239.25,REVENUE,SHAW & SONS LTD,100561
North East Lincolnshire Council,http://statistics.data.gov.uk/id/local-authority/00FC),Chief Executive,Ad Governance And Democracy,Elections & Complaints,Communications And Computing,Postage,LF111,3/31/2016,402733,31398.82,REVENUE,PRINT IMAGE FACILITIES LLP,125574
North East Lincolnshire Council,http://statistics.data.gov.uk/id/local-authority/00FC),Chief Executive,Ad Law,Coroners,Rents,Room Hire,GC103,3/31/2016,402764,542.5,REVENUE,CLEETHORPES CHARTER TRUSTEES,101604
North East Lincolnshire Council,http://statistics.data.gov.uk/id/local-authority/00FC),Chief Executive,Ad Law,Coroners,Communications And Computing,Computer S/Ware - Licences,LF103,3/9/2016,398671,2286.31,REVENUE,ADVANCED LEGAL SOLUTIONS LTD,125461
North East Lincolnshire Council,http://statistics.data.gov.uk/id/local-authority/00FC),Chief Executive,Ad Law,Coroners,Other Agencies,Mortuary Storage Charges,PJ156,3/31/2016,402720,5265,REVENUE,N LINCS & GOOLE HOSPITALS NHS,111074
North East Lincolnshire Council,http://statistics.data.gov.uk/id/local-authority/00FC),Chief Executive,Ad Law,Coroners,Other Agencies,Mortuary Storage Charges,PJ156,3/31/2016,402710,8570,REVENUE,N LINCS & GOOLE HOSPITALS NHS,111074
North East Lincolnshire Council,http://statistics.data.gov.uk/id/local-authority/00FC),Chief Executive,Ad Law,Coroners,Other Agencies,Mortuary Storage Charges,PJ156,3/31/2016,402711,4786,REVENUE,N LINCS & GOOLE HOSPITALS NHS,111074
North East Lincolnshire Council,http://statistics.data.gov.uk/id/local-authority/00FC),Chief Executive,Ad Law,Coroners,Other Agencies,Mortuary Storage Charges,PJ156,3/21/2016,400168,250,REVENUE,HEY NHS TRUST,102955
North East Lincolnshire Council,http://statistics.data.gov.uk/id/local-authority/00FC),Chief Executive,Ad Law,Coroners,Other Agencies,Other,PJ121,3/9/2016,398718,250,REVENUE,WILKIN CHAPMAN LLP,110675
North East Lincolnshire Council,http://statistics.data.gov.uk/id/local-authority/00FC),Chief Executive,Ad Law,Coroners,Other Agencies,Post Mortems,PJ148,3/7/2016,397865,919.4,REVENUE,REDACTED PERSONAL INFORMATION,REDACTED PERSONAL INFORMATION
North East Lincolnshire Council,http://statistics.data.gov.uk/id/local-authority/00FC),Chief Executive,Ad Law,Coroners,Other Agencies,Post Mortems,PJ148,3/18/2016,399712,387.2,REVENUE,REDACTED PERSONAL INFORMATION,REDACTED PERSONAL INFORMATION
North East Lincolnshire Council,http://statistics.data.gov.uk/id/local-authority/00FC),Chief Executive,Ad Law,Coroners,Other Agencies,Post Mortems,PJ148,3/9/2016,398735,2847.6,REVENUE,UNIVERSITY HOSPITALS OF LEICESTER NHS TRUST,107238
North East Lincolnshire Council,http://statistics.data.gov.uk/id/local-authority/00FC),Chief Executive,Ad Law,Coroners,Other Agencies,Post Mortems,PJ148,3/9/2016,398716,276.9,REVENUE,MARTA COHEN LTD,110632
North East Lincolnshire Council,http://statistics.data.gov.uk/id/local-authority/00FC),Chief Executive,Ad Law,Coroners,Other Agencies,Post Mortems,PJ148,3/9/2016,398719,591.9,REVENUE,REDACTED PERSONAL INFORMATION,REDACTED PERSONAL INFORMATION
North East Lincolnshire Council,http://statistics.data.gov.uk/id/local-authority/00FC),Chief Executive,Ad Law,Coroners,Other Agencies,Post Mortems,PJ148,3/31/2016,402392,308.25,REVENUE,REDACTED PERSONAL INFORMATION,REDACTED PERSONAL INFORMATION
North East Lincolnshire Council,http://statistics.data.gov.uk/id/local-authority/00FC),Chief Executive,Ad Law,Coroners,Other Agencies,Post Mortems,PJ148,3/22/2016,400786,465.4,REVENUE,REDACTED PERSONAL INFORMATION,REDACTED PERSONAL INFORMATION
North East Lincolnshire Council,http://statistics.data.gov.uk/id/local-authority/00FC),Chief Executive,Ad Law,Coroners,Other Agencies,Post Mortems,PJ148,3/22/2016,400789,411.8,REVENUE,REDACTED PERSONAL INFORMATION,REDACTED PERSONAL INFORMATION
North East Lincolnshire Council,http://statistics.data.gov.uk/id/local-authority/00FC),Chief Executive,Ad Law,Coroners,Other Agencies,Post Mortems,PJ148,3/7/2016,397626,276.9,REVENUE,REDACTED PERSONAL INFORMATION,REDACTED PERSONAL INFORMATION
North East Lincolnshire Council,http://statistics.data.gov.uk/id/local-authority/00FC),Chief Executive,Ad Law,Legal Services,Consultancy,Consultancy,PL101,3/18/2016,399486,2012,REVENUE,BOND DICKINSON LLP,121775
North East Lincolnshire Council,http://statistics.data.gov.uk/id/local-authority/00FC),Chief Executive,Ad Law,Legal Services,Consultancy,Consultancy,PL101,3/18/2016,399415,1015,REVENUE,RICKEM LIMITED,129764
North East Lincolnshire Council,http://statistics.data.gov.uk/id/local-authority/00FC),Chief Executive,Ad Law,Legal Services,Consultancy,Consultancy,PL101,3/18/2016,399416,3220,REVENUE,RICKEM LIMITED,129764
North East Lincolnshire Council,http://statistics.data.gov.uk/id/local-authority/00FC),Chief Executive,Ad Law,Legal Services,Miscellaneous Expenses,Legal Fees - General,LL103,3/9/2016,398485,641.2,REVENUE,DR STUART HEPWORTH,133294
North East Lincolnshire Council,http://statistics.data.gov.uk/id/local-authority/00FC),Chief Executive,Ad Law,Legal Services,Miscellaneous Expenses,Legal Fees - General,LL103,3/29/2016,401804,24411.25,REVENUE,MISS TARYN LEE QC,127409
North East Lincolnshire Council,http://statistics.data.gov.uk/id/local-authority/00FC),Chief Executive,Ad Law,Legal Services,Miscellaneous Expenses,Legal Fees - General,LL103,3/15/2016,392338,432.25,REVENUE,JOHN BARKERS SOLICITORS,100928
North East Lincolnshire Council,http://statistics.data.gov.uk/id/local-authority/00FC),Chief Executive,Ad Law,Legal Services,Miscellaneous Expenses,Legal Fees - General,LL103,3/18/2016,399996,510.25,REVENUE,JOHN BARKERS SOLICITORS,100928
North East Lincolnshire Council,http://statistics.data.gov.uk/id/local-authority/00FC),Chief Executive,Ad Law,Legal Services,Miscellaneous Expenses,Legal Fees - General,LL103,3/8/2016,398251,400,REVENUE,DR CAROLINE DAWN GANNON,132970
North East Lincolnshire Council,http://statistics.data.gov.uk/id/local-authority/00FC),Chief Executive,Ad Law,Legal Services,Miscellaneous Expenses,Legal Fees - General,LL103,3/3/2016,397401,626.4,REVENUE,DR DAVID ROBINSON,123156
North East Lincolnshire Council,http://statistics.data.gov.uk/id/local-authority/00FC),Chief Executive,Ad Law,Legal Services,Miscellaneous Expenses,Legal Fees - General,LL103,3/14/2016,398738,594.75,REVENUE,JOHN BARKERS SOLICITORS,100928
North East Lincolnshire Council,http://statistics.data.gov.uk/id/local-authority/00FC),Chief Executive,Ad Law,Legal Services,Miscellaneous Expenses,Legal Fees - General,LL103,3/31/2016,402700,486.72,REVENUE,ST ANDREWS HEALTHCARE,128835
North East Lincolnshire Council,http://statistics.data.gov.uk/id/local-authority/00FC),Chief Executive,Ad Law,Legal Services,Miscellaneous Expenses,Legal Fees - General,LL103,3/14/2016,398733,340,REVENUE,PEPPERELLS SOLICITORS,112808
North East Lincolnshire Council,http://statistics.data.gov.uk/id/local-authority/00FC),Chief Executive,Ad Law,Legal Services,Miscellaneous Expenses,Legal Fees - General,LL103,3/9/2016,398745,738,REVENUE,LEXTOX DRUG & ALCOHOL TESTING,125634
North East Lincolnshire Council,http://statistics.data.gov.uk/id/local-authority/00FC),Chief Executive,Ad Law,Legal Services,Miscellaneous Expenses,Legal Fees - General,LL103,3/9/2016,398746,738,REVENUE,LEXTOX DRUG & ALCOHOL TESTING,125634
North East Lincolnshire Council,http://statistics.data.gov.uk/id/local-authority/00FC),Chief Executive,Ad Law,Legal Services,Miscellaneous Expenses,Legal Fees - General,LL103,3/9/2016,398740,1745,REVENUE,BATES & MOUNTAIN SOLICITORS,104183
North East Lincolnshire Council,http://statistics.data.gov.uk/id/local-authority/00FC),Deputy Chief Executive,Ad Environment,Cemeteries & Crematorium,Grounds Maintenance Costs,Grounds Maintenance,GJ101,3/21/2016,396661,1914,REVENUE,COFELY WORKPLACE LTD,131107
North East Lincolnshire Council,http://statistics.data.gov.uk/id/local-authority/00FC),Deputy Chief Executive,Ad Environment,Cemeteries & Crematorium,Grounds Maintenance Costs,Grounds Maintenance,GJ101,3/21/2016,396661,768,REVENUE,COFELY WORKPLACE LTD,131107
North East Lincolnshire Council,http://statistics.data.gov.uk/id/local-authority/00FC),Deputy Chief Executive,Ad Environment,Cemeteries & Crematorium,Grounds Maintenance Costs,Grounds Maintenance,GJ101,3/3/2016,396032,4000,REVENUE,DEREK COMMANDER,128309
North East Lincolnshire Council,http://statistics.data.gov.uk/id/local-authority/00FC),Deputy Chief Executive,Ad Environment,Cemeteries & Crematorium,Grounds Maintenance Costs,Grounds Maintenance,GJ101,3/3/2016,396542,600,REVENUE,J MELTON TREE SERVICES LTD,101809
North East Lincolnshire Council,http://statistics.data.gov.uk/id/local-authority/00FC),Deputy Chief Executive,Ad Environment,Cemeteries & Crematorium,Grounds Maintenance Costs,Grounds Maintenance,GJ101,3/14/2016,398153,550,REVENUE,BRAMM,132490
North East Lincolnshire Council,http://statistics.data.gov.uk/id/local-authority/00FC),Deputy Chief Executive,Ad Environment,Cemeteries & Crematorium,Grounds Maintenance Costs,Grounds Maintenance,GJ101,3/10/2016,398683,1067.25,REVENUE,JAMES COLES & SONS LTD,100758
North East Lincolnshire Council,http://statistics.data.gov.uk/id/local-authority/00FC),Deputy Chief Executive,Ad Environment,Cemeteries & Crematorium,Equip / Furniture / Materials,Equipment - Maintenance,LA104,3/18/2016,399733,1890,REVENUE,ESG,102685
North East Lincolnshire Council,http://statistics.data.gov.uk/id/local-authority/00FC),Deputy Chief Executive,Ad Environment,Cemeteries & Crematorium,Equip / Furniture / Materials,Equipment - Purchase,LA101,3/31/2016,402576,550,REVENUE,S P DAVIS MEMORIALS LIMITED,130000
North East Lincolnshire Council,http://statistics.data.gov.uk/id/local-authority/00FC),Deputy Chief Executive,Ad Environment,Cemeteries & Crematorium,Equip / Furniture / Materials,Equipment - Purchase,LA101,3/10/2016,397938,950,REVENUE,CLEARSKIES SOFTWARE,106786
North East Lincolnshire Council,http://statistics.data.gov.uk/id/local-authority/00FC),Deputy Chief Executive,Ad Environment,Cemeteries & Crematorium,Equip / Furniture / Materials,Equipment - Purchase,LA101,3/14/2016,398963,2122,REVENUE,C & G ENGINEERING SERVICES,100637
North East Lincolnshire Council,http://statistics.data.gov.uk/id/local-authority/00FC),Deputy Chief Executive,Ad Environment,Cemeteries & Crematorium,Equip / Furniture / Materials,Equipment - Purchase,LA101,3/10/2016,398301,522.5,REVENUE,THE COLUMBARIA COMPANY,100621
North East Lincolnshire Council,http://statistics.data.gov.uk/id/local-authority/00FC),Deputy Chief Executive,Ad Environment,Cemeteries & Crematorium,Equip / Furniture / Materials,Equipment - Purchase,LA101,3/31/2016,402575,432.4,REVENUE,S P DAVIS MEMORIALS LIMITED,130000
North East Lincolnshire Council,http://statistics.data.gov.uk/id/local-authority/00FC),Deputy Chief Executive,Ad Environment,Cemeteries & Crematorium,Equip / Furniture / Materials,Equipment - Purchase,LA101,3/3/2016,397177,315,REVENUE,SIGNS EXPRESS (N & NE LINCS),100983
North East Lincolnshire Council,http://statistics.data.gov.uk/id/local-authority/00FC),Deputy Chief Executive,Ad Environment,Cemeteries & Crematorium,Equip / Furniture / Materials,Equipment - Purchase,LA101,3/31/2016,402574,590,REVENUE,S P DAVIS MEMORIALS LIMITED,130000
North East Lincolnshire Council,http://statistics.data.gov.uk/id/local-authority/00FC),Deputy Chief Executive,Ad Environment,Cemeteries & Crematorium,Equip / Furniture / Materials,Equipment - Purchase,LA101,3/10/2016,397935,294.89,REVENUE,SIEMENS FINANCIAL SERVICES LTD,101161
North East Lincolnshire Council,http://statistics.data.gov.uk/id/local-authority/00FC),Deputy Chief Executive,Ad Environment,Cemeteries & Crematorium,Equip / Furniture / Materials,Furniture - Purchase,LA105,3/14/2016,398962,2073,REVENUE,C & G ENGINEERING SERVICES,100637
North East Lincolnshire Council,http://statistics.data.gov.uk/id/local-authority/00FC),Deputy Chief Executive,Ad Environment,Cemeteries & Crematorium,Grants And Subscriptions,Subscriptions,LJ101,3/31/2016,402721,6816,REVENUE,BAXENDALE ADVISORY LTD,133495
North East Lincolnshire Council,http://statistics.data.gov.uk/id/local-authority/00FC),Deputy Chief Executive,Ad Environment,Cemeteries & Crematorium,Private Contractors,Third Party Prov - Private,PH101,3/24/2016,388483,-10,REVENUE,THE YABOO COMPANY LTD,121780
North East Lincolnshire Council,http://statistics.data.gov.uk/id/local-authority/00FC),Deputy Chief Executive,Ad Environment,Garage & Fleet Strategy,Direct Transport Costs,Vehicles - Repairs And Maint,JA105,3/21/2016,400236,312.65,REVENUE,B A BUSH & SON LTD,101828
North East Lincolnshire Council,http://statistics.data.gov.uk/id/local-authority/00FC),Deputy Chief Executive,Ad Environment,Garage & Fleet Strategy,Direct Transport Costs,Vehicles - Repairs And Maint,JA105,3/3/2016,397480,860,REVENUE,B A BUSH & SON LTD,101828
North East Lincolnshire Council,http://statistics.data.gov.uk/id/local-authority/00FC),Deputy Chief Executive,Ad Environment,Garage & Fleet Strategy,Direct Transport Costs,Vehicles - Repairs And Maint,JA105,3/3/2016,397479,563.1,REVENUE,B A BUSH & SON LTD,101828
North East Lincolnshire Council,http://statistics.data.gov.uk/id/local-authority/00FC),Deputy Chief Executive,Ad Environment,Garage & Fleet Strategy,Direct Transport Costs,Vehicles - Repairs And Maint,JA105,3/3/2016,397487,2366.5,REVENUE,WR MATERIAL HANDLING LTD,101388
North East Lincolnshire Council,http://statistics.data.gov.uk/id/local-authority/00FC),Deputy Chief Executive,Ad Environment,Garage & Fleet Strategy,Direct Transport Costs,Vehicles - Repairs And Maint,JA105,3/3/2016,397488,2366.5,REVENUE,WR MATERIAL HANDLING LTD,101388
North East Lincolnshire Council,http://statistics.data.gov.uk/id/local-authority/00FC),Deputy Chief Executive,Ad Environment,Garage & Fleet Strategy,Direct Transport Costs,Vehicles - Repairs And Maint,JA105,3/7/2016,397507,2366.5,REVENUE,WR MATERIAL HANDLING LTD,101388
North East Lincolnshire Council,http://statistics.data.gov.uk/id/local-authority/00FC),Deputy Chief Executive,Ad Environment,Garage & Fleet Strategy,Direct Transport Costs,Vehicles - Repairs And Maint,JA105,3/7/2016,397509,2366.5,REVENUE,WR MATERIAL HANDLING LTD,101388
North East Lincolnshire Council,http://statistics.data.gov.uk/id/local-authority/00FC),Deputy Chief Executive,Ad Environment,Garage & Fleet Strategy,Direct Transport Costs,Vehicles - Repairs And Maint,JA105,3/3/2016,397508,400,REVENUE,IMPERIAL COMMERCIALS LTD,101709
North East Lincolnshire Council,http://statistics.data.gov.uk/id/local-authority/00FC),Deputy Chief Executive,Ad Environment,Garage & Fleet Strategy,Direct Transport Costs,Vehicles - Repairs And Maint,JA105,3/3/2016,397886,384.96,REVENUE,FLEET FACTORS LTD,100886
North East Lincolnshire Council,http://statistics.data.gov.uk/id/local-authority/00FC),Deputy Chief Executive,Ad Environment,Garage & Fleet Strategy,Direct Transport Costs,Vehicles - Repairs And Maint,JA105,3/3/2016,397887,973.24,REVENUE,FLEET FACTORS LTD,100886
North East Lincolnshire Council,http://statistics.data.gov.uk/id/local-authority/00FC),Deputy Chief Executive,Ad Environment,Garage & Fleet Strategy,Direct Transport Costs,Vehicles - Repairs And Maint,JA105,3/3/2016,397888,4992.28,REVENUE,FLEET FACTORS LTD,100886
North East Lincolnshire Council,http://statistics.data.gov.uk/id/local-authority/00FC),Deputy Chief Executive,Ad Environment,Garage & Fleet Strategy,Direct Transport Costs,Vehicles - Repairs And Maint,JA105,3/10/2016,398968,2756.17,REVENUE,FLEET FACTORS LTD,100886
North East Lincolnshire Council,http://statistics.data.gov.uk/id/local-authority/00FC),Deputy Chief Executive,Ad Environment,Garage & Fleet Strategy,Direct Transport Costs,Vehicles - Repairs And Maint,JA105,3/10/2016,398929,430,REVENUE,B A BUSH & SON LTD,101828
North East Lincolnshire Council,http://statistics.data.gov.uk/id/local-authority/00FC),Deputy Chief Executive,Ad Environment,Garage & Fleet Strategy,Direct Transport Costs,Vehicles - Repairs And Maint,JA105,3/10/2016,398930,430,REVENUE,B A BUSH & SON LTD,101828
North East Lincolnshire Council,http://statistics.data.gov.uk/id/local-authority/00FC),Deputy Chief Executive,Ad Environment,Garage & Fleet Strategy,Direct Transport Costs,Vehicles - Repairs And Maint,JA105,3/10/2016,398932,860,REVENUE,B A BUSH & SON LTD,101828
North East Lincolnshire Council,http://statistics.data.gov.uk/id/local-authority/00FC),Deputy Chief Executive,Ad Environment,Garage & Fleet Strategy,Direct Transport Costs,Vehicles - Repairs And Maint,JA105,3/10/2016,398920,546.74,REVENUE,FLEET FACTORS LTD,100886
North East Lincolnshire Council,http://statistics.data.gov.uk/id/local-authority/00FC),Deputy Chief Executive,Ad Environment,Garage & Fleet Strategy,Direct Transport Costs,Vehicles - Repairs And Maint,JA105,3/10/2016,398921,3308.34,REVENUE,FLEET FACTORS LTD,100886
North East Lincolnshire Council,http://statistics.data.gov.uk/id/local-authority/00FC),Deputy Chief Executive,Ad Environment,Garage & Fleet Strategy,Direct Transport Costs,Vehicles - Repairs And Maint,JA105,3/10/2016,398922,1718.22,REVENUE,FLEET FACTORS LTD,100886
North East Lincolnshire Council,http://statistics.data.gov.uk/id/local-authority/00FC),Deputy Chief Executive,Ad Environment,Garage & Fleet Strategy,Direct Transport Costs,Vehicles - Repairs And Maint,JA105,3/10/2016,398925,3208.53,REVENUE,FLEET FACTORS LTD,100886
North East Lincolnshire Council,http://statistics.data.gov.uk/id/local-authority/00FC),Deputy Chief Executive,Ad Environment,Garage & Fleet Strategy,Direct Transport Costs,Vehicles - Repairs And Maint,JA105,3/24/2016,399216,-48,REVENUE,IMPERIAL COMMERCIALS LTD,101709
North East Lincolnshire Council,http://statistics.data.gov.uk/id/local-authority/00FC),Deputy Chief Executive,Ad Environment,Garage & Fleet Strategy,Direct Transport Costs,Vehicles - Repairs And Maint,JA105,3/24/2016,399234,281.14,REVENUE,IMPERIAL COMMERCIALS LTD,101709
North East Lincolnshire Council,http://statistics.data.gov.uk/id/local-authority/00FC),Deputy Chief Executive,Ad Environment,Garage & Fleet Strategy,Direct Transport Costs,Vehicles - Repairs And Maint,JA105,3/10/2016,398944,446.3,REVENUE,WR MATERIAL HANDLING LTD,101388
North East Lincolnshire Council,http://statistics.data.gov.uk/id/local-authority/00FC),Deputy Chief Executive,Ad Environment,Garage & Fleet Strategy,Direct Transport Costs,Vehicles - Repairs And Maint,JA105,3/15/2016,399151,1394.76,REVENUE,WR MATERIAL HANDLING LTD,101388
North East Lincolnshire Council,http://statistics.data.gov.uk/id/local-authority/00FC),Deputy Chief Executive,Ad Environment,Garage & Fleet Strategy,Direct Transport Costs,Vehicles - Repairs And Maint,JA105,3/18/2016,399720,385,REVENUE,J W LIBERA & SON LTD,104043
North East Lincolnshire Council,http://statistics.data.gov.uk/id/local-authority/00FC),Deputy Chief Executive,Ad Environment,Garage & Fleet Strategy,Direct Transport Costs,Vehicles - Repairs And Maint,JA105,3/18/2016,399993,3344.46,REVENUE,FLEET FACTORS LTD,100886
North East Lincolnshire Council,http://statistics.data.gov.uk/id/local-authority/00FC),Deputy Chief Executive,Ad Environment,Garage & Fleet Strategy,Direct Transport Costs,Vehicles - Repairs And Maint,JA105,3/18/2016,399994,716.7,REVENUE,FLEET FACTORS LTD,100886
North East Lincolnshire Council,http://statistics.data.gov.uk/id/local-authority/00FC),Deputy Chief Executive,Ad Environment,Garage & Fleet Strategy,Direct Transport Costs,Vehicles - Repairs And Maint,JA105,3/18/2016,399990,1633.7,REVENUE,FLEET FACTORS LTD,100886
North East Lincolnshire Council,http://statistics.data.gov.uk/id/local-authority/00FC),Deputy Chief Executive,Ad Environment,Garage & Fleet Strategy,Direct Transport Costs,Vehicles - Repairs And Maint,JA105,3/18/2016,399989,407.53,REVENUE,NORTHSIDE TRUCK AND VAN LTD,108065
North East Lincolnshire Council,http://statistics.data.gov.uk/id/local-authority/00FC),Deputy Chief Executive,Ad Environment,Garage & Fleet Strategy,Direct Transport Costs,Vehicles - Repairs And Maint,JA105,3/21/2016,400233,309.62,REVENUE,F G ADAMSON & SON,100752
North East Lincolnshire Council,http://statistics.data.gov.uk/id/local-authority/00FC),Deputy Chief Executive,Ad Environment,Garage & Fleet Strategy,Direct Transport Costs,Vehicles - Repairs And Maint,JA105,3/21/2016,400243,430,REVENUE,B A BUSH & SON LTD,101828
North East Lincolnshire Council,http://statistics.data.gov.uk/id/local-authority/00FC),Deputy Chief Executive,Ad Environment,Garage & Fleet Strategy,Direct Transport Costs,Vehicles - Repairs And Maint,JA105,3/31/2016,402506,4121.45,REVENUE,FLEET FACTORS LTD,100886
North East Lincolnshire Council,http://statistics.data.gov.uk/id/local-authority/00FC),Deputy Chief Executive,Ad Environment,Garage & Fleet Strategy,Direct Transport Costs,Vehicles - Repairs And Maint,JA105,3/31/2016,402508,3506.24,REVENUE,FLEET FACTORS LTD,100886
North East Lincolnshire Council,http://statistics.data.gov.uk/id/local-authority/00FC),Deputy Chief Executive,Ad Environment,Garage & Fleet Strategy,Direct Transport Costs,Vehicles - Repairs And Maint,JA105,3/31/2016,402511,250,REVENUE,P A DE STE CROIX & SON,103824
North East Lincolnshire Council,http://statistics.data.gov.uk/id/local-authority/00FC),Deputy Chief Executive,Ad Environment,Garage & Fleet Strategy,Clothes Uniforms And Laundry,Laundry,LC103,3/14/2016,399200,419.2,REVENUE,JOHNSONS APPARELMASTER,100810
North East Lincolnshire Council,http://statistics.data.gov.uk/id/local-authority/00FC),Deputy Chief Executive,Ad Environment,Grounds And Street Cleansing,Direct Employee Expenses,Agency Staff,EA105,3/3/2016,396570,1000,REVENUE,J MELTON TREE SERVICES LTD,101809
North East Lincolnshire Council,http://statistics.data.gov.uk/id/local-authority/00FC),Deputy Chief Executive,Ad Environment,Grounds And Street Cleansing,Direct Employee Expenses,Agency Staff,EA105,3/3/2016,396571,1190,REVENUE,J MELTON TREE SERVICES LTD,101809
North East Lincolnshire Council,http://statistics.data.gov.uk/id/local-authority/00FC),Deputy Chief Executive,Ad Environment,Grounds And Street Cleansing,Direct Employee Expenses,Agency Staff,EA105,3/3/2016,396572,1120,REVENUE,J MELTON TREE SERVICES LTD,101809
North East Lincolnshire Council,http://statistics.data.gov.uk/id/local-authority/00FC),Deputy Chief Executive,Ad Environment,Grounds And Street Cleansing,Rep Alterations Maint Building,Buildings - Repairs And Maint,GA102,3/3/2016,397504,1500,REVENUE,BCJ CONSTRUCTION LTD,112224
North East Lincolnshire Council,http://statistics.data.gov.uk/id/local-authority/00FC),Deputy Chief Executive,Ad Environment,Grounds And Street Cleansing,Rep Alterations Maint Building,Buildings - Repairs And Maint,GA102,3/9/2016,398165,1475,REVENUE,HARROQUIP PUMP SYSTEMS,103412
North East Lincolnshire Council,http://statistics.data.gov.uk/id/local-authority/00FC),Deputy Chief Executive,Ad Environment,Grounds And Street Cleansing,Rep Alterations Maint Building,Buildings - Repairs And Maint,GA102,3/31/2016,401468,710,REVENUE,NEWBY LEISURE LTD,101227
North East Lincolnshire Council,http://statistics.data.gov.uk/id/local-authority/00FC),Deputy Chief Executive,Ad Environment,Grounds And Street Cleansing,Rep Alterations Maint Building,Buildings - Repairs And Maint,GA102,3/3/2016,397471,2100,REVENUE,BCJ CONSTRUCTION LTD,112224
North East Lincolnshire Council,http://statistics.data.gov.uk/id/local-authority/00FC),Deputy Chief Executive,Ad Environment,Grounds And Street Cleansing,Rep Alterations Maint Building,Buildings - Repairs And Maint,GA102,3/18/2016,397880,790,REVENUE,PLAYSAFETY LIMITED,106455
North East Lincolnshire Council,http://statistics.data.gov.uk/id/local-authority/00FC),Deputy Chief Executive,Ad Environment,Grounds And Street Cleansing,Rep Alterations Maint Building,Buildings - Repairs And Maint,GA102,3/21/2016,399897,1901,REVENUE,E K M LTD,101926
North East Lincolnshire Council,http://statistics.data.gov.uk/id/local-authority/00FC),Deputy Chief Executive,Ad Environment,Grounds And Street Cleansing,Rep Alterations Maint Building,Buildings - Repairs And Maint,GA102,3/21/2016,399880,280,REVENUE,E K M LTD,101926
North East Lincolnshire Council,http://statistics.data.gov.uk/id/local-authority/00FC),Deputy Chief Executive,Ad Environment,Grounds And Street Cleansing,Rep Alterations Maint Building,Buildings - Repairs And Maint,GA102,3/31/2016,402704,745,REVENUE,JOHN L FAWCETT,101140
North East Lincolnshire Council,http://statistics.data.gov.uk/id/local-authority/00FC),Deputy Chief Executive,Ad Environment,Grounds And Street Cleansing,Grounds Maintenance Costs,Grounds Maintenance,GJ101,3/3/2016,396248,750,REVENUE,J MELTON TREE SERVICES LTD,101809
North East Lincolnshire Council,http://statistics.data.gov.uk/id/local-authority/00FC),Deputy Chief Executive,Ad Environment,Grounds And Street Cleansing,Equip / Furniture / Materials,Equipment - Purchase,LA101,3/9/2016,398681,506,REVENUE,ASHBY GRASS CARE,110410
North East Lincolnshire Council,http://statistics.data.gov.uk/id/local-authority/00FC),Deputy Chief Executive,Ad Environment,Grounds And Street Cleansing,Equip / Furniture / Materials,Equipment - Purchase,LA101,3/8/2016,397811,1250,REVENUE,J MELTON TREE SERVICES LTD,101809
North East Lincolnshire Council,http://statistics.data.gov.uk/id/local-authority/00FC),Deputy Chief Executive,Ad Environment,Grounds And Street Cleansing,Equip / Furniture / Materials,Equipment - Purchase,LA101,3/8/2016,397812,1060,REVENUE,J MELTON TREE SERVICES LTD,101809
North East Lincolnshire Council,http://statistics.data.gov.uk/id/local-authority/00FC),Deputy Chief Executive,Ad Environment,Grounds And Street Cleansing,Equip / Furniture / Materials,Equipment - Purchase,LA101,3/21/2016,399877,309,REVENUE,B&S CHAINS (MIDLANDS) LTD,104916
North East Lincolnshire Council,http://statistics.data.gov.uk/id/local-authority/00FC),Deputy Chief Executive,Ad Environment,Grounds And Street Cleansing,Equip / Furniture / Materials,Equipment - Purchase,LA101,3/21/2016,399877,390,REVENUE,B&S CHAINS (MIDLANDS) LTD,104916
North East Lincolnshire Council,http://statistics.data.gov.uk/id/local-authority/00FC),Deputy Chief Executive,Ad Environment,Grounds And Street Cleansing,Equip / Furniture / Materials,Equipment - Purchase,LA101,3/21/2016,399877,996,REVENUE,B&S CHAINS (MIDLANDS) LTD,104916
North East Lincolnshire Council,http://statistics.data.gov.uk/id/local-authority/00FC),Deputy Chief Executive,Ad Environment,Grounds And Street Cleansing,Equip / Furniture / Materials,Equipment - Purchase,LA101,3/3/2016,397450,750,REVENUE,J MELTON TREE SERVICES LTD,101809
North East Lincolnshire Council,http://statistics.data.gov.uk/id/local-authority/00FC),Deputy Chief Executive,Ad Environment,Grounds And Street Cleansing,Equip / Furniture / Materials,Equipment - Purchase,LA101,3/3/2016,397452,700,REVENUE,J MELTON TREE SERVICES LTD,101809
North East Lincolnshire Council,http://statistics.data.gov.uk/id/local-authority/00FC),Deputy Chief Executive,Ad Environment,Grounds And Street Cleansing,Equip / Furniture / Materials,Equipment - Purchase,LA101,3/3/2016,397451,750,REVENUE,J MELTON TREE SERVICES LTD,101809
North East Lincolnshire Council,http://statistics.data.gov.uk/id/local-authority/00FC),Deputy Chief Executive,Ad Environment,Grounds And Street Cleansing,Equip / Furniture / Materials,Equipment - Purchase,LA101,3/3/2016,397449,700,REVENUE,J MELTON TREE SERVICES LTD,101809
North East Lincolnshire Council,http://statistics.data.gov.uk/id/local-authority/00FC),Deputy Chief Executive,Ad Environment,Grounds And Street Cleansing,Equip / Furniture / Materials,Equipment - Purchase,LA101,3/3/2016,397453,700,REVENUE,J MELTON TREE SERVICES LTD,101809
North East Lincolnshire Council,http://statistics.data.gov.uk/id/local-authority/00FC),Deputy Chief Executive,Ad Environment,Grounds And Street Cleansing,Equip / Furniture / Materials,Equipment - Purchase,LA101,3/3/2016,397679,700,REVENUE,J MELTON TREE SERVICES LTD,101809
North East Lincolnshire Council,http://statistics.data.gov.uk/id/local-authority/00FC),Deputy Chief Executive,Ad Environment,Grounds And Street Cleansing,Equip / Furniture / Materials,Equipment - Purchase,LA101,3/3/2016,397446,800,REVENUE,J MELTON TREE SERVICES LTD,101809
North East Lincolnshire Council,http://statistics.data.gov.uk/id/local-authority/00FC),Deputy Chief Executive,Ad Environment,Grounds And Street Cleansing,Equip / Furniture / Materials,Equipment - Purchase,LA101,3/3/2016,397447,700,REVENUE,J MELTON TREE SERVICES LTD,101809
North East Lincolnshire Council,http://statistics.data.gov.uk/id/local-authority/00FC),Deputy Chief Executive,Ad Environment,Grounds And Street Cleansing,Equip / Furniture / Materials,Equipment - Purchase,LA101,3/3/2016,397448,650,REVENUE,J MELTON TREE SERVICES LTD,101809
North East Lincolnshire Council,http://statistics.data.gov.uk/id/local-authority/00FC),Deputy Chief Executive,Ad Environment,Grounds And Street Cleansing,Equip / Furniture / Materials,Equipment - Purchase,LA101,3/10/2016,398950,315.89,REVENUE,BRIANPLANT (HUMBERSIDE) LTD,100583
North East Lincolnshire Council,http://statistics.data.gov.uk/id/local-authority/00FC),Deputy Chief Executive,Ad Environment,Grounds And Street Cleansing,Private Contractors,Third Party Prov - Private,PH101,3/29/2016,401822,3810.72,REVENUE,GRIMSBY OPERATIONS LTD,101116
North East Lincolnshire Council,http://statistics.data.gov.uk/id/local-authority/00FC),Deputy Chief Executive,Ad Environment,Grounds And Street Cleansing,Equip / Furniture / Materials,Equipment - Purchase,LA101,3/21/2016,400761,250,REVENUE,CROMWELL POLYTHENE LTD,101183
North East Lincolnshire Council,http://statistics.data.gov.uk/id/local-authority/00FC),Deputy Chief Executive,Ad Environment,Grounds And Street Cleansing,Miscellaneous Expenses,Other Expenses General,LL119,3/3/2016,396034,10450,REVENUE,DRY ICE LIMITED,109830
North East Lincolnshire Council,http://statistics.data.gov.uk/id/local-authority/00FC),Deputy Chief Executive,Ad Environment,Grounds And Street Cleansing,Miscellaneous Expenses,Other Expenses General,LL119,3/18/2016,397503,4332,REVENUE,BCJ CONSTRUCTION LTD,112224
North East Lincolnshire Council,http://statistics.data.gov.uk/id/local-authority/00FC),Deputy Chief Executive,Ad Environment,Grounds And Street Cleansing,Private Contractors,Third Party Prov - Private,PH101,3/31/2016,402545,280,REVENUE,COFELY WORKPLACE LIMITED,123983
North East Lincolnshire Council,http://statistics.data.gov.uk/id/local-authority/00FC),Deputy Chief Executive,Ad Environment,Grounds And Street Cleansing,Private Contractors,Third Party Prov - Private,PH101,3/31/2016,402541,400,REVENUE,COFELY WORKPLACE LIMITED,123983
North East Lincolnshire Council,http://statistics.data.gov.uk/id/local-authority/00FC),Deputy Chief Executive,Ad Environment,Grounds And Street Cleansing,Private Contractors,Third Party Prov - Private,PH101,3/7/2016,394733,2480,REVENUE,ONEWAY TM LIMITED,128602
North East Lincolnshire Council,http://statistics.data.gov.uk/id/local-authority/00FC),Deputy Chief Executive,Ad Environment,Grounds And Street Cleansing,Private Contractors,Third Party Prov - Private,PH101,3/31/2016,402737,500,REVENUE,COFELY WORKPLACE LIMITED,123983
North East Lincolnshire Council,http://statistics.data.gov.uk/id/local-authority/00FC),Deputy Chief Executive,Ad Environment,Grounds And Street Cleansing,Private Contractors,Third Party Prov - Private,PH101,3/21/2016,399888,325,REVENUE,GRIMSBY OPERATIONS LTD,101116
North East Lincolnshire Council,http://statistics.data.gov.uk/id/local-authority/00FC),Deputy Chief Executive,Ad Environment,Grounds And Street Cleansing,Equip / Furniture / Materials,Equipment - Purchase,LA101,3/31/2016,401847,985,REVENUE,JOHN L FAWCETT,101140
North East Lincolnshire Council,http://statistics.data.gov.uk/id/local-authority/00FC),Deputy Chief Executive,Ad Environment,Grounds And Street Cleansing,Equip / Furniture / Materials,Equipment - Purchase,LA101,3/18/2016,397505,580,REVENUE,BCJ CONSTRUCTION LTD,112224
North East Lincolnshire Council,http://statistics.data.gov.uk/id/local-authority/00FC),Deputy Chief Executive,Ad Environment,Grounds And Street Cleansing,Equip / Furniture / Materials,Equipment - Purchase,LA101,3/18/2016,397506,1546.5,REVENUE,BCJ CONSTRUCTION LTD,112224
North East Lincolnshire Council,http://statistics.data.gov.uk/id/local-authority/00FC),Deputy Chief Executive,Ad Environment,Neighbourhood Serv Mgmt A/C,Direct Employee Expenses,Agency Staff,EA105,3/21/2016,400742,18180,REVENUE,PENNA COMMUNICATIONS,102320
North East Lincolnshire Council,http://statistics.data.gov.uk/id/local-authority/00FC),Deputy Chief Executive,Ad Environment,Neighbourhood Serv Mgmt A/C,Direct Employee Expenses,Agency Staff,EA105,3/21/2016,400744,17340,REVENUE,PENNA COMMUNICATIONS,102320
North East Lincolnshire Council,http://statistics.data.gov.uk/id/local-authority/00FC),Deputy Chief Executive,Ad Environment,Neighbourhood Serv Mgmt A/C,Expenses,Course/Conf Accom - Employees,LH102,3/18/2016,399627,1050,REVENUE,S & S LEISURE LTD,125174
North East Lincolnshire Council,http://statistics.data.gov.uk/id/local-authority/00FC),Deputy Chief Executive,Ad Environment,Neighbourhood Serv Mgmt A/C,Expenses,Course/Conf Accom - Employees,LH102,3/18/2016,399629,2800,REVENUE,S & S LEISURE LTD,125174
North East Lincolnshire Council,http://statistics.data.gov.uk/id/local-authority/00FC),Deputy Chief Executive,Ad Environment,Waste Services,Rep Alterations Maint Building,Buildings - Repairs And Maint,GA102,3/22/2016,400229,340,REVENUE,SIGN OF THE TIMES,100575
North East Lincolnshire Council,http://statistics.data.gov.uk/id/local-authority/00FC),Deputy Chief Executive,Ad Environment,Waste Services,Contract Hire-Operating Leases,Vehicles - Contract Hire,JC101,3/3/2016,397440,-360,REVENUE,RIVERSIDE TRUCK RENTAL LTD,132217
North East Lincolnshire Council,http://statistics.data.gov.uk/id/local-authority/00FC),Deputy Chief Executive,Ad Environment,Waste Services,Contract Hire-Operating Leases,Vehicles - Contract Hire,JC101,3/3/2016,397441,-360,REVENUE,RIVERSIDE TRUCK RENTAL LTD,132217
North East Lincolnshire Council,http://statistics.data.gov.uk/id/local-authority/00FC),Deputy Chief Executive,Ad Environment,Waste Services,Contract Hire-Operating Leases,Vehicles - Contract Hire,JC101,3/3/2016,397442,-360,REVENUE,RIVERSIDE TRUCK RENTAL LTD,132217
North East Lincolnshire Council,http://statistics.data.gov.uk/id/local-authority/00FC),Deputy Chief Executive,Ad Environment,Waste Services,Contract Hire-Operating Leases,Vehicles - Contract Hire,JC101,3/3/2016,397443,-360,REVENUE,RIVERSIDE TRUCK RENTAL LTD,132217
North East Lincolnshire Council,http://statistics.data.gov.uk/id/local-authority/00FC),Deputy Chief Executive,Ad Environment,Waste Services,Contract Hire-Operating Leases,Vehicles - Contract Hire,JC101,3/7/2016,391405,1560,REVENUE,RIVERSIDE TRUCK RENTAL LTD,132217
North East Lincolnshire Council,http://statistics.data.gov.uk/id/local-authority/00FC),Deputy Chief Executive,Ad Environment,Waste Services,Contract Hire-Operating Leases,Vehicles - Contract Hire,JC101,3/7/2016,391406,1560,REVENUE,RIVERSIDE TRUCK RENTAL LTD,132217
North East Lincolnshire Council,http://statistics.data.gov.uk/id/local-authority/00FC),Deputy Chief Executive,Ad Environment,Waste Services,Contract Hire-Operating Leases,Vehicles - Contract Hire,JC101,3/7/2016,391407,1560,REVENUE,RIVERSIDE TRUCK RENTAL LTD,132217
North East Lincolnshire Council,http://statistics.data.gov.uk/id/local-authority/00FC),Deputy Chief Executive,Ad Environment,Waste Services,Equip / Furniture / Materials,Equipment - Purchase,LA101,3/18/2016,398054,1166.56,REVENUE,CROMWELL GROUP (HOLDINGS) LTD,100524
North East Lincolnshire Council,http://statistics.data.gov.uk/id/local-authority/00FC),Deputy Chief Executive,Ad Environment,Waste Services,Clothes Uniforms And Laundry,Protective Clothing,LC101,3/30/2016,402779,-59.25,REVENUE,ARCO LTD,100509
North East Lincolnshire Council,http://statistics.data.gov.uk/id/local-authority/00FC),Deputy Chief Executive,Ad Environment,Waste Services,Clothes Uniforms And Laundry,Protective Clothing,LC101,3/10/2016,398644,548.8,REVENUE,WESTBURY INDUSTRIAL SUPPLIES LTD,102378
North East Lincolnshire Council,http://statistics.data.gov.uk/id/local-authority/00FC),Deputy Chief Executive,Ad Environment,Waste Services,Clothes Uniforms And Laundry,Protective Clothing,LC101,3/3/2016,396554,730,REVENUE,ARDEN WINCH & CO lTD,122948
North East Lincolnshire Council,http://statistics.data.gov.uk/id/local-authority/00FC),Deputy Chief Executive,Ad Environment,Waste Services,Clothes Uniforms And Laundry,Protective Clothing,LC101,3/3/2016,396554,320,REVENUE,ARDEN WINCH & CO lTD,122948
North East Lincolnshire Council,http://statistics.data.gov.uk/id/local-authority/00FC),Deputy Chief Executive,Ad Environment,Waste Services,Grants And Subscriptions,Subscriptions,LJ101,3/21/2016,400700,616.15,REVENUE,WOLTERS KLUWER (UK) LTD,101454
North East Lincolnshire Council,http://statistics.data.gov.uk/id/local-authority/00FC),Deputy Chief Executive,Ad Environment,Waste Services,Grants And Subscriptions,Subscriptions,LJ101,3/21/2016,400700,331.77,REVENUE,WOLTERS KLUWER (UK) LTD,101454
North East Lincolnshire Council,http://statistics.data.gov.uk/id/local-authority/00FC),Deputy Chief Executive,Ad Environment,Waste Services,Grants And Subscriptions,Subscriptions,LJ101,3/24/2016,400084,395,REVENUE,LARAC,104896
North East Lincolnshire Council,http://statistics.data.gov.uk/id/local-authority/00FC),Deputy Chief Executive,Ad Environment,Waste Services,Private Contractors,Third Party Prov - Private,PH101,3/8/2016,398185,340,REVENUE,MGB,101544
North East Lincolnshire Council,http://statistics.data.gov.uk/id/local-authority/00FC),Deputy Chief Executive,Ad Environment,Waste Disposal And Strategy,Private Contractors,Contract Payments,PH105,3/21/2016,400796,REDACTED COMMERCIALLY SENSITIVE ,REVENUE,NEWLINCS DEVELOPMENT LTD,101125
North East Lincolnshire Council,http://statistics.data.gov.uk/id/local-authority/00FC),Deputy Chief Executive,Ad Environment,Waste Disposal And Strategy,Private Contractors,Contract Payments,PH105,3/22/2016,400769,REDACTED COMMERCIALLY SENSITIVE ,REVENUE,NEWLINCS DEVELOPMENT LTD,101125
North East Lincolnshire Council,http://statistics.data.gov.uk/id/local-authority/00FC),Deputy Chief Executive,Ad Environment,Waste Disposal And Strategy,Private Contractors,Contract Payments Landfill Tax,PH106,3/21/2016,400796,REDACTED COMMERCIALLY SENSITIVE ,REVENUE,NEWLINCS DEVELOPMENT LTD,101125
North East Lincolnshire Council,http://statistics.data.gov.uk/id/local-authority/00FC),Deputy Chief Executive,Ad Environment,Community Protection,Private Contractors,Third Party Prov - Private,PH101,3/17/2016,399490,4241.99,REVENUE,SANGREAT KENNELS,103270
North East Lincolnshire Council,http://statistics.data.gov.uk/id/local-authority/00FC),Deputy Chief Executive,Ad Environment,Community Protection,Private Contractors,Third Party Prov - Private,PH101,3/21/2016,400752,319.77,REVENUE,OLD COURTS VETERINARY CENTRE,103433
North East Lincolnshire Council,http://statistics.data.gov.uk/id/local-authority/00FC),Deputy Chief Executive,Ad Environment,Community Protection,Private Contractors,Third Party Prov - Private,PH101,3/10/2016,398948,440,REVENUE,C & J CLEARANCE LTD,133120
North East Lincolnshire Council,http://statistics.data.gov.uk/id/local-authority/00FC),Deputy Chief Executive,Ad Environment,Community Protection,Other Agencies,Statutory Burials,PJ147,3/18/2016,399674,1094.5,REVENUE,KETTLE FUNERAL DIRECTORS,108454
North East Lincolnshire Council,http://statistics.data.gov.uk/id/local-authority/00FC),Deputy Chief Executive,Ad Environment,Community Protection,Miscellaneous Expenses,Environmental/Health Analysis,LL120,3/18/2016,399713,362.23,REVENUE,EXOVA,120585
North East Lincolnshire Council,http://statistics.data.gov.uk/id/local-authority/00FC),Deputy Chief Executive,Ad Environment,Community Protection,Miscellaneous Expenses,Environmental/Health Analysis,LL120,3/3/2016,396242,810,REVENUE,FERA SCIENCE LTD,131671
North East Lincolnshire Council,http://statistics.data.gov.uk/id/local-authority/00FC),Deputy Chief Executive,Ad Environment,Community Protection,Indirect Employee Expenses,Staff Training,EB122,3/18/2016,393285,1200,REVENUE,NALEO,111969
North East Lincolnshire Council,http://statistics.data.gov.uk/id/local-authority/00FC),Deputy Chief Executive,Ad Environment,Community Protection,Equip / Furniture / Materials,Goods For Resale,LA123,3/8/2016,398059,658.47,REVENUE,VIP SYSTEM LTD,101697
North East Lincolnshire Council,http://statistics.data.gov.uk/id/local-authority/00FC),Deputy Chief Executive,Ad Environment,Community Protection,Miscellaneous Expenses,Other Supplies & Services,LL110,3/24/2016,400190,280.75,REVENUE,INTELLIGENT DATA SYSTEMS (UK) LTD,128734
North East Lincolnshire Council,http://statistics.data.gov.uk/id/local-authority/00FC),Deputy Chief Executive,Ad Environment,Community Protection,Grants And Subscriptions,Subscriptions,LJ101,3/22/2016,399721,735,REVENUE,RICARDO-AEA LTD,129004
North East Lincolnshire Council,http://statistics.data.gov.uk/id/local-authority/00FC),Deputy Chief Executive,Ad Environment,Community Protection,Miscellaneous Expenses,Environmental/Health Analysis,LL120,3/31/2016,402808,-133.33,REVENUE,ALCONTROL LABORATORIES,100899
North East Lincolnshire Council,http://statistics.data.gov.uk/id/local-authority/00FC),Deputy Chief Executive,Ad Environment,Community Protection,Miscellaneous Expenses,Environmental/Health Analysis,LL120,3/31/2016,402489,1471.99,REVENUE,ALCONTROL LABORATORIES,100899
North East Lincolnshire Council,http://statistics.data.gov.uk/id/local-authority/00FC),Deputy Chief Executive,Ad Early Intervention,Integrated Youth Services,Miscellaneous Expenses,Activities - Service Users,LL114,3/18/2016,399737,932,REVENUE,YOUNG ADVISORS COMPANY LTD,106899
North East Lincolnshire Council,http://statistics.data.gov.uk/id/local-authority/00FC),Deputy Chief Executive,Ad Early Intervention,Integrated Youth Services,Private Contractors,Contract Payments,PH105,3/21/2016,400230,55595.08,REVENUE,GRIMSBY CLEETHORPES & HUMBER REGION YMCA,100305
North East Lincolnshire Council,http://statistics.data.gov.uk/id/local-authority/00FC),Deputy Chief Executive,Ad Early Intervention,Integrated Youth Services,Indirect Employee Expenses,Staff Training,EB122,3/24/2016,401464,540,REVENUE,THE AIM PROJECT,105257
North East Lincolnshire Council,http://statistics.data.gov.uk/id/local-authority/00FC),Deputy Chief Executive,Ad Early Intervention,Integrated Youth Services,Indirect Employee Expenses,Staff Training,EB122,3/24/2016,401719,270,REVENUE,THE AIM PROJECT,105257
North East Lincolnshire Council,http://statistics.data.gov.uk/id/local-authority/00FC),Deputy Chief Executive,Ad Early Intervention,Integrated Youth Services,Expenses,Course/Conf Accom - Employees,LH102,3/17/2016,400310,300,REVENUE,CLICK TRAVEL,127476
North East Lincolnshire Council,http://statistics.data.gov.uk/id/local-authority/00FC),Deputy Chief Executive,Ad Early Intervention,Integrated Youth Services,Expenses,Course/Conf Accom - Employees,LH102,3/17/2016,400311,300,REVENUE,CLICK TRAVEL,127476
North East Lincolnshire Council,http://statistics.data.gov.uk/id/local-authority/00FC),Deputy Chief Executive,Ad Early Intervention,Integrated Youth Services,Voluntary Associations,Third Pp - Third Sector,PF101,3/9/2016,398662,1561.85,REVENUE,VOLUNTARY ACTION NORTH EAST LINCOLNSHIRE,103631
North East Lincolnshire Council,http://statistics.data.gov.uk/id/local-authority/00FC),Deputy Chief Executive,Ad Early Intervention,Childrens Health,Indirect Employee Expenses,Staff Training,EB122,3/22/2016,400264,535,REVENUE,FOREFRONT TRAINING LTD,105501
North East Lincolnshire Council,http://statistics.data.gov.uk/id/local-authority/00FC),Deputy Chief Executive,Ad Early Intervention,Childrens Health,Communications And Computing,Computer S/Ware - Licences,LF103,3/7/2016,397702,5907.2,REVENUE,LEICESTERSHIRE PARTNERSHIP NHS TRUST,133208
North East Lincolnshire Council,http://statistics.data.gov.uk/id/local-authority/00FC),Deputy Chief Executive,Ad Early Intervention,Childrens Health,Miscellaneous Expenses,Medical Supplies And Services,LL109,3/8/2016,398184,667.2,REVENUE,ERIC,108869
North East Lincolnshire Council,http://statistics.data.gov.uk/id/local-authority/00FC),Deputy Chief Executive,Ad Early Intervention,Childrens Health,Indirect Employee Expenses,Staff Training,EB122,3/22/2016,400264,1490,REVENUE,FOREFRONT TRAINING LTD,105501
North East Lincolnshire Council,http://statistics.data.gov.uk/id/local-authority/00FC),Deputy Chief Executive,Ad Early Intervention,Childrens Health,Print Stationery / Gen Off Exp,Printing And Stationery,LD103,3/3/2016,397405,2400,REVENUE,HARLOW PRINTING LTD,104753
North East Lincolnshire Council,http://statistics.data.gov.uk/id/local-authority/00FC),Deputy Chief Executive,Ad Early Intervention,Childrens Health,Indirect Employee Expenses,Staff Training,EB122,3/3/2016,397536,898,REVENUE,NORTH LINCOLNSHIRE COUNCIL,101186
North East Lincolnshire Council,http://statistics.data.gov.uk/id/local-authority/00FC),Deputy Chief Executive,Ad Early Intervention,Childrens Health,Equip / Furniture / Materials,Equipment - Maintenance,LA104,3/8/2016,398187,950,REVENUE,TWOFOLD MAILING LTD,105163
North East Lincolnshire Council,http://statistics.data.gov.uk/id/local-authority/00FC),Deputy Chief Executive,Ad Early Intervention,Childrens Health,Equip / Furniture / Materials,Equipment - Purchase,LA101,3/8/2016,398187,9201.5,REVENUE,TWOFOLD MAILING LTD,105163
North East Lincolnshire Council,http://statistics.data.gov.uk/id/local-authority/00FC),Deputy Chief Executive,Ad Early Intervention,Childrens Health,Equip / Furniture / Materials,Equipment - Purchase,LA101,3/21/2016,399688,439.99,REVENUE,LYRECO UK LIMITED,101120
North East Lincolnshire Council,http://statistics.data.gov.uk/id/local-authority/00FC),Deputy Chief Executive,Ad Early Intervention,Childrens Health,Equip / Furniture / Materials,Equipment - Purchase,LA101,3/8/2016,398197,439.99,REVENUE,LYRECO UK LIMITED,101120
North East Lincolnshire Council,http://statistics.data.gov.uk/id/local-authority/00FC),Deputy Chief Executive,Ad Early Intervention,Childrens Health,Equip / Furniture / Materials,Equipment - Purchase,LA101,3/8/2016,398189,439.99,REVENUE,LYRECO UK LIMITED,101120
North East Lincolnshire Council,http://statistics.data.gov.uk/id/local-authority/00FC),Deputy Chief Executive,Ad Early Intervention,Childrens Health,Communications And Computing,Computer H/Ware - Purchases,LF105,3/31/2016,402503,2592,REVENUE,SPECIALIST COMPUTER CENTRES PLC,110715
North East Lincolnshire Council,http://statistics.data.gov.uk/id/local-authority/00FC),Deputy Chief Executive,Ad Early Intervention,Childrens Health,Indirect Employee Expenses,Staff Training,EB122,3/10/2016,399242,630,REVENUE,NHS YORKSHIRE & THE HUMBER CS,129360
North East Lincolnshire Council,http://statistics.data.gov.uk/id/local-authority/00FC),Deputy Chief Executive,Ad Early Intervention,Childrens Health,Private Contractors,Contract Payments,PH105,3/7/2016,398295,1057,REVENUE,N LINCS & GOOLE HOSPITALS NHS,111074
North East Lincolnshire Council,http://statistics.data.gov.uk/id/local-authority/00FC),Deputy Chief Executive,Ad Early Intervention,Childrens Health,Private Contractors,Contract Payments,PH105,3/29/2016,401857,1057,REVENUE,N LINCS & GOOLE HOSPITALS NHS,111074
